Workbook

Sheet Sheet1
B1: Raw counts | M1: Normalized counts (CPM)
B2: ADAR_TP53_1 | C2: ADAR_TP53_2 | D2: ADAR_TP53_3 | E2: TP53_1 | F2: TP53_2 | G2: TP53_3 | H2: WT_1 | I2: WT_2 | J2: WT_3 | K2: sum | M2: ADAR_TP53_1 | N2: ADAR_TP53_2 | O2: ADAR_TP53_3 | P2: TP53_1 | Q2: TP53_2 | R2: TP53_3 | S2: WT_1 | T2: WT_2 | U2: WT_3 | W2: average_mappings | X2: log2FC ADAR_TP53_vs_WT | Y2: log2FC TP53_vs_WT
A3: ERVB4_3-I_MM | B3: 30 | C3: 45 | D3: 1 | E3: 0 | F3: 0 | G3: 0 | H3: 0 | I3: 0 | J3: 0 | K3: 76 | M3: =B3/(SUM(B$3:B$611)/1000000) -> 63.87313943 | N3: =C3/(SUM(C$3:C$611)/1000000) -> 63.07883593 | O3: =D3/(SUM(D$3:D$611)/1000000) -> 2.272975234 | P3: =E3/(SUM(E$3:E$611)/1000000) -> 0 | Q3: =F3/(SUM(F$3:F$611)/1000000) -> 0 | R3: =G3/(SUM(G$3:G$611)/1000000) -> 0 | S3: =H3/(SUM(H$3:H$611)/1000000) -> 0 | T3: =I3/(SUM(I$3:I$611)/1000000) -> 0 | U3: =J3/(SUM(J$3:J$611)/1000000) -> 0 | W3: =AVERAGE(M3:U3) -> 14.35832784 | X3: =LOG((AVERAGE(M3:O3)+0.1)/(AVERAGE($S3:$U3)+0.1),2) -> 8.754051817 | Y3: =LOG((AVERAGE(P3:R3)+0.1)/(AVERAGE($S3:$U3)+0.1),2) -> 0
A4: MERV1_LTR | B4: 13 | C4: 6 | D4: 7 | E4: 4 | F4: 14 | G4: 0 | H4: 0 | I4: 0 | J4: 0 | K4: 44 | M4: =B4/(SUM(B$3:B$611)/1000000) -> 27.67836042 | N4: =C4/(SUM(C$3:C$611)/1000000) -> 8.410511457 | O4: =D4/(SUM(D$3:D$611)/1000000) -> 15.91082664 | P4: =E4/(SUM(E$3:E$611)/1000000) -> 6.007647736 | Q4: =F4/(SUM(F$3:F$611)/1000000) -> 24.25784005 | R4: =G4/(SUM(G$3:G$611)/1000000) -> 0 | S4: =H4/(SUM(H$3:H$611)/1000000) -> 0 | T4: =I4/(SUM(I$3:I$611)/1000000) -> 0 | U4: =J4/(SUM(J$3:J$611)/1000000) -> 0 | W4: =AVERAGE(M4:U4) -> 9.140576255 | X4: =LOG((AVERAGE(M4:O4)+0.1)/(AVERAGE($S4:$U4)+0.1),2) -> 7.445696319 | Y4: =LOG((AVERAGE(P4:R4)+0.1)/(AVERAGE($S4:$U4)+0.1),2) -> 6.67079728
A5: MT2A | B5: 0 | C5: 21 | D5: 0 | E5: 1 | F5: 0 | G5: 0 | H5: 0 | I5: 0 | J5: 0 | K5: 22 | M5: =B5/(SUM(B$3:B$611)/1000000) -> 0 | N5: =C5/(SUM(C$3:C$611)/1000000) -> 29.4367901 | O5: =D5/(SUM(D$3:D$611)/1000000) -> 0 | P5: =E5/(SUM(E$3:E$611)/1000000) -> 1.501911934 | Q5: =F5/(SUM(F$3:F$611)/1000000) -> 0 | R5: =G5/(SUM(G$3:G$611)/1000000) -> 0 | S5: =H5/(SUM(H$3:H$611)/1000000) -> 0 | T5: =I5/(SUM(I$3:I$611)/1000000) -> 0 | U5: =J5/(SUM(J$3:J$611)/1000000) -> 0 | W5: =AVERAGE(M5:U5) -> 3.437633559 | X5: =LOG((AVERAGE(M5:O5)+0.1)/(AVERAGE($S5:$U5)+0.1),2) -> 6.631142615 | Y5: =LOG((AVERAGE(P5:R5)+0.1)/(AVERAGE($S5:$U5)+0.1),2) -> 2.586494097
A6: RLTR9A | B6: 0 | C6: 0 | D6: 16 | E6: 0 | F6: 0 | G6: 0 | H6: 0 | I6: 0 | J6: 0 | K6: 16 | M6: =B6/(SUM(B$3:B$611)/1000000) -> 0 | N6: =C6/(SUM(C$3:C$611)/1000000) -> 0 | O6: =D6/(SUM(D$3:D$611)/1000000) -> 36.36760374 | P6: =E6/(SUM(E$3:E$611)/1000000) -> 0 | Q6: =F6/(SUM(F$3:F$611)/1000000) -> 0 | R6: =G6/(SUM(G$3:G$611)/1000000) -> 0 | S6: =H6/(SUM(H$3:H$611)/1000000) -> 0 | T6: =I6/(SUM(I$3:I$611)/1000000) -> 0 | U6: =J6/(SUM(J$3:J$611)/1000000) -> 0 | W6: =AVERAGE(M6:U6) -> 4.04084486 | X6: =LOG((AVERAGE(M6:O6)+0.1)/(AVERAGE($S6:$U6)+0.1),2) -> 6.933399677 | Y6: =LOG((AVERAGE(P6:R6)+0.1)/(AVERAGE($S6:$U6)+0.1),2) -> 0
A7: RLTR47 | B7: 0 | C7: 11 | D7: 0 | E7: 0 | F7: 0 | G7: 0 | H7: 0 | I7: 0 | J7: 0 | K7: 11 | M7: =B7/(SUM(B$3:B$611)/1000000) -> 0 | N7: =C7/(SUM(C$3:C$611)/1000000) -> 15.419271 | O7: =D7/(SUM(D$3:D$611)/1000000) -> 0 | P7: =E7/(SUM(E$3:E$611)/1000000) -> 0 | Q7: =F7/(SUM(F$3:F$611)/1000000) -> 0 | R7: =G7/(SUM(G$3:G$611)/1000000) -> 0 | S7: =H7/(SUM(H$3:H$611)/1000000) -> 0 | T7: =I7/(SUM(I$3:I$611)/1000000) -> 0 | U7: =J7/(SUM(J$3:J$611)/1000000) -> 0 | W7: =AVERAGE(M7:U7) -> 1.713252334 | X7: =LOG((AVERAGE(M7:O7)+0.1)/(AVERAGE($S7:$U7)+0.1),2) -> 5.711428002 | Y7: =LOG((AVERAGE(P7:R7)+0.1)/(AVERAGE($S7:$U7)+0.1),2) -> 0
A8: RLTR12B2 | B8: 0 | C8: 0 | D8: 10 | E8: 0 | F8: 0 | G8: 0 | H8: 0 | I8: 0 | J8: 0 | K8: 10 | M8: =B8/(SUM(B$3:B$611)/1000000) -> 0 | N8: =C8/(SUM(C$3:C$611)/1000000) -> 0 | O8: =D8/(SUM(D$3:D$611)/1000000) -> 22.72975234 | P8: =E8/(SUM(E$3:E$611)/1000000) -> 0 | Q8: =F8/(SUM(F$3:F$611)/1000000) -> 0 | R8: =G8/(SUM(G$3:G$611)/1000000) -> 0 | S8: =H8/(SUM(H$3:H$611)/1000000) -> 0 | T8: =I8/(SUM(I$3:I$611)/1000000) -> 0 | U8: =J8/(SUM(J$3:J$611)/1000000) -> 0 | W8: =AVERAGE(M8:U8) -> 2.525528037 | X8: =LOG((AVERAGE(M8:O8)+0.1)/(AVERAGE($S8:$U8)+0.1),2) -> 6.262392585 | Y8: =LOG((AVERAGE(P8:R8)+0.1)/(AVERAGE($S8:$U8)+0.1),2) -> 0
A9: RLTR9F | B9: 9 | C9: 1 | D9: 0 | E9: 0 | F9: 3 | G9: 0 | H9: 0 | I9: 0 | J9: 0 | K9: 13 | M9: =B9/(SUM(B$3:B$611)/1000000) -> 19.16194183 | N9: =C9/(SUM(C$3:C$611)/1000000) -> 1.40175191 | O9: =D9/(SUM(D$3:D$611)/1000000) -> 0 | P9: =E9/(SUM(E$3:E$611)/1000000) -> 0 | Q9: =F9/(SUM(F$3:F$611)/1000000) -> 5.198108582 | R9: =G9/(SUM(G$3:G$611)/1000000) -> 0 | S9: =H9/(SUM(H$3:H$611)/1000000) -> 0 | T9: =I9/(SUM(I$3:I$611)/1000000) -> 0 | U9: =J9/(SUM(J$3:J$611)/1000000) -> 0 | W9: =AVERAGE(M9:U9) -> 2.86242248 | X9: =LOG((AVERAGE(M9:O9)+0.1)/(AVERAGE($S9:$U9)+0.1),2) -> 6.119888286 | Y9: =LOG((AVERAGE(P9:R9)+0.1)/(AVERAGE($S9:$U9)+0.1),2) -> 4.195900993
A10: RLTR20A1_MM | B10: 1 | C10: 9 | D10: 0 | E10: 0 | F10: 0 | G10: 0 | H10: 0 | I10: 0 | J10: 0 | K10: 10 | M10: =B10/(SUM(B$3:B$611)/1000000) -> 2.129104648 | N10: =C10/(SUM(C$3:C$611)/1000000) -> 12.61576719 | O10: =D10/(SUM(D$3:D$611)/1000000) -> 0 | P10: =E10/(SUM(E$3:E$611)/1000000) -> 0 | Q10: =F10/(SUM(F$3:F$611)/1000000) -> 0 | R10: =G10/(SUM(G$3:G$611)/1000000) -> 0 | S10: =H10/(SUM(H$3:H$611)/1000000) -> 0 | T10: =I10/(SUM(I$3:I$611)/1000000) -> 0 | U10: =J10/(SUM(J$3:J$611)/1000000) -> 0 | W10: =AVERAGE(M10:U10) -> 1.638319093 | X10: =LOG((AVERAGE(M10:O10)+0.1)/(AVERAGE($S10:$U10)+0.1),2) -> 5.648165506 | Y10: =LOG((AVERAGE(P10:R10)+0.1)/(AVERAGE($S10:$U10)+0.1),2) -> 0
A11: ERVB4_1C-LTR_Mm | B11: 4 | C11: 5 | D11: 0 | E11: 4 | F11: 3 | G11: 0 | H11: 0 | I11: 0 | J11: 0 | K11: 16 | M11: =B11/(SUM(B$3:B$611)/1000000) -> 8.51641859 | N11: =C11/(SUM(C$3:C$611)/1000000) -> 7.008759548 | O11: =D11/(SUM(D$3:D$611)/1000000) -> 0 | P11: =E11/(SUM(E$3:E$611)/1000000) -> 6.007647736 | Q11: =F11/(SUM(F$3:F$611)/1000000) -> 5.198108582 | R11: =G11/(SUM(G$3:G$611)/1000000) -> 0 | S11: =H11/(SUM(H$3:H$611)/1000000) -> 0 | T11: =I11/(SUM(I$3:I$611)/1000000) -> 0 | U11: =J11/(SUM(J$3:J$611)/1000000) -> 0 | W11: =AVERAGE(M11:U11) -> 2.970103828 | X11: =LOG((AVERAGE(M11:O11)+0.1)/(AVERAGE($S11:$U11)+0.1),2) -> 5.721115429 | Y11: =LOG((AVERAGE(P11:R11)+0.1)/(AVERAGE($S11:$U11)+0.1),2) -> 5.26124951
A12: RMER6BA | B12: 7 | C12: 2 | D12: 0 | E12: 0 | F12: 1 | G12: 0 | H12: 0 | I12: 0 | J12: 0 | K12: 10 | M12: =B12/(SUM(B$3:B$611)/1000000) -> 14.90373253 | N12: =C12/(SUM(C$3:C$611)/1000000) -> 2.803503819 | O12: =D12/(SUM(D$3:D$611)/1000000) -> 0 | P12: =E12/(SUM(E$3:E$611)/1000000) -> 0 | Q12: =F12/(SUM(F$3:F$611)/1000000) -> 1.732702861 | R12: =G12/(SUM(G$3:G$611)/1000000) -> 0 | S12: =H12/(SUM(H$3:H$611)/1000000) -> 0 | T12: =I12/(SUM(I$3:I$611)/1000000) -> 0 | U12: =J12/(SUM(J$3:J$611)/1000000) -> 0 | W12: =AVERAGE(M12:U12) -> 2.159993246 | X12: =LOG((AVERAGE(M12:O12)+0.1)/(AVERAGE($S12:$U12)+0.1),2) -> 5.907470471 | Y12: =LOG((AVERAGE(P12:R12)+0.1)/(AVERAGE($S12:$U12)+0.1),2) -> 2.760364932
A13: RLTR41B | B13: 9 | C13: 0 | D13: 0 | E13: 9 | F13: 0 | G13: 0 | H13: 0 | I13: 0 | J13: 0 | K13: 18 | M13: =B13/(SUM(B$3:B$611)/1000000) -> 19.16194183 | N13: =C13/(SUM(C$3:C$611)/1000000) -> 0 | O13: =D13/(SUM(D$3:D$611)/1000000) -> 0 | P13: =E13/(SUM(E$3:E$611)/1000000) -> 13.51720741 | Q13: =F13/(SUM(F$3:F$611)/1000000) -> 0 | R13: =G13/(SUM(G$3:G$611)/1000000) -> 0 | S13: =H13/(SUM(H$3:H$611)/1000000) -> 0 | T13: =I13/(SUM(I$3:I$611)/1000000) -> 0 | U13: =J13/(SUM(J$3:J$611)/1000000) -> 0 | W13: =AVERAGE(M13:U13) -> 3.631016582 | X13: =LOG((AVERAGE(M13:O13)+0.1)/(AVERAGE($S13:$U13)+0.1),2) -> 6.019549352 | Y13: =LOG((AVERAGE(P13:R13)+0.1)/(AVERAGE($S13:$U13)+0.1),2) -> 5.525359751
A14: SATMIN | B14: 55 | C14: 96 | D14: 120 | E14: 28 | F14: 7 | G14: 90 | H14: 0 | I14: 3 | J14: 6 | K14: 405 | M14: =B14/(SUM(B$3:B$611)/1000000) -> 117.1007556 | N14: =C14/(SUM(C$3:C$611)/1000000) -> 134.5681833 | O14: =D14/(SUM(D$3:D$611)/1000000) -> 272.757028 | P14: =E14/(SUM(E$3:E$611)/1000000) -> 42.05353415 | Q14: =F14/(SUM(F$3:F$611)/1000000) -> 12.12892002 | R14: =G14/(SUM(G$3:G$611)/1000000) -> 53.8318723 | S14: =H14/(SUM(H$3:H$611)/1000000) -> 0 | T14: =I14/(SUM(I$3:I$611)/1000000) -> 8.263256329 | U14: =J14/(SUM(J$3:J$611)/1000000) -> 11.15063391 | W14: =AVERAGE(M14:U14) -> 72.42824263 | X14: =LOG((AVERAGE(M14:O14)+0.1)/(AVERAGE($S14:$U14)+0.1),2) -> 4.734279782 | Y14: =LOG((AVERAGE(P14:R14)+0.1)/(AVERAGE($S14:$U14)+0.1),2) -> 2.457939673
A15: LX7 | B15: 0 | C15: 7 | D15: 1 | E15: 0 | F15: 0 | G15: 2 | H15: 0 | I15: 0 | J15: 0 | K15: 10 | M15: =B15/(SUM(B$3:B$611)/1000000) -> 0 | N15: =C15/(SUM(C$3:C$611)/1000000) -> 9.812263367 | O15: =D15/(SUM(D$3:D$611)/1000000) -> 2.272975234 | P15: =E15/(SUM(E$3:E$611)/1000000) -> 0 | Q15: =F15/(SUM(F$3:F$611)/1000000) -> 0 | R15: =G15/(SUM(G$3:G$611)/1000000) -> 1.196263829 | S15: =H15/(SUM(H$3:H$611)/1000000) -> 0 | T15: =I15/(SUM(I$3:I$611)/1000000) -> 0 | U15: =J15/(SUM(J$3:J$611)/1000000) -> 0 | W15: =AVERAGE(M15:U15) -> 1.475722492 | X15: =LOG((AVERAGE(M15:O15)+0.1)/(AVERAGE($S15:$U15)+0.1),2) -> 5.367515351 | Y15: =LOG((AVERAGE(P15:R15)+0.1)/(AVERAGE($S15:$U15)+0.1),2) -> 2.318330175
A16: ORR1D2_LTR | B16: 0 | C16: 6 | D16: 0 | E16: 0 | F16: 3 | G16: 0 | H16: 0 | I16: 0 | J16: 0 | K16: 9 | M16: =B16/(SUM(B$3:B$611)/1000000) -> 0 | N16: =C16/(SUM(C$3:C$611)/1000000) -> 8.410511457 | O16: =D16/(SUM(D$3:D$611)/1000000) -> 0 | P16: =E16/(SUM(E$3:E$611)/1000000) -> 0 | Q16: =F16/(SUM(F$3:F$611)/1000000) -> 5.198108582 | R16: =G16/(SUM(G$3:G$611)/1000000) -> 0 | S16: =H16/(SUM(H$3:H$611)/1000000) -> 0 | T16: =I16/(SUM(I$3:I$611)/1000000) -> 0 | U16: =J16/(SUM(J$3:J$611)/1000000) -> 0 | W16: =AVERAGE(M16:U16) -> 1.512068893 | X16: =LOG((AVERAGE(M16:O16)+0.1)/(AVERAGE($S16:$U16)+0.1),2) -> 4.859723027 | Y16: =LOG((AVERAGE(P16:R16)+0.1)/(AVERAGE($S16:$U16)+0.1),2) -> 4.195900993
A17: RMER20A | B17: 0 | C17: 0 | D17: 27 | E17: 0 | F17: 0 | G17: 0 | H17: 1 | I17: 0 | J17: 0 | K17: 28 | M17: =B17/(SUM(B$3:B$611)/1000000) -> 0 | N17: =C17/(SUM(C$3:C$611)/1000000) -> 0 | O17: =D17/(SUM(D$3:D$611)/1000000) -> 61.37033131 | P17: =E17/(SUM(E$3:E$611)/1000000) -> 0 | Q17: =F17/(SUM(F$3:F$611)/1000000) -> 0 | R17: =G17/(SUM(G$3:G$611)/1000000) -> 0 | S17: =H17/(SUM(H$3:H$611)/1000000) -> 1.54677127 | T17: =I17/(SUM(I$3:I$611)/1000000) -> 0 | U17: =J17/(SUM(J$3:J$611)/1000000) -> 0 | W17: =AVERAGE(M17:U17) -> 6.990789175 | X17: =LOG((AVERAGE(M17:O17)+0.1)/(AVERAGE($S17:$U17)+0.1),2) -> 5.061499498 | Y17: =LOG((AVERAGE(P17:R17)+0.1)/(AVERAGE($S17:$U17)+0.1),2) -> -2.621970788
A18: RMER19C | B18: 4 | C18: 0 | D18: 1 | E18: 10 | F18: 1 | G18: 0 | H18: 0 | I18: 0 | J18: 0 | K18: 16 | M18: =B18/(SUM(B$3:B$611)/1000000) -> 8.51641859 | N18: =C18/(SUM(C$3:C$611)/1000000) -> 0 | O18: =D18/(SUM(D$3:D$611)/1000000) -> 2.272975234 | P18: =E18/(SUM(E$3:E$611)/1000000) -> 15.01911934 | Q18: =F18/(SUM(F$3:F$611)/1000000) -> 1.732702861 | R18: =G18/(SUM(G$3:G$611)/1000000) -> 0 | S18: =H18/(SUM(H$3:H$611)/1000000) -> 0 | T18: =I18/(SUM(I$3:I$611)/1000000) -> 0 | U18: =J18/(SUM(J$3:J$611)/1000000) -> 0 | W18: =AVERAGE(M18:U18) -> 3.060135114 | X18: =LOG((AVERAGE(M18:O18)+0.1)/(AVERAGE($S18:$U18)+0.1),2) -> 5.208074195 | Y18: =LOG((AVERAGE(P18:R18)+0.1)/(AVERAGE($S18:$U18)+0.1),2) -> 5.828819606
A19: BGLII_C | B19: 0 | C19: 5 | D19: 0 | E19: 0 | F19: 0 | G19: 0 | H19: 0 | I19: 0 | J19: 0 | K19: 5 | M19: =B19/(SUM(B$3:B$611)/1000000) -> 0 | N19: =C19/(SUM(C$3:C$611)/1000000) -> 7.008759548 | O19: =D19/(SUM(D$3:D$611)/1000000) -> 0 | P19: =E19/(SUM(E$3:E$611)/1000000) -> 0 | Q19: =F19/(SUM(F$3:F$611)/1000000) -> 0 | R19: =G19/(SUM(G$3:G$611)/1000000) -> 0 | S19: =H19/(SUM(H$3:H$611)/1000000) -> 0 | T19: =I19/(SUM(I$3:I$611)/1000000) -> 0 | U19: =J19/(SUM(J$3:J$611)/1000000) -> 0 | W19: =AVERAGE(M19:U19) -> 0.7787510609 | X19: =LOG((AVERAGE(M19:O19)+0.1)/(AVERAGE($S19:$U19)+0.1),2) -> 4.606592165 | Y19: =LOG((AVERAGE(P19:R19)+0.1)/(AVERAGE($S19:$U19)+0.1),2) -> 0
A20: RLTR31B2 | B20: 1 | C20: 4 | D20: 0 | E20: 5 | F20: 14 | G20: 0 | H20: 0 | I20: 0 | J20: 0 | K20: 24 | M20: =B20/(SUM(B$3:B$611)/1000000) -> 2.129104648 | N20: =C20/(SUM(C$3:C$611)/1000000) -> 5.607007638 | O20: =D20/(SUM(D$3:D$611)/1000000) -> 0 | P20: =E20/(SUM(E$3:E$611)/1000000) -> 7.509559669 | Q20: =F20/(SUM(F$3:F$611)/1000000) -> 24.25784005 | R20: =G20/(SUM(G$3:G$611)/1000000) -> 0 | S20: =H20/(SUM(H$3:H$611)/1000000) -> 0 | T20: =I20/(SUM(I$3:I$611)/1000000) -> 0 | U20: =J20/(SUM(J$3:J$611)/1000000) -> 0 | W20: =AVERAGE(M20:U20) -> 4.389279111 | X20: =LOG((AVERAGE(M20:O20)+0.1)/(AVERAGE($S20:$U20)+0.1),2) -> 4.743463317 | Y20: =LOG((AVERAGE(P20:R20)+0.1)/(AVERAGE($S20:$U20)+0.1),2) -> 6.740001062
A21: HAL1-1D_Cpo | B21: 1 | C21: 2 | D21: 1 | E21: 0 | F21: 0 | G21: 0 | H21: 0 | I21: 0 | J21: 0 | K21: 4 | M21: =B21/(SUM(B$3:B$611)/1000000) -> 2.129104648 | N21: =C21/(SUM(C$3:C$611)/1000000) -> 2.803503819 | O21: =D21/(SUM(D$3:D$611)/1000000) -> 2.272975234 | P21: =E21/(SUM(E$3:E$611)/1000000) -> 0 | Q21: =F21/(SUM(F$3:F$611)/1000000) -> 0 | R21: =G21/(SUM(G$3:G$611)/1000000) -> 0 | S21: =H21/(SUM(H$3:H$611)/1000000) -> 0 | T21: =I21/(SUM(I$3:I$611)/1000000) -> 0 | U21: =J21/(SUM(J$3:J$611)/1000000) -> 0 | W21: =AVERAGE(M21:U21) -> 0.8006204112 | X21: =LOG((AVERAGE(M21:O21)+0.1)/(AVERAGE($S21:$U21)+0.1),2) -> 4.644929867 | Y21: =LOG((AVERAGE(P21:R21)+0.1)/(AVERAGE($S21:$U21)+0.1),2) -> 0
A22: ERVB7_1-I_MM | B22: 5835 | C22: 8054 | D22: 5379 | E22: 1748 | F22: 1720 | G22: 3675 | H22: 617 | I22: 261 | J22: 542 | K22: 27831 | M22: =B22/(SUM(B$3:B$611)/1000000) -> 12423.32562 | N22: =C22/(SUM(C$3:C$611)/1000000) -> 11289.70988 | O22: =D22/(SUM(D$3:D$611)/1000000) -> 12226.33378 | P22: =E22/(SUM(E$3:E$611)/1000000) -> 2625.34206 | Q22: =F22/(SUM(F$3:F$611)/1000000) -> 2980.24892 | R22: =G22/(SUM(G$3:G$611)/1000000) -> 2198.134785 | S22: =H22/(SUM(H$3:H$611)/1000000) -> 954.3578734 | T22: =I22/(SUM(I$3:I$611)/1000000) -> 718.9033006 | U22: =J22/(SUM(J$3:J$611)/1000000) -> 1007.27393 | W22: =AVERAGE(M22:U22) -> 5158.181128 | X22: =LOG((AVERAGE(M22:O22)+0.1)/(AVERAGE($S22:$U22)+0.1),2) -> 3.744822745 | Y22: =LOG((AVERAGE(P22:R22)+0.1)/(AVERAGE($S22:$U22)+0.1),2) -> 1.541536058
A23: MMETN | B23: 5663 | C23: 8627 | D23: 5089 | E23: 1365 | F23: 1041 | G23: 3204 | H23: 705 | I23: 347 | J23: 641 | K23: 26682 | M23: =B23/(SUM(B$3:B$611)/1000000) -> 12057.11962 | N23: =C23/(SUM(C$3:C$611)/1000000) -> 12092.91372 | O23: =D23/(SUM(D$3:D$611)/1000000) -> 11567.17096 | P23: =E23/(SUM(E$3:E$611)/1000000) -> 2050.10979 | Q23: =F23/(SUM(F$3:F$611)/1000000) -> 1803.743678 | R23: =G23/(SUM(G$3:G$611)/1000000) -> 1916.414654 | S23: =H23/(SUM(H$3:H$611)/1000000) -> 1090.473745 | T23: =I23/(SUM(I$3:I$611)/1000000) -> 955.7833154 | U23: =J23/(SUM(J$3:J$611)/1000000) -> 1191.25939 | W23: =AVERAGE(M23:U23) -> 4969.443209 | X23: =LOG((AVERAGE(M23:O23)+0.1)/(AVERAGE($S23:$U23)+0.1),2) -> 3.463538171 | Y23: =LOG((AVERAGE(P23:R23)+0.1)/(AVERAGE($S23:$U23)+0.1),2) -> 0.8336921589
A24: RMER13A2 | B24: 2 | C24: 0 | D24: 1 | E24: 0 | F24: 0 | G24: 0 | H24: 0 | I24: 0 | J24: 0 | K24: 3 | M24: =B24/(SUM(B$3:B$611)/1000000) -> 4.258209295 | N24: =C24/(SUM(C$3:C$611)/1000000) -> 0 | O24: =D24/(SUM(D$3:D$611)/1000000) -> 2.272975234 | P24: =E24/(SUM(E$3:E$611)/1000000) -> 0 | Q24: =F24/(SUM(F$3:F$611)/1000000) -> 0 | R24: =G24/(SUM(G$3:G$611)/1000000) -> 0 | S24: =H24/(SUM(H$3:H$611)/1000000) -> 0 | T24: =I24/(SUM(I$3:I$611)/1000000) -> 0 | U24: =J24/(SUM(J$3:J$611)/1000000) -> 0 | W24: =AVERAGE(M24:U24) -> 0.7256871699 | X24: =LOG((AVERAGE(M24:O24)+0.1)/(AVERAGE($S24:$U24)+0.1),2) -> 4.509101358 | Y24: =LOG((AVERAGE(P24:R24)+0.1)/(AVERAGE($S24:$U24)+0.1),2) -> 0
A25: RLTR53_Mm | B25: 3 | C25: 0 | D25: 0 | E25: 0 | F25: 2 | G25: 0 | H25: 0 | I25: 0 | J25: 0 | K25: 5 | M25: =B25/(SUM(B$3:B$611)/1000000) -> 6.387313943 | N25: =C25/(SUM(C$3:C$611)/1000000) -> 0 | O25: =D25/(SUM(D$3:D$611)/1000000) -> 0 | P25: =E25/(SUM(E$3:E$611)/1000000) -> 0 | Q25: =F25/(SUM(F$3:F$611)/1000000) -> 3.465405721 | R25: =G25/(SUM(G$3:G$611)/1000000) -> 0 | S25: =H25/(SUM(H$3:H$611)/1000000) -> 0 | T25: =I25/(SUM(I$3:I$611)/1000000) -> 0 | U25: =J25/(SUM(J$3:J$611)/1000000) -> 0 | W25: =AVERAGE(M25:U25) -> 1.094746629 | X25: =LOG((AVERAGE(M25:O25)+0.1)/(AVERAGE($S25:$U25)+0.1),2) -> 4.478392442 | Y25: =LOG((AVERAGE(P25:R25)+0.1)/(AVERAGE($S25:$U25)+0.1),2) -> 3.649770917
A26: ERVB7_1-LTR_MM | B26: 792 | C26: 1519 | D26: 443 | E26: 324 | F26: 237 | G26: 433 | H26: 120 | I26: 35 | J26: 137 | K26: 4040 | M26: =B26/(SUM(B$3:B$611)/1000000) -> 1686.250881 | N26: =C26/(SUM(C$3:C$611)/1000000) -> 2129.261151 | O26: =D26/(SUM(D$3:D$611)/1000000) -> 1006.928029 | P26: =E26/(SUM(E$3:E$611)/1000000) -> 486.6194666 | Q26: =F26/(SUM(F$3:F$611)/1000000) -> 410.6505779 | R26: =G26/(SUM(G$3:G$611)/1000000) -> 258.9911189 | S26: =H26/(SUM(H$3:H$611)/1000000) -> 185.6125524 | T26: =I26/(SUM(I$3:I$611)/1000000) -> 96.40465717 | U26: =J26/(SUM(J$3:J$611)/1000000) -> 254.606141 | W26: =AVERAGE(M26:U26) -> 723.9249527 | X26: =LOG((AVERAGE(M26:O26)+0.1)/(AVERAGE($S26:$U26)+0.1),2) -> 3.167064999 | Y26: =LOG((AVERAGE(P26:R26)+0.1)/(AVERAGE($S26:$U26)+0.1),2) -> 1.10705351
A27: ORR1C | B27: 30 | C27: 37 | D27: 35 | E27: 7 | F27: 60 | G27: 143 | H27: 12 | I27: 0 | J27: 0 | K27: 324 | M27: =B27/(SUM(B$3:B$611)/1000000) -> 63.87313943 | N27: =C27/(SUM(C$3:C$611)/1000000) -> 51.86482065 | O27: =D27/(SUM(D$3:D$611)/1000000) -> 79.55413318 | P27: =E27/(SUM(E$3:E$611)/1000000) -> 10.51338354 | Q27: =F27/(SUM(F$3:F$611)/1000000) -> 103.9621716 | R27: =G27/(SUM(G$3:G$611)/1000000) -> 85.53286376 | S27: =H27/(SUM(H$3:H$611)/1000000) -> 18.56125524 | T27: =I27/(SUM(I$3:I$611)/1000000) -> 0 | U27: =J27/(SUM(J$3:J$611)/1000000) -> 0 | W27: =AVERAGE(M27:U27) -> 45.98464082 | X27: =LOG((AVERAGE(M27:O27)+0.1)/(AVERAGE($S27:$U27)+0.1),2) -> 3.374350454 | Y27: =LOG((AVERAGE(P27:R27)+0.1)/(AVERAGE($S27:$U27)+0.1),2) -> 3.408725461
A28: RLTR20C_MM | B28: 2 | C28: 8 | D28: 0 | E28: 0 | F28: 1 | G28: 0 | H28: 0 | I28: 1 | J28: 0 | K28: 12 | M28: =B28/(SUM(B$3:B$611)/1000000) -> 4.258209295 | N28: =C28/(SUM(C$3:C$611)/1000000) -> 11.21401528 | O28: =D28/(SUM(D$3:D$611)/1000000) -> 0 | P28: =E28/(SUM(E$3:E$611)/1000000) -> 0 | Q28: =F28/(SUM(F$3:F$611)/1000000) -> 1.732702861 | R28: =G28/(SUM(G$3:G$611)/1000000) -> 0 | S28: =H28/(SUM(H$3:H$611)/1000000) -> 0 | T28: =I28/(SUM(I$3:I$611)/1000000) -> 2.754418776 | U28: =J28/(SUM(J$3:J$611)/1000000) -> 0 | W28: =AVERAGE(M28:U28) -> 2.217705134 | X28: =LOG((AVERAGE(M28:O28)+0.1)/(AVERAGE($S28:$U28)+0.1),2) -> 2.368416376 | Y28: =LOG((AVERAGE(P28:R28)+0.1)/(AVERAGE($S28:$U28)+0.1),2) -> -0.5874985384
A29: ETNERV | B29: 2066 | C29: 2555 | D29: 1782 | E29: 697 | F29: 612 | G29: 1749 | H29: 389 | I29: 188 | J29: 241 | K29: 10279 | M29: =B29/(SUM(B$3:B$611)/1000000) -> 4398.730202 | N29: =C29/(SUM(C$3:C$611)/1000000) -> 3581.476129 | O29: =D29/(SUM(D$3:D$611)/1000000) -> 4050.441866 | P29: =E29/(SUM(E$3:E$611)/1000000) -> 1046.832618 | Q29: =F29/(SUM(F$3:F$611)/1000000) -> 1060.414151 | R29: =G29/(SUM(G$3:G$611)/1000000) -> 1046.132718 | S29: =H29/(SUM(H$3:H$611)/1000000) -> 601.6940239 | T29: =I29/(SUM(I$3:I$611)/1000000) -> 517.8307299 | U29: =J29/(SUM(J$3:J$611)/1000000) -> 447.8837955 | W29: =AVERAGE(M29:U29) -> 1861.270693 | X29: =LOG((AVERAGE(M29:O29)+0.1)/(AVERAGE($S29:$U29)+0.1),2) -> 2.94002107 | Y29: =LOG((AVERAGE(P29:R29)+0.1)/(AVERAGE($S29:$U29)+0.1),2) -> 1.008378669
A30: RLTR43C | B30: 1 | C30: 1 | D30: 0 | E30: 4 | F30: 0 | G30: 0 | H30: 0 | I30: 0 | J30: 0 | K30: 6 | M30: =B30/(SUM(B$3:B$611)/1000000) -> 2.129104648 | N30: =C30/(SUM(C$3:C$611)/1000000) -> 1.40175191 | O30: =D30/(SUM(D$3:D$611)/1000000) -> 0 | P30: =E30/(SUM(E$3:E$611)/1000000) -> 6.007647736 | Q30: =F30/(SUM(F$3:F$611)/1000000) -> 0 | R30: =G30/(SUM(G$3:G$611)/1000000) -> 0 | S30: =H30/(SUM(H$3:H$611)/1000000) -> 0 | T30: =I30/(SUM(I$3:I$611)/1000000) -> 0 | U30: =J30/(SUM(J$3:J$611)/1000000) -> 0 | W30: =AVERAGE(M30:U30) -> 1.05983381 | X30: =LOG((AVERAGE(M30:O30)+0.1)/(AVERAGE($S30:$U30)+0.1),2) -> 3.674632601 | Y30: =LOG((AVERAGE(P30:R30)+0.1)/(AVERAGE($S30:$U30)+0.1),2) -> 4.394067686
A31: L1M2_5 | B31: 2 | C31: 0 | D31: 0 | E31: 0 | F31: 0 | G31: 1 | H31: 0 | I31: 0 | J31: 0 | K31: 3 | M31: =B31/(SUM(B$3:B$611)/1000000) -> 4.258209295 | N31: =C31/(SUM(C$3:C$611)/1000000) -> 0 | O31: =D31/(SUM(D$3:D$611)/1000000) -> 0 | P31: =E31/(SUM(E$3:E$611)/1000000) -> 0 | Q31: =F31/(SUM(F$3:F$611)/1000000) -> 0 | R31: =G31/(SUM(G$3:G$611)/1000000) -> 0.5981319144 | S31: =H31/(SUM(H$3:H$611)/1000000) -> 0 | T31: =I31/(SUM(I$3:I$611)/1000000) -> 0 | U31: =J31/(SUM(J$3:J$611)/1000000) -> 0 | W31: =AVERAGE(M31:U31) -> 0.5395934677 | X31: =LOG((AVERAGE(M31:O31)+0.1)/(AVERAGE($S31:$U31)+0.1),2) -> 3.925432763 | Y31: =LOG((AVERAGE(P31:R31)+0.1)/(AVERAGE($S31:$U31)+0.1),2) -> 1.581964858
A32: LTR3_Rn | B32: 0 | C32: 2 | D32: 0 | E32: 0 | F32: 1 | G32: 0 | H32: 0 | I32: 0 | J32: 0 | K32: 3 | M32: =B32/(SUM(B$3:B$611)/1000000) -> 0 | N32: =C32/(SUM(C$3:C$611)/1000000) -> 2.803503819 | O32: =D32/(SUM(D$3:D$611)/1000000) -> 0 | P32: =E32/(SUM(E$3:E$611)/1000000) -> 0 | Q32: =F32/(SUM(F$3:F$611)/1000000) -> 1.732702861 | R32: =G32/(SUM(G$3:G$611)/1000000) -> 0 | S32: =H32/(SUM(H$3:H$611)/1000000) -> 0 | T32: =I32/(SUM(I$3:I$611)/1000000) -> 0 | U32: =J32/(SUM(J$3:J$611)/1000000) -> 0 | W32: =AVERAGE(M32:U32) -> 0.5040229644 | X32: =LOG((AVERAGE(M32:O32)+0.1)/(AVERAGE($S32:$U32)+0.1),2) -> 3.370863515 | Y32: =LOG((AVERAGE(P32:R32)+0.1)/(AVERAGE($S32:$U32)+0.1),2) -> 2.760364932
A33: PB1D7 | B33: 1 | C33: 1 | D33: 0 | E33: 0 | F33: 0 | G33: 0 | H33: 0 | I33: 0 | J33: 0 | K33: 2 | M33: =B33/(SUM(B$3:B$611)/1000000) -> 2.129104648 | N33: =C33/(SUM(C$3:C$611)/1000000) -> 1.40175191 | O33: =D33/(SUM(D$3:D$611)/1000000) -> 0 | P33: =E33/(SUM(E$3:E$611)/1000000) -> 0 | Q33: =F33/(SUM(F$3:F$611)/1000000) -> 0 | R33: =G33/(SUM(G$3:G$611)/1000000) -> 0 | S33: =H33/(SUM(H$3:H$611)/1000000) -> 0 | T33: =I33/(SUM(I$3:I$611)/1000000) -> 0 | U33: =J33/(SUM(J$3:J$611)/1000000) -> 0 | W33: =AVERAGE(M33:U33) -> 0.3923173952 | X33: =LOG((AVERAGE(M33:O33)+0.1)/(AVERAGE($S33:$U33)+0.1),2) -> 3.674632601 | Y33: =LOG((AVERAGE(P33:R33)+0.1)/(AVERAGE($S33:$U33)+0.1),2) -> 0
A34: HAL1-3C_Cpo | B34: 0 | C34: 2 | D34: 0 | E34: 1 | F34: 0 | G34: 0 | H34: 0 | I34: 0 | J34: 0 | K34: 3 | M34: =B34/(SUM(B$3:B$611)/1000000) -> 0 | N34: =C34/(SUM(C$3:C$611)/1000000) -> 2.803503819 | O34: =D34/(SUM(D$3:D$611)/1000000) -> 0 | P34: =E34/(SUM(E$3:E$611)/1000000) -> 1.501911934 | Q34: =F34/(SUM(F$3:F$611)/1000000) -> 0 | R34: =G34/(SUM(G$3:G$611)/1000000) -> 0 | S34: =H34/(SUM(H$3:H$611)/1000000) -> 0 | T34: =I34/(SUM(I$3:I$611)/1000000) -> 0 | U34: =J34/(SUM(J$3:J$611)/1000000) -> 0 | W34: =AVERAGE(M34:U34) -> 0.4783795281 | X34: =LOG((AVERAGE(M34:O34)+0.1)/(AVERAGE($S34:$U34)+0.1),2) -> 3.370863515 | Y34: =LOG((AVERAGE(P34:R34)+0.1)/(AVERAGE($S34:$U34)+0.1),2) -> 2.586494097
A35: RLTR30E_MM | B35: 0 | C35: 2 | D35: 0 | E35: 0 | F35: 5 | G35: 0 | H35: 0 | I35: 0 | J35: 0 | K35: 7 | M35: =B35/(SUM(B$3:B$611)/1000000) -> 0 | N35: =C35/(SUM(C$3:C$611)/1000000) -> 2.803503819 | O35: =D35/(SUM(D$3:D$611)/1000000) -> 0 | P35: =E35/(SUM(E$3:E$611)/1000000) -> 0 | Q35: =F35/(SUM(F$3:F$611)/1000000) -> 8.663514303 | R35: =G35/(SUM(G$3:G$611)/1000000) -> 0 | S35: =H35/(SUM(H$3:H$611)/1000000) -> 0 | T35: =I35/(SUM(I$3:I$611)/1000000) -> 0 | U35: =J35/(SUM(J$3:J$611)/1000000) -> 0 | W35: =AVERAGE(M35:U35) -> 1.274113125 | X35: =LOG((AVERAGE(M35:O35)+0.1)/(AVERAGE($S35:$U35)+0.1),2) -> 3.370863515 | Y35: =LOG((AVERAGE(P35:R35)+0.1)/(AVERAGE($S35:$U35)+0.1),2) -> 4.901030071
A36: GSAT_MM | B36: 30 | C36: 167 | D36: 120 | E36: 124 | F36: 73 | G36: 781 | H36: 11 | I36: 34 | J36: 0 | K36: 1340 | M36: =B36/(SUM(B$3:B$611)/1000000) -> 63.87313943 | N36: =C36/(SUM(C$3:C$611)/1000000) -> 234.0925689 | O36: =D36/(SUM(D$3:D$611)/1000000) -> 272.757028 | P36: =E36/(SUM(E$3:E$611)/1000000) -> 186.2370798 | Q36: =F36/(SUM(F$3:F$611)/1000000) -> 126.4873088 | R36: =G36/(SUM(G$3:G$611)/1000000) -> 467.1410252 | S36: =H36/(SUM(H$3:H$611)/1000000) -> 17.01448397 | T36: =I36/(SUM(I$3:I$611)/1000000) -> 93.65023839 | U36: =J36/(SUM(J$3:J$611)/1000000) -> 0 | W36: =AVERAGE(M36:U36) -> 162.3614303 | X36: =LOG((AVERAGE(M36:O36)+0.1)/(AVERAGE($S36:$U36)+0.1),2) -> 2.363447099 | Y36: =LOG((AVERAGE(P36:R36)+0.1)/(AVERAGE($S36:$U36)+0.1),2) -> 2.813678951
A37: RLTR13D2 | B37: 24 | C37: 2 | D37: 33 | E37: 23 | F37: 8 | G37: 0 | H37: 3 | I37: 0 | J37: 6 | K37: 99 | M37: =B37/(SUM(B$3:B$611)/1000000) -> 51.09851154 | N37: =C37/(SUM(C$3:C$611)/1000000) -> 2.803503819 | O37: =D37/(SUM(D$3:D$611)/1000000) -> 75.00818271 | P37: =E37/(SUM(E$3:E$611)/1000000) -> 34.54397448 | Q37: =F37/(SUM(F$3:F$611)/1000000) -> 13.86162288 | R37: =G37/(SUM(G$3:G$611)/1000000) -> 0 | S37: =H37/(SUM(H$3:H$611)/1000000) -> 4.640313809 | T37: =I37/(SUM(I$3:I$611)/1000000) -> 0 | U37: =J37/(SUM(J$3:J$611)/1000000) -> 11.15063391 | W37: =AVERAGE(M37:U37) -> 21.4563048 | X37: =LOG((AVERAGE(M37:O37)+0.1)/(AVERAGE($S37:$U37)+0.1),2) -> 3.005398736 | Y37: =LOG((AVERAGE(P37:R37)+0.1)/(AVERAGE($S37:$U37)+0.1),2) -> 1.59783828
A38: RLTR19B_MM | B38: 3 | C38: 9 | D38: 0 | E38: 0 | F38: 17 | G38: 0 | H38: 1 | I38: 1 | J38: 0 | K38: 31 | M38: =B38/(SUM(B$3:B$611)/1000000) -> 6.387313943 | N38: =C38/(SUM(C$3:C$611)/1000000) -> 12.61576719 | O38: =D38/(SUM(D$3:D$611)/1000000) -> 0 | P38: =E38/(SUM(E$3:E$611)/1000000) -> 0 | Q38: =F38/(SUM(F$3:F$611)/1000000) -> 29.45594863 | R38: =G38/(SUM(G$3:G$611)/1000000) -> 0 | S38: =H38/(SUM(H$3:H$611)/1000000) -> 1.54677127 | T38: =I38/(SUM(I$3:I$611)/1000000) -> 2.754418776 | U38: =J38/(SUM(J$3:J$611)/1000000) -> 0 | W38: =AVERAGE(M38:U38) -> 5.862246645 | X38: =LOG((AVERAGE(M38:O38)+0.1)/(AVERAGE($S38:$U38)+0.1),2) -> 2.068752195 | Y38: =LOG((AVERAGE(P38:R38)+0.1)/(AVERAGE($S38:$U38)+0.1),2) -> 2.693099161
A39: RLTRETN_MM | B39: 693 | C39: 1014 | D39: 522 | E39: 317 | F39: 280 | G39: 343 | H39: 181 | I39: 36 | J39: 226 | K39: 3612 | M39: =B39/(SUM(B$3:B$611)/1000000) -> 1475.469521 | N39: =C39/(SUM(C$3:C$611)/1000000) -> 1421.376436 | O39: =D39/(SUM(D$3:D$611)/1000000) -> 1186.493072 | P39: =E39/(SUM(E$3:E$611)/1000000) -> 476.106083 | Q39: =F39/(SUM(F$3:F$611)/1000000) -> 485.1568009 | R39: =G39/(SUM(G$3:G$611)/1000000) -> 205.1592466 | S39: =H39/(SUM(H$3:H$611)/1000000) -> 279.9655998 | T39: =I39/(SUM(I$3:I$611)/1000000) -> 99.15907595 | U39: =J39/(SUM(J$3:J$611)/1000000) -> 420.0072107 | W39: =AVERAGE(M39:U39) -> 672.0992274 | X39: =LOG((AVERAGE(M39:O39)+0.1)/(AVERAGE($S39:$U39)+0.1),2) -> 2.352808323 | Y39: =LOG((AVERAGE(P39:R39)+0.1)/(AVERAGE($S39:$U39)+0.1),2) -> 0.5454139832
A40: BGLII_Mur | B40: 2 | C40: 18 | D40: 0 | E40: 25 | F40: 15 | G40: 0 | H40: 3 | I40: 1 | J40: 0 | K40: 64 | M40: =B40/(SUM(B$3:B$611)/1000000) -> 4.258209295 | N40: =C40/(SUM(C$3:C$611)/1000000) -> 25.23153437 | O40: =D40/(SUM(D$3:D$611)/1000000) -> 0 | P40: =E40/(SUM(E$3:E$611)/1000000) -> 37.54779835 | Q40: =F40/(SUM(F$3:F$611)/1000000) -> 25.99054291 | R40: =G40/(SUM(G$3:G$611)/1000000) -> 0 | S40: =H40/(SUM(H$3:H$611)/1000000) -> 4.640313809 | T40: =I40/(SUM(I$3:I$611)/1000000) -> 2.754418776 | U40: =J40/(SUM(J$3:J$611)/1000000) -> 0 | W40: =AVERAGE(M40:U40) -> 11.15809083 | X40: =LOG((AVERAGE(M40:O40)+0.1)/(AVERAGE($S40:$U40)+0.1),2) -> 1.952872615 | Y40: =LOG((AVERAGE(P40:R40)+0.1)/(AVERAGE($S40:$U40)+0.1),2) -> 3.052480071
A41: L1-1F_Cpo | B41: 0 | C41: 1 | D41: 0 | E41: 0 | F41: 0 | G41: 0 | H41: 0 | I41: 0 | J41: 0 | K41: 1 | M41: =B41/(SUM(B$3:B$611)/1000000) -> 0 | N41: =C41/(SUM(C$3:C$611)/1000000) -> 1.40175191 | O41: =D41/(SUM(D$3:D$611)/1000000) -> 0 | P41: =E41/(SUM(E$3:E$611)/1000000) -> 0 | Q41: =F41/(SUM(F$3:F$611)/1000000) -> 0 | R41: =G41/(SUM(G$3:G$611)/1000000) -> 0 | S41: =H41/(SUM(H$3:H$611)/1000000) -> 0 | T41: =I41/(SUM(I$3:I$611)/1000000) -> 0 | U41: =J41/(SUM(J$3:J$611)/1000000) -> 0 | W41: =AVERAGE(M41:U41) -> 0.1557502122 | X41: =LOG((AVERAGE(M41:O41)+0.1)/(AVERAGE($S41:$U41)+0.1),2) -> 2.503986323 | Y41: =LOG((AVERAGE(P41:R41)+0.1)/(AVERAGE($S41:$U41)+0.1),2) -> 0
A42: RNIAP1aLTR | B42: 1 | C42: 0 | D42: 0 | E42: 0 | F42: 0 | G42: 0 | H42: 0 | I42: 0 | J42: 0 | K42: 1 | M42: =B42/(SUM(B$3:B$611)/1000000) -> 2.129104648 | N42: =C42/(SUM(C$3:C$611)/1000000) -> 0 | O42: =D42/(SUM(D$3:D$611)/1000000) -> 0 | P42: =E42/(SUM(E$3:E$611)/1000000) -> 0 | Q42: =F42/(SUM(F$3:F$611)/1000000) -> 0 | R42: =G42/(SUM(G$3:G$611)/1000000) -> 0 | S42: =H42/(SUM(H$3:H$611)/1000000) -> 0 | T42: =I42/(SUM(I$3:I$611)/1000000) -> 0 | U42: =J42/(SUM(J$3:J$611)/1000000) -> 0 | W42: =AVERAGE(M42:U42) -> 0.2365671831 | X42: =LOG((AVERAGE(M42:O42)+0.1)/(AVERAGE($S42:$U42)+0.1),2) -> 3.017390238 | Y42: =LOG((AVERAGE(P42:R42)+0.1)/(AVERAGE($S42:$U42)+0.1),2) -> 0
A43: RLTR12BD_Mm | B43: 1 | C43: 0 | D43: 0 | E43: 18 | F43: 0 | G43: 0 | H43: 0 | I43: 0 | J43: 0 | K43: 19 | M43: =B43/(SUM(B$3:B$611)/1000000) -> 2.129104648 | N43: =C43/(SUM(C$3:C$611)/1000000) -> 0 | O43: =D43/(SUM(D$3:D$611)/1000000) -> 0 | P43: =E43/(SUM(E$3:E$611)/1000000) -> 27.03441481 | Q43: =F43/(SUM(F$3:F$611)/1000000) -> 0 | R43: =G43/(SUM(G$3:G$611)/1000000) -> 0 | S43: =H43/(SUM(H$3:H$611)/1000000) -> 0 | T43: =I43/(SUM(I$3:I$611)/1000000) -> 0 | U43: =J43/(SUM(J$3:J$611)/1000000) -> 0 | W43: =AVERAGE(M43:U43) -> 3.240391051 | X43: =LOG((AVERAGE(M43:O43)+0.1)/(AVERAGE($S43:$U43)+0.1),2) -> 3.017390238 | Y43: =LOG((AVERAGE(P43:R43)+0.1)/(AVERAGE($S43:$U43)+0.1),2) -> 6.509612179
A44: RLTR17D_Mm | B44: 1 | C44: 0 | D44: 0 | E44: 0 | F44: 0 | G44: 0 | H44: 0 | I44: 0 | J44: 0 | K44: 1 | M44: =B44/(SUM(B$3:B$611)/1000000) -> 2.129104648 | N44: =C44/(SUM(C$3:C$611)/1000000) -> 0 | O44: =D44/(SUM(D$3:D$611)/1000000) -> 0 | P44: =E44/(SUM(E$3:E$611)/1000000) -> 0 | Q44: =F44/(SUM(F$3:F$611)/1000000) -> 0 | R44: =G44/(SUM(G$3:G$611)/1000000) -> 0 | S44: =H44/(SUM(H$3:H$611)/1000000) -> 0 | T44: =I44/(SUM(I$3:I$611)/1000000) -> 0 | U44: =J44/(SUM(J$3:J$611)/1000000) -> 0 | W44: =AVERAGE(M44:U44) -> 0.2365671831 | X44: =LOG((AVERAGE(M44:O44)+0.1)/(AVERAGE($S44:$U44)+0.1),2) -> 3.017390238 | Y44: =LOG((AVERAGE(P44:R44)+0.1)/(AVERAGE($S44:$U44)+0.1),2) -> 0
A45: HAL1-3B_Cpo | B45: 0 | C45: 1 | D45: 0 | E45: 0 | F45: 0 | G45: 0 | H45: 0 | I45: 0 | J45: 0 | K45: 1 | M45: =B45/(SUM(B$3:B$611)/1000000) -> 0 | N45: =C45/(SUM(C$3:C$611)/1000000) -> 1.40175191 | O45: =D45/(SUM(D$3:D$611)/1000000) -> 0 | P45: =E45/(SUM(E$3:E$611)/1000000) -> 0 | Q45: =F45/(SUM(F$3:F$611)/1000000) -> 0 | R45: =G45/(SUM(G$3:G$611)/1000000) -> 0 | S45: =H45/(SUM(H$3:H$611)/1000000) -> 0 | T45: =I45/(SUM(I$3:I$611)/1000000) -> 0 | U45: =J45/(SUM(J$3:J$611)/1000000) -> 0 | W45: =AVERAGE(M45:U45) -> 0.1557502122 | X45: =LOG((AVERAGE(M45:O45)+0.1)/(AVERAGE($S45:$U45)+0.1),2) -> 2.503986323 | Y45: =LOG((AVERAGE(P45:R45)+0.1)/(AVERAGE($S45:$U45)+0.1),2) -> 0
A46: MamRep1527 | B46: 1 | C46: 0 | D46: 0 | E46: 0 | F46: 0 | G46: 1 | H46: 0 | I46: 0 | J46: 0 | K46: 2 | M46: =B46/(SUM(B$3:B$611)/1000000) -> 2.129104648 | N46: =C46/(SUM(C$3:C$611)/1000000) -> 0 | O46: =D46/(SUM(D$3:D$611)/1000000) -> 0 | P46: =E46/(SUM(E$3:E$611)/1000000) -> 0 | Q46: =F46/(SUM(F$3:F$611)/1000000) -> 0 | R46: =G46/(SUM(G$3:G$611)/1000000) -> 0.5981319144 | S46: =H46/(SUM(H$3:H$611)/1000000) -> 0 | T46: =I46/(SUM(I$3:I$611)/1000000) -> 0 | U46: =J46/(SUM(J$3:J$611)/1000000) -> 0 | W46: =AVERAGE(M46:U46) -> 0.3030262847 | X46: =LOG((AVERAGE(M46:O46)+0.1)/(AVERAGE($S46:$U46)+0.1),2) -> 3.017390238 | Y46: =LOG((AVERAGE(P46:R46)+0.1)/(AVERAGE($S46:$U46)+0.1),2) -> 1.581964858
A47: RNERVK9 | B47: 1 | C47: 0 | D47: 0 | E47: 0 | F47: 0 | G47: 0 | H47: 0 | I47: 0 | J47: 0 | K47: 1 | M47: =B47/(SUM(B$3:B$611)/1000000) -> 2.129104648 | N47: =C47/(SUM(C$3:C$611)/1000000) -> 0 | O47: =D47/(SUM(D$3:D$611)/1000000) -> 0 | P47: =E47/(SUM(E$3:E$611)/1000000) -> 0 | Q47: =F47/(SUM(F$3:F$611)/1000000) -> 0 | R47: =G47/(SUM(G$3:G$611)/1000000) -> 0 | S47: =H47/(SUM(H$3:H$611)/1000000) -> 0 | T47: =I47/(SUM(I$3:I$611)/1000000) -> 0 | U47: =J47/(SUM(J$3:J$611)/1000000) -> 0 | W47: =AVERAGE(M47:U47) -> 0.2365671831 | X47: =LOG((AVERAGE(M47:O47)+0.1)/(AVERAGE($S47:$U47)+0.1),2) -> 3.017390238 | Y47: =LOG((AVERAGE(P47:R47)+0.1)/(AVERAGE($S47:$U47)+0.1),2) -> 0
A48: L1-4A_Cpo | B48: 0 | C48: 0 | D48: 1 | E48: 0 | F48: 0 | G48: 0 | H48: 0 | I48: 0 | J48: 0 | K48: 1 | M48: =B48/(SUM(B$3:B$611)/1000000) -> 0 | N48: =C48/(SUM(C$3:C$611)/1000000) -> 0 | O48: =D48/(SUM(D$3:D$611)/1000000) -> 2.272975234 | P48: =E48/(SUM(E$3:E$611)/1000000) -> 0 | Q48: =F48/(SUM(F$3:F$611)/1000000) -> 0 | R48: =G48/(SUM(G$3:G$611)/1000000) -> 0 | S48: =H48/(SUM(H$3:H$611)/1000000) -> 0 | T48: =I48/(SUM(I$3:I$611)/1000000) -> 0 | U48: =J48/(SUM(J$3:J$611)/1000000) -> 0 | W48: =AVERAGE(M48:U48) -> 0.2525528037 | X48: =LOG((AVERAGE(M48:O48)+0.1)/(AVERAGE($S48:$U48)+0.1),2) -> 3.100403165 | Y48: =LOG((AVERAGE(P48:R48)+0.1)/(AVERAGE($S48:$U48)+0.1),2) -> 0
A49: RLTR46A2 | B49: 1 | C49: 0 | D49: 0 | E49: 0 | F49: 0 | G49: 0 | H49: 0 | I49: 0 | J49: 0 | K49: 1 | M49: =B49/(SUM(B$3:B$611)/1000000) -> 2.129104648 | N49: =C49/(SUM(C$3:C$611)/1000000) -> 0 | O49: =D49/(SUM(D$3:D$611)/1000000) -> 0 | P49: =E49/(SUM(E$3:E$611)/1000000) -> 0 | Q49: =F49/(SUM(F$3:F$611)/1000000) -> 0 | R49: =G49/(SUM(G$3:G$611)/1000000) -> 0 | S49: =H49/(SUM(H$3:H$611)/1000000) -> 0 | T49: =I49/(SUM(I$3:I$611)/1000000) -> 0 | U49: =J49/(SUM(J$3:J$611)/1000000) -> 0 | W49: =AVERAGE(M49:U49) -> 0.2365671831 | X49: =LOG((AVERAGE(M49:O49)+0.1)/(AVERAGE($S49:$U49)+0.1),2) -> 3.017390238 | Y49: =LOG((AVERAGE(P49:R49)+0.1)/(AVERAGE($S49:$U49)+0.1),2) -> 0
A50: DIPODE3 | B50: 0 | C50: 1 | D50: 0 | E50: 0 | F50: 1 | G50: 0 | H50: 0 | I50: 0 | J50: 0 | K50: 2 | M50: =B50/(SUM(B$3:B$611)/1000000) -> 0 | N50: =C50/(SUM(C$3:C$611)/1000000) -> 1.40175191 | O50: =D50/(SUM(D$3:D$611)/1000000) -> 0 | P50: =E50/(SUM(E$3:E$611)/1000000) -> 0 | Q50: =F50/(SUM(F$3:F$611)/1000000) -> 1.732702861 | R50: =G50/(SUM(G$3:G$611)/1000000) -> 0 | S50: =H50/(SUM(H$3:H$611)/1000000) -> 0 | T50: =I50/(SUM(I$3:I$611)/1000000) -> 0 | U50: =J50/(SUM(J$3:J$611)/1000000) -> 0 | W50: =AVERAGE(M50:U50) -> 0.3482727522 | X50: =LOG((AVERAGE(M50:O50)+0.1)/(AVERAGE($S50:$U50)+0.1),2) -> 2.503986323 | Y50: =LOG((AVERAGE(P50:R50)+0.1)/(AVERAGE($S50:$U50)+0.1),2) -> 2.760364932
A51: RMER5 | B51: 0 | C51: 0 | D51: 1 | E51: 0 | F51: 0 | G51: 0 | H51: 0 | I51: 0 | J51: 0 | K51: 1 | M51: =B51/(SUM(B$3:B$611)/1000000) -> 0 | N51: =C51/(SUM(C$3:C$611)/1000000) -> 0 | O51: =D51/(SUM(D$3:D$611)/1000000) -> 2.272975234 | P51: =E51/(SUM(E$3:E$611)/1000000) -> 0 | Q51: =F51/(SUM(F$3:F$611)/1000000) -> 0 | R51: =G51/(SUM(G$3:G$611)/1000000) -> 0 | S51: =H51/(SUM(H$3:H$611)/1000000) -> 0 | T51: =I51/(SUM(I$3:I$611)/1000000) -> 0 | U51: =J51/(SUM(J$3:J$611)/1000000) -> 0 | W51: =AVERAGE(M51:U51) -> 0.2525528037 | X51: =LOG((AVERAGE(M51:O51)+0.1)/(AVERAGE($S51:$U51)+0.1),2) -> 3.100403165 | Y51: =LOG((AVERAGE(P51:R51)+0.1)/(AVERAGE($S51:$U51)+0.1),2) -> 0
A52: RNERVK8c | B52: 0 | C52: 1 | D52: 0 | E52: 0 | F52: 0 | G52: 0 | H52: 0 | I52: 0 | J52: 0 | K52: 1 | M52: =B52/(SUM(B$3:B$611)/1000000) -> 0 | N52: =C52/(SUM(C$3:C$611)/1000000) -> 1.40175191 | O52: =D52/(SUM(D$3:D$611)/1000000) -> 0 | P52: =E52/(SUM(E$3:E$611)/1000000) -> 0 | Q52: =F52/(SUM(F$3:F$611)/1000000) -> 0 | R52: =G52/(SUM(G$3:G$611)/1000000) -> 0 | S52: =H52/(SUM(H$3:H$611)/1000000) -> 0 | T52: =I52/(SUM(I$3:I$611)/1000000) -> 0 | U52: =J52/(SUM(J$3:J$611)/1000000) -> 0 | W52: =AVERAGE(M52:U52) -> 0.1557502122 | X52: =LOG((AVERAGE(M52:O52)+0.1)/(AVERAGE($S52:$U52)+0.1),2) -> 2.503986323 | Y52: =LOG((AVERAGE(P52:R52)+0.1)/(AVERAGE($S52:$U52)+0.1),2) -> 0
A53: RNLTR14-int | B53: 1 | C53: 0 | D53: 0 | E53: 0 | F53: 0 | G53: 0 | H53: 0 | I53: 0 | J53: 0 | K53: 1 | M53: =B53/(SUM(B$3:B$611)/1000000) -> 2.129104648 | N53: =C53/(SUM(C$3:C$611)/1000000) -> 0 | O53: =D53/(SUM(D$3:D$611)/1000000) -> 0 | P53: =E53/(SUM(E$3:E$611)/1000000) -> 0 | Q53: =F53/(SUM(F$3:F$611)/1000000) -> 0 | R53: =G53/(SUM(G$3:G$611)/1000000) -> 0 | S53: =H53/(SUM(H$3:H$611)/1000000) -> 0 | T53: =I53/(SUM(I$3:I$611)/1000000) -> 0 | U53: =J53/(SUM(J$3:J$611)/1000000) -> 0 | W53: =AVERAGE(M53:U53) -> 0.2365671831 | X53: =LOG((AVERAGE(M53:O53)+0.1)/(AVERAGE($S53:$U53)+0.1),2) -> 3.017390238 | Y53: =LOG((AVERAGE(P53:R53)+0.1)/(AVERAGE($S53:$U53)+0.1),2) -> 0
A54: GOLEM_B | B54: 1 | C54: 0 | D54: 0 | E54: 0 | F54: 0 | G54: 0 | H54: 0 | I54: 0 | J54: 0 | K54: 1 | M54: =B54/(SUM(B$3:B$611)/1000000) -> 2.129104648 | N54: =C54/(SUM(C$3:C$611)/1000000) -> 0 | O54: =D54/(SUM(D$3:D$611)/1000000) -> 0 | P54: =E54/(SUM(E$3:E$611)/1000000) -> 0 | Q54: =F54/(SUM(F$3:F$611)/1000000) -> 0 | R54: =G54/(SUM(G$3:G$611)/1000000) -> 0 | S54: =H54/(SUM(H$3:H$611)/1000000) -> 0 | T54: =I54/(SUM(I$3:I$611)/1000000) -> 0 | U54: =J54/(SUM(J$3:J$611)/1000000) -> 0 | W54: =AVERAGE(M54:U54) -> 0.2365671831 | X54: =LOG((AVERAGE(M54:O54)+0.1)/(AVERAGE($S54:$U54)+0.1),2) -> 3.017390238 | Y54: =LOG((AVERAGE(P54:R54)+0.1)/(AVERAGE($S54:$U54)+0.1),2) -> 0
A55: RLTR1_MM | B55: 0 | C55: 1 | D55: 0 | E55: 0 | F55: 0 | G55: 0 | H55: 0 | I55: 0 | J55: 0 | K55: 1 | M55: =B55/(SUM(B$3:B$611)/1000000) -> 0 | N55: =C55/(SUM(C$3:C$611)/1000000) -> 1.40175191 | O55: =D55/(SUM(D$3:D$611)/1000000) -> 0 | P55: =E55/(SUM(E$3:E$611)/1000000) -> 0 | Q55: =F55/(SUM(F$3:F$611)/1000000) -> 0 | R55: =G55/(SUM(G$3:G$611)/1000000) -> 0 | S55: =H55/(SUM(H$3:H$611)/1000000) -> 0 | T55: =I55/(SUM(I$3:I$611)/1000000) -> 0 | U55: =J55/(SUM(J$3:J$611)/1000000) -> 0 | W55: =AVERAGE(M55:U55) -> 0.1557502122 | X55: =LOG((AVERAGE(M55:O55)+0.1)/(AVERAGE($S55:$U55)+0.1),2) -> 2.503986323 | Y55: =LOG((AVERAGE(P55:R55)+0.1)/(AVERAGE($S55:$U55)+0.1),2) -> 0
A56: L1_Rod_orf2 | B56: 1 | C56: 0 | D56: 0 | E56: 1 | F56: 1 | G56: 2 | H56: 0 | I56: 0 | J56: 0 | K56: 5 | M56: =B56/(SUM(B$3:B$611)/1000000) -> 2.129104648 | N56: =C56/(SUM(C$3:C$611)/1000000) -> 0 | O56: =D56/(SUM(D$3:D$611)/1000000) -> 0 | P56: =E56/(SUM(E$3:E$611)/1000000) -> 1.501911934 | Q56: =F56/(SUM(F$3:F$611)/1000000) -> 1.732702861 | R56: =G56/(SUM(G$3:G$611)/1000000) -> 1.196263829 | S56: =H56/(SUM(H$3:H$611)/1000000) -> 0 | T56: =I56/(SUM(I$3:I$611)/1000000) -> 0 | U56: =J56/(SUM(J$3:J$611)/1000000) -> 0 | W56: =AVERAGE(M56:U56) -> 0.7288870301 | X56: =LOG((AVERAGE(M56:O56)+0.1)/(AVERAGE($S56:$U56)+0.1),2) -> 3.017390238 | Y56: =LOG((AVERAGE(P56:R56)+0.1)/(AVERAGE($S56:$U56)+0.1),2) -> 3.979073741
A57: MLTR25C | B57: 1 | C57: 0 | D57: 0 | E57: 18 | F57: 2 | G57: 0 | H57: 0 | I57: 0 | J57: 0 | K57: 21 | M57: =B57/(SUM(B$3:B$611)/1000000) -> 2.129104648 | N57: =C57/(SUM(C$3:C$611)/1000000) -> 0 | O57: =D57/(SUM(D$3:D$611)/1000000) -> 0 | P57: =E57/(SUM(E$3:E$611)/1000000) -> 27.03441481 | Q57: =F57/(SUM(F$3:F$611)/1000000) -> 3.465405721 | R57: =G57/(SUM(G$3:G$611)/1000000) -> 0 | S57: =H57/(SUM(H$3:H$611)/1000000) -> 0 | T57: =I57/(SUM(I$3:I$611)/1000000) -> 0 | U57: =J57/(SUM(J$3:J$611)/1000000) -> 0 | W57: =AVERAGE(M57:U57) -> 3.625436131 | X57: =LOG((AVERAGE(M57:O57)+0.1)/(AVERAGE($S57:$U57)+0.1),2) -> 3.017390238 | Y57: =LOG((AVERAGE(P57:R57)+0.1)/(AVERAGE($S57:$U57)+0.1),2) -> 6.681815633
A58: SP-D-Geo | B58: 0 | C58: 1 | D58: 0 | E58: 0 | F58: 1 | G58: 0 | H58: 0 | I58: 0 | J58: 0 | K58: 2 | M58: =B58/(SUM(B$3:B$611)/1000000) -> 0 | N58: =C58/(SUM(C$3:C$611)/1000000) -> 1.40175191 | O58: =D58/(SUM(D$3:D$611)/1000000) -> 0 | P58: =E58/(SUM(E$3:E$611)/1000000) -> 0 | Q58: =F58/(SUM(F$3:F$611)/1000000) -> 1.732702861 | R58: =G58/(SUM(G$3:G$611)/1000000) -> 0 | S58: =H58/(SUM(H$3:H$611)/1000000) -> 0 | T58: =I58/(SUM(I$3:I$611)/1000000) -> 0 | U58: =J58/(SUM(J$3:J$611)/1000000) -> 0 | W58: =AVERAGE(M58:U58) -> 0.3482727522 | X58: =LOG((AVERAGE(M58:O58)+0.1)/(AVERAGE($S58:$U58)+0.1),2) -> 2.503986323 | Y58: =LOG((AVERAGE(P58:R58)+0.1)/(AVERAGE($S58:$U58)+0.1),2) -> 2.760364932
A59: PB1D10 | B59: 0 | C59: 5 | D59: 0 | E59: 0 | F59: 0 | G59: 0 | H59: 0 | I59: 0 | J59: 1 | K59: 6 | M59: =B59/(SUM(B$3:B$611)/1000000) -> 0 | N59: =C59/(SUM(C$3:C$611)/1000000) -> 7.008759548 | O59: =D59/(SUM(D$3:D$611)/1000000) -> 0 | P59: =E59/(SUM(E$3:E$611)/1000000) -> 0 | Q59: =F59/(SUM(F$3:F$611)/1000000) -> 0 | R59: =G59/(SUM(G$3:G$611)/1000000) -> 0 | S59: =H59/(SUM(H$3:H$611)/1000000) -> 0 | T59: =I59/(SUM(I$3:I$611)/1000000) -> 0 | U59: =J59/(SUM(J$3:J$611)/1000000) -> 1.858438986 | W59: =AVERAGE(M59:U59) -> 0.9852442815 | X59: =LOG((AVERAGE(M59:O59)+0.1)/(AVERAGE($S59:$U59)+0.1),2) -> 1.759638259 | Y59: =LOG((AVERAGE(P59:R59)+0.1)/(AVERAGE($S59:$U59)+0.1),2) -> -2.846953906
A60: RLTR9B2 | B60: 23 | C60: 50 | D60: 24 | E60: 6 | F60: 1 | G60: 1 | H60: 19 | I60: 5 | J60: 0 | K60: 129 | M60: =B60/(SUM(B$3:B$611)/1000000) -> 48.9694069 | N60: =C60/(SUM(C$3:C$611)/1000000) -> 70.08759548 | O60: =D60/(SUM(D$3:D$611)/1000000) -> 54.55140561 | P60: =E60/(SUM(E$3:E$611)/1000000) -> 9.011471603 | Q60: =F60/(SUM(F$3:F$611)/1000000) -> 1.732702861 | R60: =G60/(SUM(G$3:G$611)/1000000) -> 0.5981319144 | S60: =H60/(SUM(H$3:H$611)/1000000) -> 29.38865412 | T60: =I60/(SUM(I$3:I$611)/1000000) -> 13.77209388 | U60: =J60/(SUM(J$3:J$611)/1000000) -> 0 | W60: =AVERAGE(M60:U60) -> 25.34571804 | X60: =LOG((AVERAGE(M60:O60)+0.1)/(AVERAGE($S60:$U60)+0.1),2) -> 2.000542774 | Y60: =LOG((AVERAGE(P60:R60)+0.1)/(AVERAGE($S60:$U60)+0.1),2) -> -1.900336116
A61: RMER13A1 | B61: 0 | C61: 0 | D61: 24 | E61: 8 | F61: 0 | G61: 1 | H61: 6 | I61: 0 | J61: 0 | K61: 39 | M61: =B61/(SUM(B$3:B$611)/1000000) -> 0 | N61: =C61/(SUM(C$3:C$611)/1000000) -> 0 | O61: =D61/(SUM(D$3:D$611)/1000000) -> 54.55140561 | P61: =E61/(SUM(E$3:E$611)/1000000) -> 12.01529547 | Q61: =F61/(SUM(F$3:F$611)/1000000) -> 0 | R61: =G61/(SUM(G$3:G$611)/1000000) -> 0.5981319144 | S61: =H61/(SUM(H$3:H$611)/1000000) -> 9.280627618 | T61: =I61/(SUM(I$3:I$611)/1000000) -> 0 | U61: =J61/(SUM(J$3:J$611)/1000000) -> 0 | W61: =AVERAGE(M61:U61) -> 8.493940068 | X61: =LOG((AVERAGE(M61:O61)+0.1)/(AVERAGE($S61:$U61)+0.1),2) -> 2.517336517 | Y61: =LOG((AVERAGE(P61:R61)+0.1)/(AVERAGE($S61:$U61)+0.1),2) -> 0.4306798871
A62: L1R2_RN | B62: 2 | C62: 21 | D62: 24 | E62: 4 | F62: 3 | G62: 1 | H62: 3 | I62: 8 | J62: 1 | K62: 67 | M62: =B62/(SUM(B$3:B$611)/1000000) -> 4.258209295 | N62: =C62/(SUM(C$3:C$611)/1000000) -> 29.4367901 | O62: =D62/(SUM(D$3:D$611)/1000000) -> 54.55140561 | P62: =E62/(SUM(E$3:E$611)/1000000) -> 6.007647736 | Q62: =F62/(SUM(F$3:F$611)/1000000) -> 5.198108582 | R62: =G62/(SUM(G$3:G$611)/1000000) -> 0.5981319144 | S62: =H62/(SUM(H$3:H$611)/1000000) -> 4.640313809 | T62: =I62/(SUM(I$3:I$611)/1000000) -> 22.03535021 | U62: =J62/(SUM(J$3:J$611)/1000000) -> 1.858438986 | W62: =AVERAGE(M62:U62) -> 14.28715514 | X62: =LOG((AVERAGE(M62:O62)+0.1)/(AVERAGE($S62:$U62)+0.1),2) -> 1.618657592 | Y62: =LOG((AVERAGE(P62:R62)+0.1)/(AVERAGE($S62:$U62)+0.1),2) -> -1.252305572
A63: RLTR27_MM | B63: 0 | C63: 11 | D63: 0 | E63: 0 | F63: 0 | G63: 0 | H63: 1 | I63: 2 | J63: 0 | K63: 14 | M63: =B63/(SUM(B$3:B$611)/1000000) -> 0 | N63: =C63/(SUM(C$3:C$611)/1000000) -> 15.419271 | O63: =D63/(SUM(D$3:D$611)/1000000) -> 0 | P63: =E63/(SUM(E$3:E$611)/1000000) -> 0 | Q63: =F63/(SUM(F$3:F$611)/1000000) -> 0 | R63: =G63/(SUM(G$3:G$611)/1000000) -> 0 | S63: =H63/(SUM(H$3:H$611)/1000000) -> 1.54677127 | T63: =I63/(SUM(I$3:I$611)/1000000) -> 5.508837553 | U63: =J63/(SUM(J$3:J$611)/1000000) -> 0 | W63: =AVERAGE(M63:U63) -> 2.49720887 | X63: =LOG((AVERAGE(M63:O63)+0.1)/(AVERAGE($S63:$U63)+0.1),2) -> 1.09561765 | Y63: =LOG((AVERAGE(P63:R63)+0.1)/(AVERAGE($S63:$U63)+0.1),2) -> -4.615810352
A64: RMER10A | B64: 0 | C64: 4 | D64: 0 | E64: 2 | F64: 2 | G64: 0 | H64: 0 | I64: 0 | J64: 1 | K64: 9 | M64: =B64/(SUM(B$3:B$611)/1000000) -> 0 | N64: =C64/(SUM(C$3:C$611)/1000000) -> 5.607007638 | O64: =D64/(SUM(D$3:D$611)/1000000) -> 0 | P64: =E64/(SUM(E$3:E$611)/1000000) -> 3.003823868 | Q64: =F64/(SUM(F$3:F$611)/1000000) -> 3.465405721 | R64: =G64/(SUM(G$3:G$611)/1000000) -> 0 | S64: =H64/(SUM(H$3:H$611)/1000000) -> 0 | T64: =I64/(SUM(I$3:I$611)/1000000) -> 0 | U64: =J64/(SUM(J$3:J$611)/1000000) -> 1.858438986 | W64: =AVERAGE(M64:U64) -> 1.548297357 | X64: =LOG((AVERAGE(M64:O64)+0.1)/(AVERAGE($S64:$U64)+0.1),2) -> 1.452439166 | Y64: =LOG((AVERAGE(P64:R64)+0.1)/(AVERAGE($S64:$U64)+0.1),2) -> 1.649003337
A65: RLTR9D2 | B65: 2 | C65: 14 | D65: 0 | E65: 5 | F65: 2 | G65: 0 | H65: 3 | I65: 2 | J65: 0 | K65: 28 | M65: =B65/(SUM(B$3:B$611)/1000000) -> 4.258209295 | N65: =C65/(SUM(C$3:C$611)/1000000) -> 19.62452673 | O65: =D65/(SUM(D$3:D$611)/1000000) -> 0 | P65: =E65/(SUM(E$3:E$611)/1000000) -> 7.509559669 | Q65: =F65/(SUM(F$3:F$611)/1000000) -> 3.465405721 | R65: =G65/(SUM(G$3:G$611)/1000000) -> 0 | S65: =H65/(SUM(H$3:H$611)/1000000) -> 4.640313809 | T65: =I65/(SUM(I$3:I$611)/1000000) -> 5.508837553 | U65: =J65/(SUM(J$3:J$611)/1000000) -> 0 | W65: =AVERAGE(M65:U65) -> 5.00076142 | X65: =LOG((AVERAGE(M65:O65)+0.1)/(AVERAGE($S65:$U65)+0.1),2) -> 1.210591703 | Y65: =LOG((AVERAGE(P65:R65)+0.1)/(AVERAGE($S65:$U65)+0.1),2) -> 0.1097372279
A66: RLTR11B | B66: 4 | C66: 18 | D66: 0 | E66: 0 | F66: 2 | G66: 47 | H66: 6 | I66: 0 | J66: 1 | K66: 78 | M66: =B66/(SUM(B$3:B$611)/1000000) -> 8.51641859 | N66: =C66/(SUM(C$3:C$611)/1000000) -> 25.23153437 | O66: =D66/(SUM(D$3:D$611)/1000000) -> 0 | P66: =E66/(SUM(E$3:E$611)/1000000) -> 0 | Q66: =F66/(SUM(F$3:F$611)/1000000) -> 3.465405721 | R66: =G66/(SUM(G$3:G$611)/1000000) -> 28.11219998 | S66: =H66/(SUM(H$3:H$611)/1000000) -> 9.280627618 | T66: =I66/(SUM(I$3:I$611)/1000000) -> 0 | U66: =J66/(SUM(J$3:J$611)/1000000) -> 1.858438986 | W66: =AVERAGE(M66:U66) -> 8.496069474 | X66: =LOG((AVERAGE(M66:O66)+0.1)/(AVERAGE($S66:$U66)+0.1),2) -> 1.573598726 | Y66: =LOG((AVERAGE(P66:R66)+0.1)/(AVERAGE($S66:$U66)+0.1),2) -> 1.478573937
A67: MurERV4 | B67: 10 | C67: 30 | D67: 67 | E67: 42 | F67: 33 | G67: 0 | H67: 15 | I67: 21 | J67: 0 | K67: 218 | M67: =B67/(SUM(B$3:B$611)/1000000) -> 21.29104648 | N67: =C67/(SUM(C$3:C$611)/1000000) -> 42.05255729 | O67: =D67/(SUM(D$3:D$611)/1000000) -> 152.2893407 | P67: =E67/(SUM(E$3:E$611)/1000000) -> 63.08030122 | Q67: =F67/(SUM(F$3:F$611)/1000000) -> 57.1791944 | R67: =G67/(SUM(G$3:G$611)/1000000) -> 0 | S67: =H67/(SUM(H$3:H$611)/1000000) -> 23.20156904 | T67: =I67/(SUM(I$3:I$611)/1000000) -> 57.8427943 | U67: =J67/(SUM(J$3:J$611)/1000000) -> 0 | W67: =AVERAGE(M67:U67) -> 46.32631149 | X67: =LOG((AVERAGE(M67:O67)+0.1)/(AVERAGE($S67:$U67)+0.1),2) -> 1.408469084 | Y67: =LOG((AVERAGE(P67:R67)+0.1)/(AVERAGE($S67:$U67)+0.1),2) -> 0.5676310015
A68: RLTR8 | B68: 9 | C68: 1 | D68: 22 | E68: 9 | F68: 1 | G68: 0 | H68: 0 | I68: 3 | J68: 8 | K68: 53 | M68: =B68/(SUM(B$3:B$611)/1000000) -> 19.16194183 | N68: =C68/(SUM(C$3:C$611)/1000000) -> 1.40175191 | O68: =D68/(SUM(D$3:D$611)/1000000) -> 50.00545514 | P68: =E68/(SUM(E$3:E$611)/1000000) -> 13.51720741 | Q68: =F68/(SUM(F$3:F$611)/1000000) -> 1.732702861 | R68: =G68/(SUM(G$3:G$611)/1000000) -> 0 | S68: =H68/(SUM(H$3:H$611)/1000000) -> 0 | T68: =I68/(SUM(I$3:I$611)/1000000) -> 8.263256329 | U68: =J68/(SUM(J$3:J$611)/1000000) -> 14.86751188 | W68: =AVERAGE(M68:U68) -> 12.10553637 | X68: =LOG((AVERAGE(M68:O68)+0.1)/(AVERAGE($S68:$U68)+0.1),2) -> 1.596753467 | Y68: =LOG((AVERAGE(P68:R68)+0.1)/(AVERAGE($S68:$U68)+0.1),2) -> -0.591498001
A69: RLTR31_Rn1 | B69: 23 | C69: 92 | D69: 21 | E69: 47 | F69: 24 | G69: 8 | H69: 14 | I69: 10 | J69: 24 | K69: 263 | M69: =B69/(SUM(B$3:B$611)/1000000) -> 48.9694069 | N69: =C69/(SUM(C$3:C$611)/1000000) -> 128.9611757 | O69: =D69/(SUM(D$3:D$611)/1000000) -> 47.73247991 | P69: =E69/(SUM(E$3:E$611)/1000000) -> 70.58986089 | Q69: =F69/(SUM(F$3:F$611)/1000000) -> 41.58486865 | R69: =G69/(SUM(G$3:G$611)/1000000) -> 4.785055315 | S69: =H69/(SUM(H$3:H$611)/1000000) -> 21.65479778 | T69: =I69/(SUM(I$3:I$611)/1000000) -> 27.54418776 | U69: =J69/(SUM(J$3:J$611)/1000000) -> 44.60253565 | W69: =AVERAGE(M69:U69) -> 48.4915965 | X69: =LOG((AVERAGE(M69:O69)+0.1)/(AVERAGE($S69:$U69)+0.1),2) -> 1.263797009 | Y69: =LOG((AVERAGE(P69:R69)+0.1)/(AVERAGE($S69:$U69)+0.1),2) -> 0.3174183648
A70: RLTR13D6 | B70: 37 | C70: 18 | D70: 1 | E70: 18 | F70: 16 | G70: 122 | H70: 14 | I70: 3 | J70: 3 | K70: 232 | M70: =B70/(SUM(B$3:B$611)/1000000) -> 78.77687196 | N70: =C70/(SUM(C$3:C$611)/1000000) -> 25.23153437 | O70: =D70/(SUM(D$3:D$611)/1000000) -> 2.272975234 | P70: =E70/(SUM(E$3:E$611)/1000000) -> 27.03441481 | Q70: =F70/(SUM(F$3:F$611)/1000000) -> 27.72324577 | R70: =G70/(SUM(G$3:G$611)/1000000) -> 72.97209356 | S70: =H70/(SUM(H$3:H$611)/1000000) -> 21.65479778 | T70: =I70/(SUM(I$3:I$611)/1000000) -> 8.263256329 | U70: =J70/(SUM(J$3:J$611)/1000000) -> 5.575316957 | W70: =AVERAGE(M70:U70) -> 29.9449452 | X70: =LOG((AVERAGE(M70:O70)+0.1)/(AVERAGE($S70:$U70)+0.1),2) -> 1.574191109 | Y70: =LOG((AVERAGE(P70:R70)+0.1)/(AVERAGE($S70:$U70)+0.1),2) -> 1.838714802
A71: B1_Mur1 | B71: 24 | C71: 60 | D71: 17 | E71: 61 | F71: 19 | G71: 60 | H71: 8 | I71: 25 | J71: 6 | K71: 280 | M71: =B71/(SUM(B$3:B$611)/1000000) -> 51.09851154 | N71: =C71/(SUM(C$3:C$611)/1000000) -> 84.10511457 | O71: =D71/(SUM(D$3:D$611)/1000000) -> 38.64057897 | P71: =E71/(SUM(E$3:E$611)/1000000) -> 91.61662797 | Q71: =F71/(SUM(F$3:F$611)/1000000) -> 32.92135435 | R71: =G71/(SUM(G$3:G$611)/1000000) -> 35.88791486 | S71: =H71/(SUM(H$3:H$611)/1000000) -> 12.37417016 | T71: =I71/(SUM(I$3:I$611)/1000000) -> 68.86046941 | U71: =J71/(SUM(J$3:J$611)/1000000) -> 11.15063391 | W71: =AVERAGE(M71:U71) -> 47.40615286 | X71: =LOG((AVERAGE(M71:O71)+0.1)/(AVERAGE($S71:$U71)+0.1),2) -> 0.9098704297 | Y71: =LOG((AVERAGE(P71:R71)+0.1)/(AVERAGE($S71:$U71)+0.1),2) -> 0.7941903678
A72: LX6 | B72: 0 | C72: 2 | D72: 1 | E72: 0 | F72: 0 | G72: 0 | H72: 0 | I72: 0 | J72: 1 | K72: 4 | M72: =B72/(SUM(B$3:B$611)/1000000) -> 0 | N72: =C72/(SUM(C$3:C$611)/1000000) -> 2.803503819 | O72: =D72/(SUM(D$3:D$611)/1000000) -> 2.272975234 | P72: =E72/(SUM(E$3:E$611)/1000000) -> 0 | Q72: =F72/(SUM(F$3:F$611)/1000000) -> 0 | R72: =G72/(SUM(G$3:G$611)/1000000) -> 0 | S72: =H72/(SUM(H$3:H$611)/1000000) -> 0 | T72: =I72/(SUM(I$3:I$611)/1000000) -> 0 | U72: =J72/(SUM(J$3:J$611)/1000000) -> 1.858438986 | W72: =AVERAGE(M72:U72) -> 0.7705464487 | X72: =LOG((AVERAGE(M72:O72)+0.1)/(AVERAGE($S72:$U72)+0.1),2) -> 1.316673379 | Y72: =LOG((AVERAGE(P72:R72)+0.1)/(AVERAGE($S72:$U72)+0.1),2) -> -2.846953906
A73: RMER17A_Rn-LTR | B73: 2 | C73: 1 | D73: 0 | E73: 0 | F73: 1 | G73: 0 | H73: 1 | I73: 0 | J73: 0 | K73: 5 | M73: =B73/(SUM(B$3:B$611)/1000000) -> 4.258209295 | N73: =C73/(SUM(C$3:C$611)/1000000) -> 1.40175191 | O73: =D73/(SUM(D$3:D$611)/1000000) -> 0 | P73: =E73/(SUM(E$3:E$611)/1000000) -> 0 | Q73: =F73/(SUM(F$3:F$611)/1000000) -> 1.732702861 | R73: =G73/(SUM(G$3:G$611)/1000000) -> 0 | S73: =H73/(SUM(H$3:H$611)/1000000) -> 1.54677127 | T73: =I73/(SUM(I$3:I$611)/1000000) -> 0 | U73: =J73/(SUM(J$3:J$611)/1000000) -> 0 | W73: =AVERAGE(M73:U73) -> 0.9932705928 | X73: =LOG((AVERAGE(M73:O73)+0.1)/(AVERAGE($S73:$U73)+0.1),2) -> 1.690297746 | Y73: =LOG((AVERAGE(P73:R73)+0.1)/(AVERAGE($S73:$U73)+0.1),2) -> 0.1383941446
A74: B1_Mur2 | B74: 24 | C74: 62 | D74: 17 | E74: 61 | F74: 22 | G74: 61 | H74: 10 | I74: 25 | J74: 6 | K74: 288 | M74: =B74/(SUM(B$3:B$611)/1000000) -> 51.09851154 | N74: =C74/(SUM(C$3:C$611)/1000000) -> 86.90861839 | O74: =D74/(SUM(D$3:D$611)/1000000) -> 38.64057897 | P74: =E74/(SUM(E$3:E$611)/1000000) -> 91.61662797 | Q74: =F74/(SUM(F$3:F$611)/1000000) -> 38.11946293 | R74: =G74/(SUM(G$3:G$611)/1000000) -> 36.48604678 | S74: =H74/(SUM(H$3:H$611)/1000000) -> 15.4677127 | T74: =I74/(SUM(I$3:I$611)/1000000) -> 68.86046941 | U74: =J74/(SUM(J$3:J$611)/1000000) -> 11.15063391 | W74: =AVERAGE(M74:U74) -> 48.70540696 | X74: =LOG((AVERAGE(M74:O74)+0.1)/(AVERAGE($S74:$U74)+0.1),2) -> 0.8855445753 | Y74: =LOG((AVERAGE(P74:R74)+0.1)/(AVERAGE($S74:$U74)+0.1),2) -> 0.7979354771
A75: IAPEY4_I | B75: 1683 | C75: 2404 | D75: 1470 | E75: 3430 | F75: 3251 | G75: 7306 | H75: 1079 | I75: 431 | J75: 733 | K75: 21787 | M75: =B75/(SUM(B$3:B$611)/1000000) -> 3583.283122 | N75: =C75/(SUM(C$3:C$611)/1000000) -> 3369.811591 | O75: =D75/(SUM(D$3:D$611)/1000000) -> 3341.273593 | P75: =E75/(SUM(E$3:E$611)/1000000) -> 5151.557933 | Q75: =F75/(SUM(F$3:F$611)/1000000) -> 5633.017 | R75: =G75/(SUM(G$3:G$611)/1000000) -> 4369.951767 | S75: =H75/(SUM(H$3:H$611)/1000000) -> 1668.9662 | T75: =I75/(SUM(I$3:I$611)/1000000) -> 1187.154493 | U75: =J75/(SUM(J$3:J$611)/1000000) -> 1362.235776 | W75: =AVERAGE(M75:U75) -> 3296.361275 | X75: =LOG((AVERAGE(M75:O75)+0.1)/(AVERAGE($S75:$U75)+0.1),2) -> 1.28704183 | Y75: =LOG((AVERAGE(P75:R75)+0.1)/(AVERAGE($S75:$U75)+0.1),2) -> 1.844921838
A76: IAPEY4_LTR | B76: 83 | C76: 114 | D76: 78 | E76: 171 | F76: 125 | G76: 419 | H76: 83 | I76: 15 | J76: 16 | K76: 1104 | M76: =B76/(SUM(B$3:B$611)/1000000) -> 176.7156858 | N76: =C76/(SUM(C$3:C$611)/1000000) -> 159.7997177 | O76: =D76/(SUM(D$3:D$611)/1000000) -> 177.2920682 | P76: =E76/(SUM(E$3:E$611)/1000000) -> 256.8269407 | Q76: =F76/(SUM(F$3:F$611)/1000000) -> 216.5878576 | R76: =G76/(SUM(G$3:G$611)/1000000) -> 250.6172721 | S76: =H76/(SUM(H$3:H$611)/1000000) -> 128.3820154 | T76: =I76/(SUM(I$3:I$611)/1000000) -> 41.31628164 | U76: =J76/(SUM(J$3:J$611)/1000000) -> 29.73502377 | W76: =AVERAGE(M76:U76) -> 159.6969848 | X76: =LOG((AVERAGE(M76:O76)+0.1)/(AVERAGE($S76:$U76)+0.1),2) -> 1.363994947 | Y76: =LOG((AVERAGE(P76:R76)+0.1)/(AVERAGE($S76:$U76)+0.1),2) -> 1.858576221
A77: ERVB4_2-LTR_MM | B77: 14 | C77: 20 | D77: 0 | E77: 0 | F77: 9 | G77: 1 | H77: 6 | I77: 1 | J77: 7 | K77: 58 | M77: =B77/(SUM(B$3:B$611)/1000000) -> 29.80746507 | N77: =C77/(SUM(C$3:C$611)/1000000) -> 28.03503819 | O77: =D77/(SUM(D$3:D$611)/1000000) -> 0 | P77: =E77/(SUM(E$3:E$611)/1000000) -> 0 | Q77: =F77/(SUM(F$3:F$611)/1000000) -> 15.59432574 | R77: =G77/(SUM(G$3:G$611)/1000000) -> 0.5981319144 | S77: =H77/(SUM(H$3:H$611)/1000000) -> 9.280627618 | T77: =I77/(SUM(I$3:I$611)/1000000) -> 2.754418776 | U77: =J77/(SUM(J$3:J$611)/1000000) -> 13.0090729 | W77: =AVERAGE(M77:U77) -> 11.00878669 | X77: =LOG((AVERAGE(M77:O77)+0.1)/(AVERAGE($S77:$U77)+0.1),2) -> 1.197942155 | Y77: =LOG((AVERAGE(P77:R77)+0.1)/(AVERAGE($S77:$U77)+0.1),2) -> -0.6198446301
A78: RLTR50B | B78: 5 | C78: 17 | D78: 0 | E78: 23 | F78: 3 | G78: 0 | H78: 5 | I78: 4 | J78: 0 | K78: 57 | M78: =B78/(SUM(B$3:B$611)/1000000) -> 10.64552324 | N78: =C78/(SUM(C$3:C$611)/1000000) -> 23.82978246 | O78: =D78/(SUM(D$3:D$611)/1000000) -> 0 | P78: =E78/(SUM(E$3:E$611)/1000000) -> 34.54397448 | Q78: =F78/(SUM(F$3:F$611)/1000000) -> 5.198108582 | R78: =G78/(SUM(G$3:G$611)/1000000) -> 0 | S78: =H78/(SUM(H$3:H$611)/1000000) -> 7.733856348 | T78: =I78/(SUM(I$3:I$611)/1000000) -> 11.01767511 | U78: =J78/(SUM(J$3:J$611)/1000000) -> 0 | W78: =AVERAGE(M78:U78) -> 10.32988002 | X78: =LOG((AVERAGE(M78:O78)+0.1)/(AVERAGE($S78:$U78)+0.1),2) -> 0.868156224 | Y78: =LOG((AVERAGE(P78:R78)+0.1)/(AVERAGE($S78:$U78)+0.1),2) -> 1.071610055
A79: RLTR9E | B79: 0 | C79: 9 | D79: 1 | E79: 5 | F79: 6 | G79: 0 | H79: 2 | I79: 1 | J79: 1 | K79: 25 | M79: =B79/(SUM(B$3:B$611)/1000000) -> 0 | N79: =C79/(SUM(C$3:C$611)/1000000) -> 12.61576719 | O79: =D79/(SUM(D$3:D$611)/1000000) -> 2.272975234 | P79: =E79/(SUM(E$3:E$611)/1000000) -> 7.509559669 | Q79: =F79/(SUM(F$3:F$611)/1000000) -> 10.39621716 | R79: =G79/(SUM(G$3:G$611)/1000000) -> 0 | S79: =H79/(SUM(H$3:H$611)/1000000) -> 3.093542539 | T79: =I79/(SUM(I$3:I$611)/1000000) -> 2.754418776 | U79: =J79/(SUM(J$3:J$611)/1000000) -> 1.858438986 | W79: =AVERAGE(M79:U79) -> 4.500102173 | X79: =LOG((AVERAGE(M79:O79)+0.1)/(AVERAGE($S79:$U79)+0.1),2) -> 0.9237767701 | Y79: =LOG((AVERAGE(P79:R79)+0.1)/(AVERAGE($S79:$U79)+0.1),2) -> 1.185170647
A80: BGLII_B2 | B80: 10 | C80: 33 | D80: 5 | E80: 36 | F80: 21 | G80: 3 | H80: 15 | I80: 1 | J80: 4 | K80: 128 | M80: =B80/(SUM(B$3:B$611)/1000000) -> 21.29104648 | N80: =C80/(SUM(C$3:C$611)/1000000) -> 46.25781301 | O80: =D80/(SUM(D$3:D$611)/1000000) -> 11.36487617 | P80: =E80/(SUM(E$3:E$611)/1000000) -> 54.06882962 | Q80: =F80/(SUM(F$3:F$611)/1000000) -> 36.38676007 | R80: =G80/(SUM(G$3:G$611)/1000000) -> 1.794395743 | S80: =H80/(SUM(H$3:H$611)/1000000) -> 23.20156904 | T80: =I80/(SUM(I$3:I$611)/1000000) -> 2.754418776 | U80: =J80/(SUM(J$3:J$611)/1000000) -> 7.433755942 | W80: =AVERAGE(M80:U80) -> 22.72816276 | X80: =LOG((AVERAGE(M80:O80)+0.1)/(AVERAGE($S80:$U80)+0.1),2) -> 1.23344116 | Y80: =LOG((AVERAGE(P80:R80)+0.1)/(AVERAGE($S80:$U80)+0.1),2) -> 1.457923307
A81: ERV1-4_MM-LTR | B81: 449 | C81: 665 | D81: 372 | E81: 311 | F81: 233 | G81: 316 | H81: 291 | I81: 174 | J81: 186 | K81: 2997 | M81: =B81/(SUM(B$3:B$611)/1000000) -> 955.9679868 | N81: =C81/(SUM(C$3:C$611)/1000000) -> 932.1650198 | O81: =D81/(SUM(D$3:D$611)/1000000) -> 845.5467869 | P81: =E81/(SUM(E$3:E$611)/1000000) -> 467.0946114 | Q81: =F81/(SUM(F$3:F$611)/1000000) -> 403.7197665 | R81: =G81/(SUM(G$3:G$611)/1000000) -> 189.009685 | S81: =H81/(SUM(H$3:H$611)/1000000) -> 450.1104395 | T81: =I81/(SUM(I$3:I$611)/1000000) -> 479.2688671 | U81: =J81/(SUM(J$3:J$611)/1000000) -> 345.6696513 | W81: =AVERAGE(M81:U81) -> 563.1725349 | X81: =LOG((AVERAGE(M81:O81)+0.1)/(AVERAGE($S81:$U81)+0.1),2) -> 1.100110532 | Y81: =LOG((AVERAGE(P81:R81)+0.1)/(AVERAGE($S81:$U81)+0.1),2) -> -0.2666589392
A82: L1VL1_5 | B82: 30 | C82: 57 | D82: 43 | E82: 34 | F82: 37 | G82: 6 | H82: 45 | I82: 1 | J82: 11 | K82: 264 | M82: =B82/(SUM(B$3:B$611)/1000000) -> 63.87313943 | N82: =C82/(SUM(C$3:C$611)/1000000) -> 79.89985884 | O82: =D82/(SUM(D$3:D$611)/1000000) -> 97.73793505 | P82: =E82/(SUM(E$3:E$611)/1000000) -> 51.06500575 | Q82: =F82/(SUM(F$3:F$611)/1000000) -> 64.11000584 | R82: =G82/(SUM(G$3:G$611)/1000000) -> 3.588791486 | S82: =H82/(SUM(H$3:H$611)/1000000) -> 69.60470713 | T82: =I82/(SUM(I$3:I$611)/1000000) -> 2.754418776 | U82: =J82/(SUM(J$3:J$611)/1000000) -> 20.44282884 | W82: =AVERAGE(M82:U82) -> 50.34185457 | X82: =LOG((AVERAGE(M82:O82)+0.1)/(AVERAGE($S82:$U82)+0.1),2) -> 1.376996113 | Y82: =LOG((AVERAGE(P82:R82)+0.1)/(AVERAGE($S82:$U82)+0.1),2) -> 0.3548515183
A83: RLTR31_Mur | B83: 39 | C83: 123 | D83: 39 | E83: 68 | F83: 32 | G83: 118 | H83: 14 | I83: 38 | J83: 37 | K83: 508 | M83: =B83/(SUM(B$3:B$611)/1000000) -> 83.03508126 | N83: =C83/(SUM(C$3:C$611)/1000000) -> 172.4154849 | O83: =D83/(SUM(D$3:D$611)/1000000) -> 88.64603411 | P83: =E83/(SUM(E$3:E$611)/1000000) -> 102.1300115 | Q83: =F83/(SUM(F$3:F$611)/1000000) -> 55.44649154 | R83: =G83/(SUM(G$3:G$611)/1000000) -> 70.5795659 | S83: =H83/(SUM(H$3:H$611)/1000000) -> 21.65479778 | T83: =I83/(SUM(I$3:I$611)/1000000) -> 104.6679135 | U83: =J83/(SUM(J$3:J$611)/1000000) -> 68.76224247 | W83: =AVERAGE(M83:U83) -> 85.25973588 | X83: =LOG((AVERAGE(M83:O83)+0.1)/(AVERAGE($S83:$U83)+0.1),2) -> 0.8177515289 | Y83: =LOG((AVERAGE(P83:R83)+0.1)/(AVERAGE($S83:$U83)+0.1),2) -> 0.2255973962
A84: RLTR13A1 | B84: 3 | C84: 23 | D84: 32 | E84: 9 | F84: 15 | G84: 185 | H84: 12 | I84: 7 | J84: 7 | K84: 293 | M84: =B84/(SUM(B$3:B$611)/1000000) -> 6.387313943 | N84: =C84/(SUM(C$3:C$611)/1000000) -> 32.24029392 | O84: =D84/(SUM(D$3:D$611)/1000000) -> 72.73520748 | P84: =E84/(SUM(E$3:E$611)/1000000) -> 13.51720741 | Q84: =F84/(SUM(F$3:F$611)/1000000) -> 25.99054291 | R84: =G84/(SUM(G$3:G$611)/1000000) -> 110.6544042 | S84: =H84/(SUM(H$3:H$611)/1000000) -> 18.56125524 | T84: =I84/(SUM(I$3:I$611)/1000000) -> 19.28093143 | U84: =J84/(SUM(J$3:J$611)/1000000) -> 13.0090729 | W84: =AVERAGE(M84:U84) -> 34.70846993 | X84: =LOG((AVERAGE(M84:O84)+0.1)/(AVERAGE($S84:$U84)+0.1),2) -> 1.126307165 | Y84: =LOG((AVERAGE(P84:R84)+0.1)/(AVERAGE($S84:$U84)+0.1),2) -> 1.556558983
A85: MurSatRep2 | B85: 0 | C85: 7 | D85: 0 | E85: 0 | F85: 0 | G85: 0 | H85: 3 | I85: 0 | J85: 0 | K85: 10 | M85: =B85/(SUM(B$3:B$611)/1000000) -> 0 | N85: =C85/(SUM(C$3:C$611)/1000000) -> 9.812263367 | O85: =D85/(SUM(D$3:D$611)/1000000) -> 0 | P85: =E85/(SUM(E$3:E$611)/1000000) -> 0 | Q85: =F85/(SUM(F$3:F$611)/1000000) -> 0 | R85: =G85/(SUM(G$3:G$611)/1000000) -> 0 | S85: =H85/(SUM(H$3:H$611)/1000000) -> 4.640313809 | T85: =I85/(SUM(I$3:I$611)/1000000) -> 0 | U85: =J85/(SUM(J$3:J$611)/1000000) -> 0 | W85: =AVERAGE(M85:U85) -> 1.605841908 | X85: =LOG((AVERAGE(M85:O85)+0.1)/(AVERAGE($S85:$U85)+0.1),2) -> 1.033431353 | Y85: =LOG((AVERAGE(P85:R85)+0.1)/(AVERAGE($S85:$U85)+0.1),2) -> -4.041568279
A86: B3 | B86: 4 | C86: 18 | D86: 7 | E86: 8 | F86: 8 | G86: 11 | H86: 4 | I86: 1 | J86: 8 | K86: 69 | M86: =B86/(SUM(B$3:B$611)/1000000) -> 8.51641859 | N86: =C86/(SUM(C$3:C$611)/1000000) -> 25.23153437 | O86: =D86/(SUM(D$3:D$611)/1000000) -> 15.91082664 | P86: =E86/(SUM(E$3:E$611)/1000000) -> 12.01529547 | Q86: =F86/(SUM(F$3:F$611)/1000000) -> 13.86162288 | R86: =G86/(SUM(G$3:G$611)/1000000) -> 6.579451058 | S86: =H86/(SUM(H$3:H$611)/1000000) -> 6.187085079 | T86: =I86/(SUM(I$3:I$611)/1000000) -> 2.754418776 | U86: =J86/(SUM(J$3:J$611)/1000000) -> 14.86751188 | W86: =AVERAGE(M86:U86) -> 11.76935164 | X86: =LOG((AVERAGE(M86:O86)+0.1)/(AVERAGE($S86:$U86)+0.1),2) -> 1.051165481 | Y86: =LOG((AVERAGE(P86:R86)+0.1)/(AVERAGE($S86:$U86)+0.1),2) -> 0.4422027097
A87: MYS1_PL | B87: 6 | C87: 5 | D87: 11 | E87: 1 | F87: 5 | G87: 32 | H87: 2 | I87: 5 | J87: 3 | K87: 70 | M87: =B87/(SUM(B$3:B$611)/1000000) -> 12.77462789 | N87: =C87/(SUM(C$3:C$611)/1000000) -> 7.008759548 | O87: =D87/(SUM(D$3:D$611)/1000000) -> 25.00272757 | P87: =E87/(SUM(E$3:E$611)/1000000) -> 1.501911934 | Q87: =F87/(SUM(F$3:F$611)/1000000) -> 8.663514303 | R87: =G87/(SUM(G$3:G$611)/1000000) -> 19.14022126 | S87: =H87/(SUM(H$3:H$611)/1000000) -> 3.093542539 | T87: =I87/(SUM(I$3:I$611)/1000000) -> 13.77209388 | U87: =J87/(SUM(J$3:J$611)/1000000) -> 5.575316957 | W87: =AVERAGE(M87:U87) -> 10.72585732 | X87: =LOG((AVERAGE(M87:O87)+0.1)/(AVERAGE($S87:$U87)+0.1),2) -> 0.9873904625 | Y87: =LOG((AVERAGE(P87:R87)+0.1)/(AVERAGE($S87:$U87)+0.1),2) -> 0.3805796688
A88: MUSID2 | B88: 2 | C88: 7 | D88: 0 | E88: 0 | F88: 0 | G88: 0 | H88: 0 | I88: 4 | J88: 0 | K88: 13 | M88: =B88/(SUM(B$3:B$611)/1000000) -> 4.258209295 | N88: =C88/(SUM(C$3:C$611)/1000000) -> 9.812263367 | O88: =D88/(SUM(D$3:D$611)/1000000) -> 0 | P88: =E88/(SUM(E$3:E$611)/1000000) -> 0 | Q88: =F88/(SUM(F$3:F$611)/1000000) -> 0 | R88: =G88/(SUM(G$3:G$611)/1000000) -> 0 | S88: =H88/(SUM(H$3:H$611)/1000000) -> 0 | T88: =I88/(SUM(I$3:I$611)/1000000) -> 11.01767511 | U88: =J88/(SUM(J$3:J$611)/1000000) -> 0 | W88: =AVERAGE(M88:U88) -> 2.787571974 | X88: =LOG((AVERAGE(M88:O88)+0.1)/(AVERAGE($S88:$U88)+0.1),2) -> 0.3445298866 | Y88: =LOG((AVERAGE(P88:R88)+0.1)/(AVERAGE($S88:$U88)+0.1),2) -> -5.237471317
A89: RLTR1D2_MM | B89: 49 | C89: 68 | D89: 37 | E89: 25 | F89: 55 | G89: 0 | H89: 39 | I89: 19 | J89: 14 | K89: 306 | M89: =B89/(SUM(B$3:B$611)/1000000) -> 104.3261277 | N89: =C89/(SUM(C$3:C$611)/1000000) -> 95.31912985 | O89: =D89/(SUM(D$3:D$611)/1000000) -> 84.10008365 | P89: =E89/(SUM(E$3:E$611)/1000000) -> 37.54779835 | Q89: =F89/(SUM(F$3:F$611)/1000000) -> 95.29865733 | R89: =G89/(SUM(G$3:G$611)/1000000) -> 0 | S89: =H89/(SUM(H$3:H$611)/1000000) -> 60.32407952 | T89: =I89/(SUM(I$3:I$611)/1000000) -> 52.33395675 | U89: =J89/(SUM(J$3:J$611)/1000000) -> 26.0181458 | W89: =AVERAGE(M89:U89) -> 61.69644211 | X89: =LOG((AVERAGE(M89:O89)+0.1)/(AVERAGE($S89:$U89)+0.1),2) -> 1.031283588 | Y89: =LOG((AVERAGE(P89:R89)+0.1)/(AVERAGE($S89:$U89)+0.1),2) -> -0.06182362812
A90: RMER19 | B90: 5 | C90: 6 | D90: 0 | E90: 0 | F90: 4 | G90: 0 | H90: 0 | I90: 1 | J90: 4 | K90: 20 | M90: =B90/(SUM(B$3:B$611)/1000000) -> 10.64552324 | N90: =C90/(SUM(C$3:C$611)/1000000) -> 8.410511457 | O90: =D90/(SUM(D$3:D$611)/1000000) -> 0 | P90: =E90/(SUM(E$3:E$611)/1000000) -> 0 | Q90: =F90/(SUM(F$3:F$611)/1000000) -> 6.930811442 | R90: =G90/(SUM(G$3:G$611)/1000000) -> 0 | S90: =H90/(SUM(H$3:H$611)/1000000) -> 0 | T90: =I90/(SUM(I$3:I$611)/1000000) -> 2.754418776 | U90: =J90/(SUM(J$3:J$611)/1000000) -> 7.433755942 | W90: =AVERAGE(M90:U90) -> 4.019446762 | X90: =LOG((AVERAGE(M90:O90)+0.1)/(AVERAGE($S90:$U90)+0.1),2) -> 0.8840198061 | Y90: =LOG((AVERAGE(P90:R90)+0.1)/(AVERAGE($S90:$U90)+0.1),2) -> -0.5365341635
A91: B2_RnY | B91: 55 | C91: 40 | D91: 33 | E91: 28 | F91: 10 | G91: 20 | H91: 26 | I91: 5 | J91: 30 | K91: 247 | M91: =B91/(SUM(B$3:B$611)/1000000) -> 117.1007556 | N91: =C91/(SUM(C$3:C$611)/1000000) -> 56.07007638 | O91: =D91/(SUM(D$3:D$611)/1000000) -> 75.00818271 | P91: =E91/(SUM(E$3:E$611)/1000000) -> 42.05353415 | Q91: =F91/(SUM(F$3:F$611)/1000000) -> 17.32702861 | R91: =G91/(SUM(G$3:G$611)/1000000) -> 11.96263829 | S91: =H91/(SUM(H$3:H$611)/1000000) -> 40.21605301 | T91: =I91/(SUM(I$3:I$611)/1000000) -> 13.77209388 | U91: =J91/(SUM(J$3:J$611)/1000000) -> 55.75316957 | W91: =AVERAGE(M91:U91) -> 47.69594802 | X91: =LOG((AVERAGE(M91:O91)+0.1)/(AVERAGE($S91:$U91)+0.1),2) -> 1.17507871 | Y91: =LOG((AVERAGE(P91:R91)+0.1)/(AVERAGE($S91:$U91)+0.1),2) -> -0.6191436003
A92: B2_Rn | B92: 71 | C92: 65 | D92: 44 | E92: 36 | F92: 25 | G92: 36 | H92: 44 | I92: 7 | J92: 35 | K92: 363 | M92: =B92/(SUM(B$3:B$611)/1000000) -> 151.16643 | N92: =C92/(SUM(C$3:C$611)/1000000) -> 91.11387412 | O92: =D92/(SUM(D$3:D$611)/1000000) -> 100.0109103 | P92: =E92/(SUM(E$3:E$611)/1000000) -> 54.06882962 | Q92: =F92/(SUM(F$3:F$611)/1000000) -> 43.31757151 | R92: =G92/(SUM(G$3:G$611)/1000000) -> 21.53274892 | S92: =H92/(SUM(H$3:H$611)/1000000) -> 68.05793586 | T92: =I92/(SUM(I$3:I$611)/1000000) -> 19.28093143 | U92: =J92/(SUM(J$3:J$611)/1000000) -> 65.0453645 | W92: =AVERAGE(M92:U92) -> 68.17717736 | X92: =LOG((AVERAGE(M92:O92)+0.1)/(AVERAGE($S92:$U92)+0.1),2) -> 1.165937077 | Y92: =LOG((AVERAGE(P92:R92)+0.1)/(AVERAGE($S92:$U92)+0.1),2) -> -0.3569350849
A93: RLTR44A_LTR | B93: 10 | C93: 12 | D93: 2 | E93: 1 | F93: 9 | G93: 0 | H93: 1 | I93: 0 | J93: 11 | K93: 46 | M93: =B93/(SUM(B$3:B$611)/1000000) -> 21.29104648 | N93: =C93/(SUM(C$3:C$611)/1000000) -> 16.82102291 | O93: =D93/(SUM(D$3:D$611)/1000000) -> 4.545950467 | P93: =E93/(SUM(E$3:E$611)/1000000) -> 1.501911934 | Q93: =F93/(SUM(F$3:F$611)/1000000) -> 15.59432574 | R93: =G93/(SUM(G$3:G$611)/1000000) -> 0 | S93: =H93/(SUM(H$3:H$611)/1000000) -> 1.54677127 | T93: =I93/(SUM(I$3:I$611)/1000000) -> 0 | U93: =J93/(SUM(J$3:J$611)/1000000) -> 20.44282884 | W93: =AVERAGE(M93:U93) -> 9.08265085 | X93: =LOG((AVERAGE(M93:O93)+0.1)/(AVERAGE($S93:$U93)+0.1),2) -> 0.9465567601 | Y93: =LOG((AVERAGE(P93:R93)+0.1)/(AVERAGE($S93:$U93)+0.1),2) -> -0.3575954089
A94: ERVB4_2B-LTR_MM | B94: 7 | C94: 43 | D94: 47 | E94: 16 | F94: 7 | G94: 170 | H94: 16 | I94: 4 | J94: 29 | K94: 339 | M94: =B94/(SUM(B$3:B$611)/1000000) -> 14.90373253 | N94: =C94/(SUM(C$3:C$611)/1000000) -> 60.27533211 | O94: =D94/(SUM(D$3:D$611)/1000000) -> 106.829836 | P94: =E94/(SUM(E$3:E$611)/1000000) -> 24.03059094 | Q94: =F94/(SUM(F$3:F$611)/1000000) -> 12.12892002 | R94: =G94/(SUM(G$3:G$611)/1000000) -> 101.6824254 | S94: =H94/(SUM(H$3:H$611)/1000000) -> 24.74834031 | T94: =I94/(SUM(I$3:I$611)/1000000) -> 11.01767511 | U94: =J94/(SUM(J$3:J$611)/1000000) -> 53.89473058 | W94: =AVERAGE(M94:U94) -> 45.501287 | X94: =LOG((AVERAGE(M94:O94)+0.1)/(AVERAGE($S94:$U94)+0.1),2) -> 1.019017468 | Y94: =LOG((AVERAGE(P94:R94)+0.1)/(AVERAGE($S94:$U94)+0.1),2) -> 0.6187838221
A95: B2_Rat2 | B95: 1276 | C95: 1813 | D95: 1251 | E95: 993 | F95: 933 | G95: 2172 | H95: 874 | I95: 437 | J95: 896 | K95: 10645 | M95: =B95/(SUM(B$3:B$611)/1000000) -> 2716.73753 | N95: =C95/(SUM(C$3:C$611)/1000000) -> 2541.376212 | O95: =D95/(SUM(D$3:D$611)/1000000) -> 2843.492017 | P95: =E95/(SUM(E$3:E$611)/1000000) -> 1491.39855 | Q95: =F95/(SUM(F$3:F$611)/1000000) -> 1616.611769 | R95: =G95/(SUM(G$3:G$611)/1000000) -> 1299.142518 | S95: =H95/(SUM(H$3:H$611)/1000000) -> 1351.87809 | T95: =I95/(SUM(I$3:I$611)/1000000) -> 1203.681005 | U95: =J95/(SUM(J$3:J$611)/1000000) -> 1665.161331 | W95: =AVERAGE(M95:U95) -> 1858.831003 | X95: =LOG((AVERAGE(M95:O95)+0.1)/(AVERAGE($S95:$U95)+0.1),2) -> 0.9406694932 | Y95: =LOG((AVERAGE(P95:R95)+0.1)/(AVERAGE($S95:$U95)+0.1),2) -> 0.06235332114
A96: RLTR48B | B96: 5 | C96: 5 | D96: 0 | E96: 0 | F96: 0 | G96: 0 | H96: 4 | I96: 1 | J96: 0 | K96: 15 | M96: =B96/(SUM(B$3:B$611)/1000000) -> 10.64552324 | N96: =C96/(SUM(C$3:C$611)/1000000) -> 7.008759548 | O96: =D96/(SUM(D$3:D$611)/1000000) -> 0 | P96: =E96/(SUM(E$3:E$611)/1000000) -> 0 | Q96: =F96/(SUM(F$3:F$611)/1000000) -> 0 | R96: =G96/(SUM(G$3:G$611)/1000000) -> 0 | S96: =H96/(SUM(H$3:H$611)/1000000) -> 6.187085079 | T96: =I96/(SUM(I$3:I$611)/1000000) -> 2.754418776 | U96: =J96/(SUM(J$3:J$611)/1000000) -> 0 | W96: =AVERAGE(M96:U96) -> 2.955087405 | X96: =LOG((AVERAGE(M96:O96)+0.1)/(AVERAGE($S96:$U96)+0.1),2) -> 0.95812848 | Y96: =LOG((AVERAGE(P96:R96)+0.1)/(AVERAGE($S96:$U96)+0.1),2) -> -4.945093232
A97: RLTR20B1_MM | B97: 10 | C97: 0 | D97: 0 | E97: 0 | F97: 6 | G97: 0 | H97: 3 | I97: 2 | J97: 0 | K97: 21 | M97: =B97/(SUM(B$3:B$611)/1000000) -> 21.29104648 | N97: =C97/(SUM(C$3:C$611)/1000000) -> 0 | O97: =D97/(SUM(D$3:D$611)/1000000) -> 0 | P97: =E97/(SUM(E$3:E$611)/1000000) -> 0 | Q97: =F97/(SUM(F$3:F$611)/1000000) -> 10.39621716 | R97: =G97/(SUM(G$3:G$611)/1000000) -> 0 | S97: =H97/(SUM(H$3:H$611)/1000000) -> 4.640313809 | T97: =I97/(SUM(I$3:I$611)/1000000) -> 5.508837553 | U97: =J97/(SUM(J$3:J$611)/1000000) -> 0 | W97: =AVERAGE(M97:U97) -> 4.648490556 | X97: =LOG((AVERAGE(M97:O97)+0.1)/(AVERAGE($S97:$U97)+0.1),2) -> 1.047047393 | Y97: =LOG((AVERAGE(P97:R97)+0.1)/(AVERAGE($S97:$U97)+0.1),2) -> 0.03371488446
A98: B2_Mm1a | B98: 2031 | C98: 2752 | D98: 1368 | E98: 1536 | F98: 1467 | G98: 3291 | H98: 1248 | I98: 785 | J98: 1248 | K98: 15726 | M98: =B98/(SUM(B$3:B$611)/1000000) -> 4324.211539 | N98: =C98/(SUM(C$3:C$611)/1000000) -> 3857.621255 | O98: =D98/(SUM(D$3:D$611)/1000000) -> 3109.43012 | P98: =E98/(SUM(E$3:E$611)/1000000) -> 2306.93673 | Q98: =F98/(SUM(F$3:F$611)/1000000) -> 2541.875096 | R98: =G98/(SUM(G$3:G$611)/1000000) -> 1968.45213 | S98: =H98/(SUM(H$3:H$611)/1000000) -> 1930.370545 | T98: =I98/(SUM(I$3:I$611)/1000000) -> 2162.218739 | U98: =J98/(SUM(J$3:J$611)/1000000) -> 2319.331854 | W98: =AVERAGE(M98:U98) -> 2724.494223 | X98: =LOG((AVERAGE(M98:O98)+0.1)/(AVERAGE($S98:$U98)+0.1),2) -> 0.816349104 | Y98: =LOG((AVERAGE(P98:R98)+0.1)/(AVERAGE($S98:$U98)+0.1),2) -> 0.08843214896
A99: RLTR31M | B99: 37 | C99: 79 | D99: 22 | E99: 56 | F99: 38 | G99: 1 | H99: 26 | I99: 14 | J99: 34 | K99: 307 | M99: =B99/(SUM(B$3:B$611)/1000000) -> 78.77687196 | N99: =C99/(SUM(C$3:C$611)/1000000) -> 110.7384009 | O99: =D99/(SUM(D$3:D$611)/1000000) -> 50.00545514 | P99: =E99/(SUM(E$3:E$611)/1000000) -> 84.1070683 | Q99: =F99/(SUM(F$3:F$611)/1000000) -> 65.8427087 | R99: =G99/(SUM(G$3:G$611)/1000000) -> 0.5981319144 | S99: =H99/(SUM(H$3:H$611)/1000000) -> 40.21605301 | T99: =I99/(SUM(I$3:I$611)/1000000) -> 38.56186287 | U99: =J99/(SUM(J$3:J$611)/1000000) -> 63.18692551 | W99: =AVERAGE(M99:U99) -> 59.11483092 | X99: =LOG((AVERAGE(M99:O99)+0.1)/(AVERAGE($S99:$U99)+0.1),2) -> 0.7533771922 | Y99: =LOG((AVERAGE(P99:R99)+0.1)/(AVERAGE($S99:$U99)+0.1),2) -> 0.08451553207
A100: RLTR26 | B100: 122 | C100: 206 | D100: 73 | E100: 66 | F100: 22 | G100: 112 | H100: 78 | I100: 59 | J100: 79 | K100: 817 | M100: =B100/(SUM(B$3:B$611)/1000000) -> 259.750767 | N100: =C100/(SUM(C$3:C$611)/1000000) -> 288.7608934 | O100: =D100/(SUM(D$3:D$611)/1000000) -> 165.9271921 | P100: =E100/(SUM(E$3:E$611)/1000000) -> 99.12618764 | Q100: =F100/(SUM(F$3:F$611)/1000000) -> 38.11946293 | R100: =G100/(SUM(G$3:G$611)/1000000) -> 66.99077441 | S100: =H100/(SUM(H$3:H$611)/1000000) -> 120.648159 | T100: =I100/(SUM(I$3:I$611)/1000000) -> 162.5107078 | U100: =J100/(SUM(J$3:J$611)/1000000) -> 146.8166799 | W100: =AVERAGE(M100:U100) -> 149.8500916 | X100: =LOG((AVERAGE(M100:O100)+0.1)/(AVERAGE($S100:$U100)+0.1),2) -> 0.732155362 | Y100: =LOG((AVERAGE(P100:R100)+0.1)/(AVERAGE($S100:$U100)+0.1),2) -> -1.072903063
A101: SRV_MM-int | B101: 13 | C101: 36 | D101: 6 | E101: 22 | F101: 12 | G101: 0 | H101: 2 | I101: 8 | J101: 20 | K101: 119 | M101: =B101/(SUM(B$3:B$611)/1000000) -> 27.67836042 | N101: =C101/(SUM(C$3:C$611)/1000000) -> 50.46306874 | O101: =D101/(SUM(D$3:D$611)/1000000) -> 13.6378514 | P101: =E101/(SUM(E$3:E$611)/1000000) -> 33.04206255 | Q101: =F101/(SUM(F$3:F$611)/1000000) -> 20.79243433 | R101: =G101/(SUM(G$3:G$611)/1000000) -> 0 | S101: =H101/(SUM(H$3:H$611)/1000000) -> 3.093542539 | T101: =I101/(SUM(I$3:I$611)/1000000) -> 22.03535021 | U101: =J101/(SUM(J$3:J$611)/1000000) -> 37.16877971 | W101: =AVERAGE(M101:U101) -> 23.10127221 | X101: =LOG((AVERAGE(M101:O101)+0.1)/(AVERAGE($S101:$U101)+0.1),2) -> 0.5567675463 | Y101: =LOG((AVERAGE(P101:R101)+0.1)/(AVERAGE($S101:$U101)+0.1),2) -> -0.2095607796
A102: B2_Mm1t | B102: 1783 | C102: 2494 | D102: 1246 | E102: 1324 | F102: 1288 | G102: 3271 | H102: 1160 | I102: 698 | J102: 1258 | K102: 14522 | M102: =B102/(SUM(B$3:B$611)/1000000) -> 3796.193587 | N102: =C102/(SUM(C$3:C$611)/1000000) -> 3495.969262 | O102: =D102/(SUM(D$3:D$611)/1000000) -> 2832.127141 | P102: =E102/(SUM(E$3:E$611)/1000000) -> 1988.5314 | Q102: =F102/(SUM(F$3:F$611)/1000000) -> 2231.721284 | R102: =G102/(SUM(G$3:G$611)/1000000) -> 1956.489492 | S102: =H102/(SUM(H$3:H$611)/1000000) -> 1794.254673 | T102: =I102/(SUM(I$3:I$611)/1000000) -> 1922.584306 | U102: =J102/(SUM(J$3:J$611)/1000000) -> 2337.916244 | W102: =AVERAGE(M102:U102) -> 2483.976377 | X102: =LOG((AVERAGE(M102:O102)+0.1)/(AVERAGE($S102:$U102)+0.1),2) -> 0.7416514626 | Y102: =LOG((AVERAGE(P102:R102)+0.1)/(AVERAGE($S102:$U102)+0.1),2) -> 0.02877606398
A103: B1F | B103: 0 | C103: 1 | D103: 1 | E103: 1 | F103: 0 | G103: 1 | H103: 1 | I103: 0 | J103: 0 | K103: 5 | M103: =B103/(SUM(B$3:B$611)/1000000) -> 0 | N103: =C103/(SUM(C$3:C$611)/1000000) -> 1.40175191 | O103: =D103/(SUM(D$3:D$611)/1000000) -> 2.272975234 | P103: =E103/(SUM(E$3:E$611)/1000000) -> 1.501911934 | Q103: =F103/(SUM(F$3:F$611)/1000000) -> 0 | R103: =G103/(SUM(G$3:G$611)/1000000) -> 0.5981319144 | S103: =H103/(SUM(H$3:H$611)/1000000) -> 1.54677127 | T103: =I103/(SUM(I$3:I$611)/1000000) -> 0 | U103: =J103/(SUM(J$3:J$611)/1000000) -> 0 | W103: =AVERAGE(M103:U103) -> 0.8135046957 | X103: =LOG((AVERAGE(M103:O103)+0.1)/(AVERAGE($S103:$U103)+0.1),2) -> 1.105850632 | Y103: =LOG((AVERAGE(P103:R103)+0.1)/(AVERAGE($S103:$U103)+0.1),2) -> 0.3780555702
A104: STRID1 | B104: 0 | C104: 0 | D104: 2 | E104: 0 | F104: 0 | G104: 1 | H104: 1 | I104: 0 | J104: 0 | K104: 4 | M104: =B104/(SUM(B$3:B$611)/1000000) -> 0 | N104: =C104/(SUM(C$3:C$611)/1000000) -> 0 | O104: =D104/(SUM(D$3:D$611)/1000000) -> 4.545950467 | P104: =E104/(SUM(E$3:E$611)/1000000) -> 0 | Q104: =F104/(SUM(F$3:F$611)/1000000) -> 0 | R104: =G104/(SUM(G$3:G$611)/1000000) -> 0.5981319144 | S104: =H104/(SUM(H$3:H$611)/1000000) -> 1.54677127 | T104: =I104/(SUM(I$3:I$611)/1000000) -> 0 | U104: =J104/(SUM(J$3:J$611)/1000000) -> 0 | W104: =AVERAGE(M104:U104) -> 0.7434281835 | X104: =LOG((AVERAGE(M104:O104)+0.1)/(AVERAGE($S104:$U104)+0.1),2) -> 1.391774465 | Y104: =LOG((AVERAGE(P104:R104)+0.1)/(AVERAGE($S104:$U104)+0.1),2) -> -1.04000593
A105: RLTR16_Rn | B105: 1 | C105: 1 | D105: 0 | E105: 0 | F105: 2 | G105: 0 | H105: 0 | I105: 1 | J105: 0 | K105: 5 | M105: =B105/(SUM(B$3:B$611)/1000000) -> 2.129104648 | N105: =C105/(SUM(C$3:C$611)/1000000) -> 1.40175191 | O105: =D105/(SUM(D$3:D$611)/1000000) -> 0 | P105: =E105/(SUM(E$3:E$611)/1000000) -> 0 | Q105: =F105/(SUM(F$3:F$611)/1000000) -> 3.465405721 | R105: =G105/(SUM(G$3:G$611)/1000000) -> 0 | S105: =H105/(SUM(H$3:H$611)/1000000) -> 0 | T105: =I105/(SUM(I$3:I$611)/1000000) -> 2.754418776 | U105: =J105/(SUM(J$3:J$611)/1000000) -> 0 | W105: =AVERAGE(M105:U105) -> 1.083409006 | X105: =LOG((AVERAGE(M105:O105)+0.1)/(AVERAGE($S105:$U105)+0.1),2) -> 0.3267691299 | Y105: =LOG((AVERAGE(P105:R105)+0.1)/(AVERAGE($S105:$U105)+0.1),2) -> 0.3019074466
A106: Charlie25 | B106: 1 | C106: 0 | D106: 1 | E106: 0 | F106: 0 | G106: 0 | H106: 1 | I106: 0 | J106: 0 | K106: 3 | M106: =B106/(SUM(B$3:B$611)/1000000) -> 2.129104648 | N106: =C106/(SUM(C$3:C$611)/1000000) -> 0 | O106: =D106/(SUM(D$3:D$611)/1000000) -> 2.272975234 | P106: =E106/(SUM(E$3:E$611)/1000000) -> 0 | Q106: =F106/(SUM(F$3:F$611)/1000000) -> 0 | R106: =G106/(SUM(G$3:G$611)/1000000) -> 0 | S106: =H106/(SUM(H$3:H$611)/1000000) -> 1.54677127 | T106: =I106/(SUM(I$3:I$611)/1000000) -> 0 | U106: =J106/(SUM(J$3:J$611)/1000000) -> 0 | W106: =AVERAGE(M106:U106) -> 0.6609834612 | X106: =LOG((AVERAGE(M106:O106)+0.1)/(AVERAGE($S106:$U106)+0.1),2) -> 1.348293855 | Y106: =LOG((AVERAGE(P106:R106)+0.1)/(AVERAGE($S106:$U106)+0.1),2) -> -2.621970788
A107: MLTR31FA_MM | B107: 47 | C107: 55 | D107: 8 | E107: 53 | F107: 38 | G107: 41 | H107: 29 | I107: 15 | J107: 19 | K107: 305 | M107: =B107/(SUM(B$3:B$611)/1000000) -> 100.0679184 | N107: =C107/(SUM(C$3:C$611)/1000000) -> 77.09635502 | O107: =D107/(SUM(D$3:D$611)/1000000) -> 18.18380187 | P107: =E107/(SUM(E$3:E$611)/1000000) -> 79.6013325 | Q107: =F107/(SUM(F$3:F$611)/1000000) -> 65.8427087 | R107: =G107/(SUM(G$3:G$611)/1000000) -> 24.52340849 | S107: =H107/(SUM(H$3:H$611)/1000000) -> 44.85636682 | T107: =I107/(SUM(I$3:I$611)/1000000) -> 41.31628164 | U107: =J107/(SUM(J$3:J$611)/1000000) -> 35.31034073 | W107: =AVERAGE(M107:U107) -> 54.0887238 | X107: =LOG((AVERAGE(M107:O107)+0.1)/(AVERAGE($S107:$U107)+0.1),2) -> 0.6839482882 | Y107: =LOG((AVERAGE(P107:R107)+0.1)/(AVERAGE($S107:$U107)+0.1),2) -> 0.4834900292
A108: RLTR9D | B108: 1 | C108: 10 | D108: 1 | E108: 2 | F108: 3 | G108: 1 | H108: 7 | I108: 0 | J108: 0 | K108: 25 | M108: =B108/(SUM(B$3:B$611)/1000000) -> 2.129104648 | N108: =C108/(SUM(C$3:C$611)/1000000) -> 14.0175191 | O108: =D108/(SUM(D$3:D$611)/1000000) -> 2.272975234 | P108: =E108/(SUM(E$3:E$611)/1000000) -> 3.003823868 | Q108: =F108/(SUM(F$3:F$611)/1000000) -> 5.198108582 | R108: =G108/(SUM(G$3:G$611)/1000000) -> 0.5981319144 | S108: =H108/(SUM(H$3:H$611)/1000000) -> 10.82739889 | T108: =I108/(SUM(I$3:I$611)/1000000) -> 0 | U108: =J108/(SUM(J$3:J$611)/1000000) -> 0 | W108: =AVERAGE(M108:U108) -> 4.227451359 | X108: =LOG((AVERAGE(M108:O108)+0.1)/(AVERAGE($S108:$U108)+0.1),2) -> 0.7504331375 | Y108: =LOG((AVERAGE(P108:R108)+0.1)/(AVERAGE($S108:$U108)+0.1),2) -> -0.2901677369
A109: RLTR44E_LTR | B109: 9 | C109: 4 | D109: 41 | E109: 7 | F109: 8 | G109: 0 | H109: 10 | I109: 0 | J109: 22 | K109: 101 | M109: =B109/(SUM(B$3:B$611)/1000000) -> 19.16194183 | N109: =C109/(SUM(C$3:C$611)/1000000) -> 5.607007638 | O109: =D109/(SUM(D$3:D$611)/1000000) -> 93.19198458 | P109: =E109/(SUM(E$3:E$611)/1000000) -> 10.51338354 | Q109: =F109/(SUM(F$3:F$611)/1000000) -> 13.86162288 | R109: =G109/(SUM(G$3:G$611)/1000000) -> 0 | S109: =H109/(SUM(H$3:H$611)/1000000) -> 15.4677127 | T109: =I109/(SUM(I$3:I$611)/1000000) -> 0 | U109: =J109/(SUM(J$3:J$611)/1000000) -> 40.88565768 | W109: =AVERAGE(M109:U109) -> 22.07659009 | X109: =LOG((AVERAGE(M109:O109)+0.1)/(AVERAGE($S109:$U109)+0.1),2) -> 1.061739885 | Y109: =LOG((AVERAGE(P109:R109)+0.1)/(AVERAGE($S109:$U109)+0.1),2) -> -1.199111326
A110: BGLII_B | B110: 10 | C110: 47 | D110: 3 | E110: 31 | F110: 2 | G110: 0 | H110: 28 | I110: 8 | J110: 0 | K110: 129 | M110: =B110/(SUM(B$3:B$611)/1000000) -> 21.29104648 | N110: =C110/(SUM(C$3:C$611)/1000000) -> 65.88233975 | O110: =D110/(SUM(D$3:D$611)/1000000) -> 6.818925701 | P110: =E110/(SUM(E$3:E$611)/1000000) -> 46.55926995 | Q110: =F110/(SUM(F$3:F$611)/1000000) -> 3.465405721 | R110: =G110/(SUM(G$3:G$611)/1000000) -> 0 | S110: =H110/(SUM(H$3:H$611)/1000000) -> 43.30959555 | T110: =I110/(SUM(I$3:I$611)/1000000) -> 22.03535021 | U110: =J110/(SUM(J$3:J$611)/1000000) -> 0 | W110: =AVERAGE(M110:U110) -> 23.26243704 | X110: =LOG((AVERAGE(M110:O110)+0.1)/(AVERAGE($S110:$U110)+0.1),2) -> 0.5224562092 | Y110: =LOG((AVERAGE(P110:R110)+0.1)/(AVERAGE($S110:$U110)+0.1),2) -> -0.3834179677
A111: IAP1-MM_LTR | B111: 14 | C111: 6 | D111: 0 | E111: 6 | F111: 5 | G111: 0 | H111: 7 | I111: 5 | J111: 0 | K111: 43 | M111: =B111/(SUM(B$3:B$611)/1000000) -> 29.80746507 | N111: =C111/(SUM(C$3:C$611)/1000000) -> 8.410511457 | O111: =D111/(SUM(D$3:D$611)/1000000) -> 0 | P111: =E111/(SUM(E$3:E$611)/1000000) -> 9.011471603 | Q111: =F111/(SUM(F$3:F$611)/1000000) -> 8.663514303 | R111: =G111/(SUM(G$3:G$611)/1000000) -> 0 | S111: =H111/(SUM(H$3:H$611)/1000000) -> 10.82739889 | T111: =I111/(SUM(I$3:I$611)/1000000) -> 13.77209388 | U111: =J111/(SUM(J$3:J$611)/1000000) -> 0 | W111: =AVERAGE(M111:U111) -> 8.943606133 | X111: =LOG((AVERAGE(M111:O111)+0.1)/(AVERAGE($S111:$U111)+0.1),2) -> 0.6294155624 | Y111: =LOG((AVERAGE(P111:R111)+0.1)/(AVERAGE($S111:$U111)+0.1),2) -> -0.4701257138
A112: ERVB2_1-I_MM | B112: 552 | C112: 704 | D112: 459 | E112: 521 | F112: 428 | G112: 1132 | H112: 485 | I112: 304 | J112: 258 | K112: 4843 | M112: =B112/(SUM(B$3:B$611)/1000000) -> 1175.265765 | N112: =C112/(SUM(C$3:C$611)/1000000) -> 986.8333443 | O112: =D112/(SUM(D$3:D$611)/1000000) -> 1043.295632 | P112: =E112/(SUM(E$3:E$611)/1000000) -> 782.4961176 | Q112: =F112/(SUM(F$3:F$611)/1000000) -> 741.5968243 | R112: =G112/(SUM(G$3:G$611)/1000000) -> 677.0853271 | S112: =H112/(SUM(H$3:H$611)/1000000) -> 750.1840658 | T112: =I112/(SUM(I$3:I$611)/1000000) -> 837.343308 | U112: =J112/(SUM(J$3:J$611)/1000000) -> 479.4772583 | W112: =AVERAGE(M112:U112) -> 830.3975159 | X112: =LOG((AVERAGE(M112:O112)+0.1)/(AVERAGE($S112:$U112)+0.1),2) -> 0.6328860575 | Y112: =LOG((AVERAGE(P112:R112)+0.1)/(AVERAGE($S112:$U112)+0.1),2) -> 0.09072160752
A113: IAPEY3_I | B113: 140 | C113: 167 | D113: 75 | E113: 93 | F113: 152 | G113: 324 | H113: 100 | I113: 72 | J113: 66 | K113: 1189 | M113: =B113/(SUM(B$3:B$611)/1000000) -> 298.0746507 | N113: =C113/(SUM(C$3:C$611)/1000000) -> 234.0925689 | O113: =D113/(SUM(D$3:D$611)/1000000) -> 170.4731425 | P113: =E113/(SUM(E$3:E$611)/1000000) -> 139.6778099 | Q113: =F113/(SUM(F$3:F$611)/1000000) -> 263.3708348 | R113: =G113/(SUM(G$3:G$611)/1000000) -> 193.7947403 | S113: =H113/(SUM(H$3:H$611)/1000000) -> 154.677127 | T113: =I113/(SUM(I$3:I$611)/1000000) -> 198.3181519 | U113: =J113/(SUM(J$3:J$611)/1000000) -> 122.656973 | W113: =AVERAGE(M113:U113) -> 197.2373332 | X113: =LOG((AVERAGE(M113:O113)+0.1)/(AVERAGE($S113:$U113)+0.1),2) -> 0.5625854474 | Y113: =LOG((AVERAGE(P113:R113)+0.1)/(AVERAGE($S113:$U113)+0.1),2) -> 0.3272605423
A114: MYSERV6 | B114: 6 | C114: 17 | D114: 1 | E114: 3 | F114: 7 | G114: 0 | H114: 11 | I114: 0 | J114: 4 | K114: 49 | M114: =B114/(SUM(B$3:B$611)/1000000) -> 12.77462789 | N114: =C114/(SUM(C$3:C$611)/1000000) -> 23.82978246 | O114: =D114/(SUM(D$3:D$611)/1000000) -> 2.272975234 | P114: =E114/(SUM(E$3:E$611)/1000000) -> 4.505735802 | Q114: =F114/(SUM(F$3:F$611)/1000000) -> 12.12892002 | R114: =G114/(SUM(G$3:G$611)/1000000) -> 0 | S114: =H114/(SUM(H$3:H$611)/1000000) -> 17.01448397 | T114: =I114/(SUM(I$3:I$611)/1000000) -> 0 | U114: =J114/(SUM(J$3:J$611)/1000000) -> 7.433755942 | W114: =AVERAGE(M114:U114) -> 8.884475702 | X114: =LOG((AVERAGE(M114:O114)+0.1)/(AVERAGE($S114:$U114)+0.1),2) -> 0.6626952011 | Y114: =LOG((AVERAGE(P114:R114)+0.1)/(AVERAGE($S114:$U114)+0.1),2) -> -0.5473472583
A115: RMER4B_LTR | B115: 240 | C115: 290 | D115: 283 | E115: 165 | F115: 110 | G115: 380 | H115: 229 | I115: 48 | J115: 239 | K115: 1984 | M115: =B115/(SUM(B$3:B$611)/1000000) -> 510.9851154 | N115: =C115/(SUM(C$3:C$611)/1000000) -> 406.5080538 | O115: =D115/(SUM(D$3:D$611)/1000000) -> 643.2519911 | P115: =E115/(SUM(E$3:E$611)/1000000) -> 247.8154691 | Q115: =F115/(SUM(F$3:F$611)/1000000) -> 190.5973147 | R115: =G115/(SUM(G$3:G$611)/1000000) -> 227.2901275 | S115: =H115/(SUM(H$3:H$611)/1000000) -> 354.2106208 | T115: =I115/(SUM(I$3:I$611)/1000000) -> 132.2121013 | U115: =J115/(SUM(J$3:J$611)/1000000) -> 444.1669176 | W115: =AVERAGE(M115:U115) -> 350.7819679 | X115: =LOG((AVERAGE(M115:O115)+0.1)/(AVERAGE($S115:$U115)+0.1),2) -> 0.7458302283 | Y115: =LOG((AVERAGE(P115:R115)+0.1)/(AVERAGE($S115:$U115)+0.1),2) -> -0.4830816575
A116: MTC_I | B116: 81 | C116: 210 | D116: 87 | E116: 59 | F116: 53 | G116: 195 | H116: 102 | I116: 32 | J116: 106 | K116: 925 | M116: =B116/(SUM(B$3:B$611)/1000000) -> 172.4574765 | N116: =C116/(SUM(C$3:C$611)/1000000) -> 294.367901 | O116: =D116/(SUM(D$3:D$611)/1000000) -> 197.7488453 | P116: =E116/(SUM(E$3:E$611)/1000000) -> 88.6128041 | Q116: =F116/(SUM(F$3:F$611)/1000000) -> 91.83325161 | R116: =G116/(SUM(G$3:G$611)/1000000) -> 116.6357233 | S116: =H116/(SUM(H$3:H$611)/1000000) -> 157.7706695 | T116: =I116/(SUM(I$3:I$611)/1000000) -> 88.14140084 | U116: =J116/(SUM(J$3:J$611)/1000000) -> 196.9945325 | W116: =AVERAGE(M116:U116) -> 156.0625116 | X116: =LOG((AVERAGE(M116:O116)+0.1)/(AVERAGE($S116:$U116)+0.1),2) -> 0.5851020708 | Y116: =LOG((AVERAGE(P116:R116)+0.1)/(AVERAGE($S116:$U116)+0.1),2) -> -0.5756631204
A117: ZP3AR | B117: 62 | C117: 90 | D117: 6 | E117: 66 | F117: 45 | G117: 258 | H117: 55 | I117: 17 | J117: 30 | K117: 629 | M117: =B117/(SUM(B$3:B$611)/1000000) -> 132.0044882 | N117: =C117/(SUM(C$3:C$611)/1000000) -> 126.1576719 | O117: =D117/(SUM(D$3:D$611)/1000000) -> 13.6378514 | P117: =E117/(SUM(E$3:E$611)/1000000) -> 99.12618764 | Q117: =F117/(SUM(F$3:F$611)/1000000) -> 77.97162872 | R117: =G117/(SUM(G$3:G$611)/1000000) -> 154.3180339 | S117: =H117/(SUM(H$3:H$611)/1000000) -> 85.07241983 | T117: =I117/(SUM(I$3:I$611)/1000000) -> 46.8251192 | U117: =J117/(SUM(J$3:J$611)/1000000) -> 55.75316957 | W117: =AVERAGE(M117:U117) -> 87.87406337 | X117: =LOG((AVERAGE(M117:O117)+0.1)/(AVERAGE($S117:$U117)+0.1),2) -> 0.5337826626 | Y117: =LOG((AVERAGE(P117:R117)+0.1)/(AVERAGE($S117:$U117)+0.1),2) -> 0.8195935951
A118: MurERV4_19 | B118: 23 | C118: 24 | D118: 59 | E118: 42 | F118: 32 | G118: 3 | H118: 29 | I118: 30 | J118: 10 | K118: 252 | M118: =B118/(SUM(B$3:B$611)/1000000) -> 48.9694069 | N118: =C118/(SUM(C$3:C$611)/1000000) -> 33.64204583 | O118: =D118/(SUM(D$3:D$611)/1000000) -> 134.1055388 | P118: =E118/(SUM(E$3:E$611)/1000000) -> 63.08030122 | Q118: =F118/(SUM(F$3:F$611)/1000000) -> 55.44649154 | R118: =G118/(SUM(G$3:G$611)/1000000) -> 1.794395743 | S118: =H118/(SUM(H$3:H$611)/1000000) -> 44.85636682 | T118: =I118/(SUM(I$3:I$611)/1000000) -> 82.63256329 | U118: =J118/(SUM(J$3:J$611)/1000000) -> 18.58438986 | W118: =AVERAGE(M118:U118) -> 53.67905555 | X118: =LOG((AVERAGE(M118:O118)+0.1)/(AVERAGE($S118:$U118)+0.1),2) -> 0.568155392 | Y118: =LOG((AVERAGE(P118:R118)+0.1)/(AVERAGE($S118:$U118)+0.1),2) -> -0.2791692564
A119: B1_Mm | B119: 1115 | C119: 1647 | D119: 1296 | E119: 1026 | F119: 945 | G119: 3105 | H119: 1082 | I119: 569 | J119: 1019 | K119: 11804 | M119: =B119/(SUM(B$3:B$611)/1000000) -> 2373.951682 | N119: =C119/(SUM(C$3:C$611)/1000000) -> 2308.685395 | O119: =D119/(SUM(D$3:D$611)/1000000) -> 2945.775903 | P119: =E119/(SUM(E$3:E$611)/1000000) -> 1540.961644 | Q119: =F119/(SUM(F$3:F$611)/1000000) -> 1637.404203 | R119: =G119/(SUM(G$3:G$611)/1000000) -> 1857.199594 | S119: =H119/(SUM(H$3:H$611)/1000000) -> 1673.606514 | T119: =I119/(SUM(I$3:I$611)/1000000) -> 1567.264284 | U119: =J119/(SUM(J$3:J$611)/1000000) -> 1893.749326 | W119: =AVERAGE(M119:U119) -> 1977.622061 | X119: =LOG((AVERAGE(M119:O119)+0.1)/(AVERAGE($S119:$U119)+0.1),2) -> 0.5710978494 | Y119: =LOG((AVERAGE(P119:R119)+0.1)/(AVERAGE($S119:$U119)+0.1),2) -> -0.02810210015
A120: PB1D9 | B120: 39 | C120: 79 | D120: 14 | E120: 25 | F120: 18 | G120: 10 | H120: 44 | I120: 28 | J120: 15 | K120: 272 | M120: =B120/(SUM(B$3:B$611)/1000000) -> 83.03508126 | N120: =C120/(SUM(C$3:C$611)/1000000) -> 110.7384009 | O120: =D120/(SUM(D$3:D$611)/1000000) -> 31.82165327 | P120: =E120/(SUM(E$3:E$611)/1000000) -> 37.54779835 | Q120: =F120/(SUM(F$3:F$611)/1000000) -> 31.18865149 | R120: =G120/(SUM(G$3:G$611)/1000000) -> 5.981319144 | S120: =H120/(SUM(H$3:H$611)/1000000) -> 68.05793586 | T120: =I120/(SUM(I$3:I$611)/1000000) -> 77.12372574 | U120: =J120/(SUM(J$3:J$611)/1000000) -> 27.87658478 | W120: =AVERAGE(M120:U120) -> 52.59679453 | X120: =LOG((AVERAGE(M120:O120)+0.1)/(AVERAGE($S120:$U120)+0.1),2) -> 0.3818967379 | Y120: =LOG((AVERAGE(P120:R120)+0.1)/(AVERAGE($S120:$U120)+0.1),2) -> -1.208452202
A121: L1VL1_5end | B121: 80 | C121: 176 | D121: 213 | E121: 161 | F121: 142 | G121: 576 | H121: 126 | I121: 26 | J121: 159 | K121: 1659 | M121: =B121/(SUM(B$3:B$611)/1000000) -> 170.3283718 | N121: =C121/(SUM(C$3:C$611)/1000000) -> 246.7083361 | O121: =D121/(SUM(D$3:D$611)/1000000) -> 484.1437248 | P121: =E121/(SUM(E$3:E$611)/1000000) -> 241.8078214 | Q121: =F121/(SUM(F$3:F$611)/1000000) -> 246.0438062 | R121: =G121/(SUM(G$3:G$611)/1000000) -> 344.5239827 | S121: =H121/(SUM(H$3:H$611)/1000000) -> 194.89318 | T121: =I121/(SUM(I$3:I$611)/1000000) -> 71.61488818 | U121: =J121/(SUM(J$3:J$611)/1000000) -> 295.4917987 | W121: =AVERAGE(M121:U121) -> 255.0617678 | X121: =LOG((AVERAGE(M121:O121)+0.1)/(AVERAGE($S121:$U121)+0.1),2) -> 0.6809564719 | Y121: =LOG((AVERAGE(P121:R121)+0.1)/(AVERAGE($S121:$U121)+0.1),2) -> 0.5664148616
A122: ORR1D-int | B122: 8 | C122: 38 | D122: 28 | E122: 3 | F122: 7 | G122: 0 | H122: 14 | I122: 24 | J122: 11 | K122: 133 | M122: =B122/(SUM(B$3:B$611)/1000000) -> 17.03283718 | N122: =C122/(SUM(C$3:C$611)/1000000) -> 53.26657256 | O122: =D122/(SUM(D$3:D$611)/1000000) -> 63.64330654 | P122: =E122/(SUM(E$3:E$611)/1000000) -> 4.505735802 | Q122: =F122/(SUM(F$3:F$611)/1000000) -> 12.12892002 | R122: =G122/(SUM(G$3:G$611)/1000000) -> 0 | S122: =H122/(SUM(H$3:H$611)/1000000) -> 21.65479778 | T122: =I122/(SUM(I$3:I$611)/1000000) -> 66.10605063 | U122: =J122/(SUM(J$3:J$611)/1000000) -> 20.44282884 | W122: =AVERAGE(M122:U122) -> 28.75344993 | X122: =LOG((AVERAGE(M122:O122)+0.1)/(AVERAGE($S122:$U122)+0.1),2) -> 0.3070998757 | Y122: =LOG((AVERAGE(P122:R122)+0.1)/(AVERAGE($S122:$U122)+0.1),2) -> -2.679693366
A123: HERVFH21I | B123: 103 | C123: 173 | D123: 83 | E123: 102 | F123: 86 | G123: 184 | H123: 108 | I123: 65 | J123: 66 | K123: 970 | M123: =B123/(SUM(B$3:B$611)/1000000) -> 219.2977787 | N123: =C123/(SUM(C$3:C$611)/1000000) -> 242.5030803 | O123: =D123/(SUM(D$3:D$611)/1000000) -> 188.6569444 | P123: =E123/(SUM(E$3:E$611)/1000000) -> 153.1950173 | Q123: =F123/(SUM(F$3:F$611)/1000000) -> 149.012446 | R123: =G123/(SUM(G$3:G$611)/1000000) -> 110.0562723 | S123: =H123/(SUM(H$3:H$611)/1000000) -> 167.0512971 | T123: =I123/(SUM(I$3:I$611)/1000000) -> 179.0372205 | U123: =J123/(SUM(J$3:J$611)/1000000) -> 122.656973 | W123: =AVERAGE(M123:U123) -> 170.1630033 | X123: =LOG((AVERAGE(M123:O123)+0.1)/(AVERAGE($S123:$U123)+0.1),2) -> 0.4723928565 | Y123: =LOG((AVERAGE(P123:R123)+0.1)/(AVERAGE($S123:$U123)+0.1),2) -> -0.1851108367
A124: RLTR13B | B124: 28 | C124: 110 | D124: 54 | E124: 148 | F124: 76 | G124: 118 | H124: 43 | I124: 43 | J124: 42 | K124: 662 | M124: =B124/(SUM(B$3:B$611)/1000000) -> 59.61493013 | N124: =C124/(SUM(C$3:C$611)/1000000) -> 154.19271 | O124: =D124/(SUM(D$3:D$611)/1000000) -> 122.7406626 | P124: =E124/(SUM(E$3:E$611)/1000000) -> 222.2829662 | Q124: =F124/(SUM(F$3:F$611)/1000000) -> 131.6854174 | R124: =G124/(SUM(G$3:G$611)/1000000) -> 70.5795659 | S124: =H124/(SUM(H$3:H$611)/1000000) -> 66.5111646 | T124: =I124/(SUM(I$3:I$611)/1000000) -> 118.4400074 | U124: =J124/(SUM(J$3:J$611)/1000000) -> 78.05443739 | W124: =AVERAGE(M124:U124) -> 113.7890957 | X124: =LOG((AVERAGE(M124:O124)+0.1)/(AVERAGE($S124:$U124)+0.1),2) -> 0.355360774 | Y124: =LOG((AVERAGE(P124:R124)+0.1)/(AVERAGE($S124:$U124)+0.1),2) -> 0.6902083455
A125: RMER17D_MM | B125: 44 | C125: 138 | D125: 24 | E125: 67 | F125: 54 | G125: 136 | H125: 63 | I125: 47 | J125: 28 | K125: 601 | M125: =B125/(SUM(B$3:B$611)/1000000) -> 93.6806045 | N125: =C125/(SUM(C$3:C$611)/1000000) -> 193.4417635 | O125: =D125/(SUM(D$3:D$611)/1000000) -> 54.55140561 | P125: =E125/(SUM(E$3:E$611)/1000000) -> 100.6280996 | Q125: =F125/(SUM(F$3:F$611)/1000000) -> 93.56595447 | R125: =G125/(SUM(G$3:G$611)/1000000) -> 81.34594036 | S125: =H125/(SUM(H$3:H$611)/1000000) -> 97.44658999 | T125: =I125/(SUM(I$3:I$611)/1000000) -> 129.4576825 | U125: =J125/(SUM(J$3:J$611)/1000000) -> 52.0362916 | W125: =AVERAGE(M125:U125) -> 99.57270357 | X125: =LOG((AVERAGE(M125:O125)+0.1)/(AVERAGE($S125:$U125)+0.1),2) -> 0.2923771565 | Y125: =LOG((AVERAGE(P125:R125)+0.1)/(AVERAGE($S125:$U125)+0.1),2) -> -0.01767688061
A126: MTD | B126: 2 | C126: 2 | D126: 11 | E126: 20 | F126: 1 | G126: 2 | H126: 6 | I126: 1 | J126: 3 | K126: 48 | M126: =B126/(SUM(B$3:B$611)/1000000) -> 4.258209295 | N126: =C126/(SUM(C$3:C$611)/1000000) -> 2.803503819 | O126: =D126/(SUM(D$3:D$611)/1000000) -> 25.00272757 | P126: =E126/(SUM(E$3:E$611)/1000000) -> 30.03823868 | Q126: =F126/(SUM(F$3:F$611)/1000000) -> 1.732702861 | R126: =G126/(SUM(G$3:G$611)/1000000) -> 1.196263829 | S126: =H126/(SUM(H$3:H$611)/1000000) -> 9.280627618 | T126: =I126/(SUM(I$3:I$611)/1000000) -> 2.754418776 | U126: =J126/(SUM(J$3:J$611)/1000000) -> 5.575316957 | W126: =AVERAGE(M126:U126) -> 9.182445489 | X126: =LOG((AVERAGE(M126:O126)+0.1)/(AVERAGE($S126:$U126)+0.1),2) -> 0.8536149659 | Y126: =LOG((AVERAGE(P126:R126)+0.1)/(AVERAGE($S126:$U126)+0.1),2) -> 0.8933060709
A127: B1_Mus2 | B127: 1276 | C127: 1916 | D127: 1224 | E127: 1365 | F127: 1108 | G127: 2994 | H127: 1320 | I127: 706 | J127: 952 | K127: 12861 | M127: =B127/(SUM(B$3:B$611)/1000000) -> 2716.73753 | N127: =C127/(SUM(C$3:C$611)/1000000) -> 2685.756659 | O127: =D127/(SUM(D$3:D$611)/1000000) -> 2782.121686 | P127: =E127/(SUM(E$3:E$611)/1000000) -> 2050.10979 | Q127: =F127/(SUM(F$3:F$611)/1000000) -> 1919.834769 | R127: =G127/(SUM(G$3:G$611)/1000000) -> 1790.806952 | S127: =H127/(SUM(H$3:H$611)/1000000) -> 2041.738076 | T127: =I127/(SUM(I$3:I$611)/1000000) -> 1944.619656 | U127: =J127/(SUM(J$3:J$611)/1000000) -> 1769.233914 | W127: =AVERAGE(M127:U127) -> 2188.995448 | X127: =LOG((AVERAGE(M127:O127)+0.1)/(AVERAGE($S127:$U127)+0.1),2) -> 0.5079281548 | Y127: =LOG((AVERAGE(P127:R127)+0.1)/(AVERAGE($S127:$U127)+0.1),2) -> 0.001292723516
A128: RMER2B_Rn | B128: 2 | C128: 5 | D128: 5 | E128: 20 | F128: 3 | G128: 0 | H128: 5 | I128: 0 | J128: 3 | K128: 43 | M128: =B128/(SUM(B$3:B$611)/1000000) -> 4.258209295 | N128: =C128/(SUM(C$3:C$611)/1000000) -> 7.008759548 | O128: =D128/(SUM(D$3:D$611)/1000000) -> 11.36487617 | P128: =E128/(SUM(E$3:E$611)/1000000) -> 30.03823868 | Q128: =F128/(SUM(F$3:F$611)/1000000) -> 5.198108582 | R128: =G128/(SUM(G$3:G$611)/1000000) -> 0 | S128: =H128/(SUM(H$3:H$611)/1000000) -> 7.733856348 | T128: =I128/(SUM(I$3:I$611)/1000000) -> 0 | U128: =J128/(SUM(J$3:J$611)/1000000) -> 5.575316957 | W128: =AVERAGE(M128:U128) -> 7.908596175 | X128: =LOG((AVERAGE(M128:O128)+0.1)/(AVERAGE($S128:$U128)+0.1),2) -> 0.7527730011 | Y128: =LOG((AVERAGE(P128:R128)+0.1)/(AVERAGE($S128:$U128)+0.1),2) -> 1.384715964
A129: RLTR26B_MM | B129: 12 | C129: 0 | D129: 0 | E129: 5 | F129: 6 | G129: 0 | H129: 8 | I129: 0 | J129: 0 | K129: 31 | M129: =B129/(SUM(B$3:B$611)/1000000) -> 25.54925577 | N129: =C129/(SUM(C$3:C$611)/1000000) -> 0 | O129: =D129/(SUM(D$3:D$611)/1000000) -> 0 | P129: =E129/(SUM(E$3:E$611)/1000000) -> 7.509559669 | Q129: =F129/(SUM(F$3:F$611)/1000000) -> 10.39621716 | R129: =G129/(SUM(G$3:G$611)/1000000) -> 0 | S129: =H129/(SUM(H$3:H$611)/1000000) -> 12.37417016 | T129: =I129/(SUM(I$3:I$611)/1000000) -> 0 | U129: =J129/(SUM(J$3:J$611)/1000000) -> 0 | W129: =AVERAGE(M129:U129) -> 6.203244751 | X129: =LOG((AVERAGE(M129:O129)+0.1)/(AVERAGE($S129:$U129)+0.1),2) -> 1.028231455 | Y129: =LOG((AVERAGE(P129:R129)+0.1)/(AVERAGE($S129:$U129)+0.1),2) -> 0.5225050116
A130: RLTR30D_MM | B130: 0 | C130: 0 | D130: 9 | E130: 0 | F130: 0 | G130: 1 | H130: 0 | I130: 0 | J130: 6 | K130: 16 | M130: =B130/(SUM(B$3:B$611)/1000000) -> 0 | N130: =C130/(SUM(C$3:C$611)/1000000) -> 0 | O130: =D130/(SUM(D$3:D$611)/1000000) -> 20.4567771 | P130: =E130/(SUM(E$3:E$611)/1000000) -> 0 | Q130: =F130/(SUM(F$3:F$611)/1000000) -> 0 | R130: =G130/(SUM(G$3:G$611)/1000000) -> 0.5981319144 | S130: =H130/(SUM(H$3:H$611)/1000000) -> 0 | T130: =I130/(SUM(I$3:I$611)/1000000) -> 0 | U130: =J130/(SUM(J$3:J$611)/1000000) -> 11.15063391 | W130: =AVERAGE(M130:U130) -> 3.578393659 | X130: =LOG((AVERAGE(M130:O130)+0.1)/(AVERAGE($S130:$U130)+0.1),2) -> 0.8581549854 | Y130: =LOG((AVERAGE(P130:R130)+0.1)/(AVERAGE($S130:$U130)+0.1),2) -> -3.6723563
A131: MLTR31B_MM | B131: 43 | C131: 53 | D131: 32 | E131: 137 | F131: 59 | G131: 198 | H131: 37 | I131: 19 | J131: 31 | K131: 609 | M131: =B131/(SUM(B$3:B$611)/1000000) -> 91.55149985 | N131: =C131/(SUM(C$3:C$611)/1000000) -> 74.29285121 | O131: =D131/(SUM(D$3:D$611)/1000000) -> 72.73520748 | P131: =E131/(SUM(E$3:E$611)/1000000) -> 205.7619349 | Q131: =F131/(SUM(F$3:F$611)/1000000) -> 102.2294688 | R131: =G131/(SUM(G$3:G$611)/1000000) -> 118.4301191 | S131: =H131/(SUM(H$3:H$611)/1000000) -> 57.23053698 | T131: =I131/(SUM(I$3:I$611)/1000000) -> 52.33395675 | U131: =J131/(SUM(J$3:J$611)/1000000) -> 57.61160855 | W131: =AVERAGE(M131:U131) -> 92.46413151 | X131: =LOG((AVERAGE(M131:O131)+0.1)/(AVERAGE($S131:$U131)+0.1),2) -> 0.512328157 | Y131: =LOG((AVERAGE(P131:R131)+0.1)/(AVERAGE($S131:$U131)+0.1),2) -> 1.349339631
A132: MMERVK10D3_I | B132: 40 | C132: 87 | D132: 39 | E132: 63 | F132: 36 | G132: 161 | H132: 81 | I132: 5 | J132: 27 | K132: 539 | M132: =B132/(SUM(B$3:B$611)/1000000) -> 85.1641859 | N132: =C132/(SUM(C$3:C$611)/1000000) -> 121.9524161 | O132: =D132/(SUM(D$3:D$611)/1000000) -> 88.64603411 | P132: =E132/(SUM(E$3:E$611)/1000000) -> 94.62045184 | Q132: =F132/(SUM(F$3:F$611)/1000000) -> 62.37730298 | R132: =G132/(SUM(G$3:G$611)/1000000) -> 96.29923822 | S132: =H132/(SUM(H$3:H$611)/1000000) -> 125.2884728 | T132: =I132/(SUM(I$3:I$611)/1000000) -> 13.77209388 | U132: =J132/(SUM(J$3:J$611)/1000000) -> 50.17785261 | W132: =AVERAGE(M132:U132) -> 82.0331165 | X132: =LOG((AVERAGE(M132:O132)+0.1)/(AVERAGE($S132:$U132)+0.1),2) -> 0.6434121187 | Y132: =LOG((AVERAGE(P132:R132)+0.1)/(AVERAGE($S132:$U132)+0.1),2) -> 0.4200473276
A133: RMER17C2 | B133: 4995 | C133: 8111 | D133: 4551 | E133: 6295 | F133: 4545 | G133: 15191 | H133: 5186 | I133: 3297 | J133: 3602 | K133: 55773 | M133: =B133/(SUM(B$3:B$611)/1000000) -> 10634.87771 | N133: =C133/(SUM(C$3:C$611)/1000000) -> 11369.60974 | O133: =D133/(SUM(D$3:D$611)/1000000) -> 10344.31029 | P133: =E133/(SUM(E$3:E$611)/1000000) -> 9454.535624 | Q133: =F133/(SUM(F$3:F$611)/1000000) -> 7875.134501 | R133: =G133/(SUM(G$3:G$611)/1000000) -> 9086.221912 | S133: =H133/(SUM(H$3:H$611)/1000000) -> 8021.555804 | T133: =I133/(SUM(I$3:I$611)/1000000) -> 9081.318706 | U133: =J133/(SUM(J$3:J$611)/1000000) -> 6694.097226 | W133: =AVERAGE(M133:U133) -> 9173.517946 | X133: =LOG((AVERAGE(M133:O133)+0.1)/(AVERAGE($S133:$U133)+0.1),2) -> 0.4429292905 | Y133: =LOG((AVERAGE(P133:R133)+0.1)/(AVERAGE($S133:$U133)+0.1),2) -> 0.1506263296
A134: RLTR6_MM | B134: 1492 | C134: 2236 | D134: 1617 | E134: 18524 | F134: 15468 | G134: 29323 | H134: 1479 | I134: 795 | J134: 1404 | K134: 72338 | M134: =B134/(SUM(B$3:B$611)/1000000) -> 3176.624134 | N134: =C134/(SUM(C$3:C$611)/1000000) -> 3134.31727 | O134: =D134/(SUM(D$3:D$611)/1000000) -> 3675.400953 | P134: =E134/(SUM(E$3:E$611)/1000000) -> 27821.41666 | Q134: =F134/(SUM(F$3:F$611)/1000000) -> 26801.44785 | R134: =G134/(SUM(G$3:G$611)/1000000) -> 17539.02213 | S134: =H134/(SUM(H$3:H$611)/1000000) -> 2287.674708 | T134: =I134/(SUM(I$3:I$611)/1000000) -> 2189.762927 | U134: =J134/(SUM(J$3:J$611)/1000000) -> 2609.248336 | W134: =AVERAGE(M134:U134) -> 9914.990552 | X134: =LOG((AVERAGE(M134:O134)+0.1)/(AVERAGE($S134:$U134)+0.1),2) -> 0.494827513 | Y134: =LOG((AVERAGE(P134:R134)+0.1)/(AVERAGE($S134:$U134)+0.1),2) -> 3.347998957
A135: L1VL4a_5end | B135: 46 | C135: 69 | D135: 60 | E135: 88 | F135: 97 | G135: 415 | H135: 73 | I135: 43 | J135: 5 | K135: 896 | M135: =B135/(SUM(B$3:B$611)/1000000) -> 97.93881379 | N135: =C135/(SUM(C$3:C$611)/1000000) -> 96.72088176 | O135: =D135/(SUM(D$3:D$611)/1000000) -> 136.378514 | P135: =E135/(SUM(E$3:E$611)/1000000) -> 132.1682502 | Q135: =F135/(SUM(F$3:F$611)/1000000) -> 168.0721775 | R135: =G135/(SUM(G$3:G$611)/1000000) -> 248.2247445 | S135: =H135/(SUM(H$3:H$611)/1000000) -> 112.9143027 | T135: =I135/(SUM(I$3:I$611)/1000000) -> 118.4400074 | U135: =J135/(SUM(J$3:J$611)/1000000) -> 9.292194928 | W135: =AVERAGE(M135:U135) -> 124.4610985 | X135: =LOG((AVERAGE(M135:O135)+0.1)/(AVERAGE($S135:$U135)+0.1),2) -> 0.4595917086 | Y135: =LOG((AVERAGE(P135:R135)+0.1)/(AVERAGE($S135:$U135)+0.1),2) -> 1.187476048
A136: MMSAT4 | B136: 1056 | C136: 1825 | D136: 1196 | E136: 1593 | F136: 1106 | G136: 5090 | H136: 1095 | I136: 718 | J136: 1022 | K136: 14701 | M136: =B136/(SUM(B$3:B$611)/1000000) -> 2248.334508 | N136: =C136/(SUM(C$3:C$611)/1000000) -> 2558.197235 | O136: =D136/(SUM(D$3:D$611)/1000000) -> 2718.478379 | P136: =E136/(SUM(E$3:E$611)/1000000) -> 2392.545711 | Q136: =F136/(SUM(F$3:F$611)/1000000) -> 1916.369364 | R136: =G136/(SUM(G$3:G$611)/1000000) -> 3044.491444 | S136: =H136/(SUM(H$3:H$611)/1000000) -> 1693.71454 | T136: =I136/(SUM(I$3:I$611)/1000000) -> 1977.672681 | U136: =J136/(SUM(J$3:J$611)/1000000) -> 1899.324643 | W136: =AVERAGE(M136:U136) -> 2272.12539 | X136: =LOG((AVERAGE(M136:O136)+0.1)/(AVERAGE($S136:$U136)+0.1),2) -> 0.4338116488 | Y136: =LOG((AVERAGE(P136:R136)+0.1)/(AVERAGE($S136:$U136)+0.1),2) -> 0.4005322121
A137: B1_Mus1 | B137: 1533 | C137: 2214 | D137: 1421 | E137: 1692 | F137: 1327 | G137: 3964 | H137: 1765 | I137: 744 | J137: 1113 | K137: 15773 | M137: =B137/(SUM(B$3:B$611)/1000000) -> 3263.917425 | N137: =C137/(SUM(C$3:C$611)/1000000) -> 3103.478728 | O137: =D137/(SUM(D$3:D$611)/1000000) -> 3229.897807 | P137: =E137/(SUM(E$3:E$611)/1000000) -> 2541.234992 | Q137: =F137/(SUM(F$3:F$611)/1000000) -> 2299.296696 | R137: =G137/(SUM(G$3:G$611)/1000000) -> 2370.994909 | S137: =H137/(SUM(H$3:H$611)/1000000) -> 2730.051291 | T137: =I137/(SUM(I$3:I$611)/1000000) -> 2049.28757 | U137: =J137/(SUM(J$3:J$611)/1000000) -> 2068.442591 | W137: =AVERAGE(M137:U137) -> 2628.511334 | X137: =LOG((AVERAGE(M137:O137)+0.1)/(AVERAGE($S137:$U137)+0.1),2) -> 0.4869729177 | Y137: =LOG((AVERAGE(P137:R137)+0.1)/(AVERAGE($S137:$U137)+0.1),2) -> 0.07466484727
A138: RMER1A | B138: 160 | C138: 329 | D138: 273 | E138: 162 | F138: 174 | G138: 925 | H138: 177 | I138: 155 | J138: 206 | K138: 2561 | M138: =B138/(SUM(B$3:B$611)/1000000) -> 340.6567436 | N138: =C138/(SUM(C$3:C$611)/1000000) -> 461.1763782 | O138: =D138/(SUM(D$3:D$611)/1000000) -> 620.5222388 | P138: =E138/(SUM(E$3:E$611)/1000000) -> 243.3097333 | Q138: =F138/(SUM(F$3:F$611)/1000000) -> 301.4902977 | R138: =G138/(SUM(G$3:G$611)/1000000) -> 553.2720208 | S138: =H138/(SUM(H$3:H$611)/1000000) -> 273.7785147 | T138: =I138/(SUM(I$3:I$611)/1000000) -> 426.9349103 | U138: =J138/(SUM(J$3:J$611)/1000000) -> 382.838431 | W138: =AVERAGE(M138:U138) -> 400.442141 | X138: =LOG((AVERAGE(M138:O138)+0.1)/(AVERAGE($S138:$U138)+0.1),2) -> 0.3924186316 | Y138: =LOG((AVERAGE(P138:R138)+0.1)/(AVERAGE($S138:$U138)+0.1),2) -> 0.01919924302
A139: RMER1B | B139: 17 | C139: 28 | D139: 13 | E139: 8 | F139: 8 | G139: 0 | H139: 28 | I139: 10 | J139: 3 | K139: 115 | M139: =B139/(SUM(B$3:B$611)/1000000) -> 36.19477901 | N139: =C139/(SUM(C$3:C$611)/1000000) -> 39.24905347 | O139: =D139/(SUM(D$3:D$611)/1000000) -> 29.54867804 | P139: =E139/(SUM(E$3:E$611)/1000000) -> 12.01529547 | Q139: =F139/(SUM(F$3:F$611)/1000000) -> 13.86162288 | R139: =G139/(SUM(G$3:G$611)/1000000) -> 0 | S139: =H139/(SUM(H$3:H$611)/1000000) -> 43.30959555 | T139: =I139/(SUM(I$3:I$611)/1000000) -> 27.54418776 | U139: =J139/(SUM(J$3:J$611)/1000000) -> 5.575316957 | W139: =AVERAGE(M139:U139) -> 23.0331699 | X139: =LOG((AVERAGE(M139:O139)+0.1)/(AVERAGE($S139:$U139)+0.1),2) -> 0.4565570777 | Y139: =LOG((AVERAGE(P139:R139)+0.1)/(AVERAGE($S139:$U139)+0.1),2) -> -1.55147857
A140: RLTR11C_MM | B140: 8 | C140: 1 | D140: 1 | E140: 0 | F140: 2 | G140: 0 | H140: 0 | I140: 1 | J140: 6 | K140: 19 | M140: =B140/(SUM(B$3:B$611)/1000000) -> 17.03283718 | N140: =C140/(SUM(C$3:C$611)/1000000) -> 1.40175191 | O140: =D140/(SUM(D$3:D$611)/1000000) -> 2.272975234 | P140: =E140/(SUM(E$3:E$611)/1000000) -> 0 | Q140: =F140/(SUM(F$3:F$611)/1000000) -> 3.465405721 | R140: =G140/(SUM(G$3:G$611)/1000000) -> 0 | S140: =H140/(SUM(H$3:H$611)/1000000) -> 0 | T140: =I140/(SUM(I$3:I$611)/1000000) -> 2.754418776 | U140: =J140/(SUM(J$3:J$611)/1000000) -> 11.15063391 | W140: =AVERAGE(M140:U140) -> 4.230891415 | X140: =LOG((AVERAGE(M140:O140)+0.1)/(AVERAGE($S140:$U140)+0.1),2) -> 0.5645047188 | Y140: =LOG((AVERAGE(P140:R140)+0.1)/(AVERAGE($S140:$U140)+0.1),2) -> -1.915526955
A141: B1_Rn | B141: 830 | C141: 1370 | D141: 887 | E141: 1022 | F141: 780 | G141: 1770 | H141: 990 | I141: 542 | J141: 656 | K141: 8847 | M141: =B141/(SUM(B$3:B$611)/1000000) -> 1767.156858 | N141: =C141/(SUM(C$3:C$611)/1000000) -> 1920.400116 | O141: =D141/(SUM(D$3:D$611)/1000000) -> 2016.129032 | P141: =E141/(SUM(E$3:E$611)/1000000) -> 1534.953996 | Q141: =F141/(SUM(F$3:F$611)/1000000) -> 1351.508231 | R141: =G141/(SUM(G$3:G$611)/1000000) -> 1058.693488 | S141: =H141/(SUM(H$3:H$611)/1000000) -> 1531.303557 | T141: =I141/(SUM(I$3:I$611)/1000000) -> 1492.894977 | U141: =J141/(SUM(J$3:J$611)/1000000) -> 1219.135975 | W141: =AVERAGE(M141:U141) -> 1543.575137 | X141: =LOG((AVERAGE(M141:O141)+0.1)/(AVERAGE($S141:$U141)+0.1),2) -> 0.4266700357 | Y141: =LOG((AVERAGE(P141:R141)+0.1)/(AVERAGE($S141:$U141)+0.1),2) -> -0.1051084595
A142: B1_Mur4 | B142: 759 | C142: 1225 | D142: 654 | E142: 821 | F142: 604 | G142: 1762 | H142: 900 | I142: 464 | J142: 593 | K142: 7782 | M142: =B142/(SUM(B$3:B$611)/1000000) -> 1615.990428 | N142: =C142/(SUM(C$3:C$611)/1000000) -> 1717.146089 | O142: =D142/(SUM(D$3:D$611)/1000000) -> 1486.525803 | P142: =E142/(SUM(E$3:E$611)/1000000) -> 1233.069698 | Q142: =F142/(SUM(F$3:F$611)/1000000) -> 1046.552528 | R142: =G142/(SUM(G$3:G$611)/1000000) -> 1053.908433 | S142: =H142/(SUM(H$3:H$611)/1000000) -> 1392.094143 | T142: =I142/(SUM(I$3:I$611)/1000000) -> 1278.050312 | U142: =J142/(SUM(J$3:J$611)/1000000) -> 1102.054318 | W142: =AVERAGE(M142:U142) -> 1325.043528 | X142: =LOG((AVERAGE(M142:O142)+0.1)/(AVERAGE($S142:$U142)+0.1),2) -> 0.3535014365 | Y142: =LOG((AVERAGE(P142:R142)+0.1)/(AVERAGE($S142:$U142)+0.1),2) -> -0.1783396069
A143: RMER17C | B143: 32 | C143: 48 | D143: 19 | E143: 23 | F143: 31 | G143: 41 | H143: 17 | I143: 20 | J143: 37 | K143: 268 | M143: =B143/(SUM(B$3:B$611)/1000000) -> 68.13134872 | N143: =C143/(SUM(C$3:C$611)/1000000) -> 67.28409166 | O143: =D143/(SUM(D$3:D$611)/1000000) -> 43.18652944 | P143: =E143/(SUM(E$3:E$611)/1000000) -> 34.54397448 | Q143: =F143/(SUM(F$3:F$611)/1000000) -> 53.71378868 | R143: =G143/(SUM(G$3:G$611)/1000000) -> 24.52340849 | S143: =H143/(SUM(H$3:H$611)/1000000) -> 26.29511158 | T143: =I143/(SUM(I$3:I$611)/1000000) -> 55.08837553 | U143: =J143/(SUM(J$3:J$611)/1000000) -> 68.76224247 | W143: =AVERAGE(M143:U143) -> 49.05876345 | X143: =LOG((AVERAGE(M143:O143)+0.1)/(AVERAGE($S143:$U143)+0.1),2) -> 0.2499261163 | Y143: =LOG((AVERAGE(P143:R143)+0.1)/(AVERAGE($S143:$U143)+0.1),2) -> -0.4118844199
A144: RMER10B | B144: 29 | C144: 10 | D144: 6 | E144: 13 | F144: 2 | G144: 0 | H144: 9 | I144: 2 | J144: 23 | K144: 94 | M144: =B144/(SUM(B$3:B$611)/1000000) -> 61.74403478 | N144: =C144/(SUM(C$3:C$611)/1000000) -> 14.0175191 | O144: =D144/(SUM(D$3:D$611)/1000000) -> 13.6378514 | P144: =E144/(SUM(E$3:E$611)/1000000) -> 19.52485514 | Q144: =F144/(SUM(F$3:F$611)/1000000) -> 3.465405721 | R144: =G144/(SUM(G$3:G$611)/1000000) -> 0 | S144: =H144/(SUM(H$3:H$611)/1000000) -> 13.92094143 | T144: =I144/(SUM(I$3:I$611)/1000000) -> 5.508837553 | U144: =J144/(SUM(J$3:J$611)/1000000) -> 42.74409667 | W144: =AVERAGE(M144:U144) -> 19.39594909 | X144: =LOG((AVERAGE(M144:O144)+0.1)/(AVERAGE($S144:$U144)+0.1),2) -> 0.5218453877 | Y144: =LOG((AVERAGE(P144:R144)+0.1)/(AVERAGE($S144:$U144)+0.1),2) -> -1.423526234
A145: RLTR31_MM | B145: 7 | C145: 7 | D145: 27 | E145: 0 | F145: 2 | G145: 2 | H145: 4 | I145: 4 | J145: 23 | K145: 76 | M145: =B145/(SUM(B$3:B$611)/1000000) -> 14.90373253 | N145: =C145/(SUM(C$3:C$611)/1000000) -> 9.812263367 | O145: =D145/(SUM(D$3:D$611)/1000000) -> 61.37033131 | P145: =E145/(SUM(E$3:E$611)/1000000) -> 0 | Q145: =F145/(SUM(F$3:F$611)/1000000) -> 3.465405721 | R145: =G145/(SUM(G$3:G$611)/1000000) -> 1.196263829 | S145: =H145/(SUM(H$3:H$611)/1000000) -> 6.187085079 | T145: =I145/(SUM(I$3:I$611)/1000000) -> 11.01767511 | U145: =J145/(SUM(J$3:J$611)/1000000) -> 42.74409667 | W145: =AVERAGE(M145:U145) -> 16.74409485 | X145: =LOG((AVERAGE(M145:O145)+0.1)/(AVERAGE($S145:$U145)+0.1),2) -> 0.5198691197 | Y145: =LOG((AVERAGE(P145:R145)+0.1)/(AVERAGE($S145:$U145)+0.1),2) -> -3.602036309
A146: RLTR31B_MM | B146: 1461 | C146: 2257 | D146: 1376 | E146: 1278 | F146: 1040 | G146: 3060 | H146: 1555 | I146: 1208 | J146: 1099 | K146: 14334 | M146: =B146/(SUM(B$3:B$611)/1000000) -> 3110.62189 | N146: =C146/(SUM(C$3:C$611)/1000000) -> 3163.75406 | O146: =D146/(SUM(D$3:D$611)/1000000) -> 3127.613922 | P146: =E146/(SUM(E$3:E$611)/1000000) -> 1919.443452 | Q146: =F146/(SUM(F$3:F$611)/1000000) -> 1802.010975 | R146: =G146/(SUM(G$3:G$611)/1000000) -> 1830.283658 | S146: =H146/(SUM(H$3:H$611)/1000000) -> 2405.229324 | T146: =I146/(SUM(I$3:I$611)/1000000) -> 3327.337882 | U146: =J146/(SUM(J$3:J$611)/1000000) -> 2042.424445 | W146: =AVERAGE(M146:U146) -> 2525.41329 | X146: =LOG((AVERAGE(M146:O146)+0.1)/(AVERAGE($S146:$U146)+0.1),2) -> 0.2741153676 | Y146: =LOG((AVERAGE(P146:R146)+0.1)/(AVERAGE($S146:$U146)+0.1),2) -> -0.4858793276
A147: RLTR51A_Mm | B147: 736 | C147: 1376 | D147: 1001 | E147: 1003 | F147: 926 | G147: 1512 | H147: 977 | I147: 725 | J147: 660 | K147: 8916 | M147: =B147/(SUM(B$3:B$611)/1000000) -> 1567.021021 | N147: =C147/(SUM(C$3:C$611)/1000000) -> 1928.810628 | O147: =D147/(SUM(D$3:D$611)/1000000) -> 2275.248209 | P147: =E147/(SUM(E$3:E$611)/1000000) -> 1506.41767 | Q147: =F147/(SUM(F$3:F$611)/1000000) -> 1604.482849 | R147: =G147/(SUM(G$3:G$611)/1000000) -> 904.3754546 | S147: =H147/(SUM(H$3:H$611)/1000000) -> 1511.19553 | T147: =I147/(SUM(I$3:I$611)/1000000) -> 1996.953613 | U147: =J147/(SUM(J$3:J$611)/1000000) -> 1226.56973 | W147: =AVERAGE(M147:U147) -> 1613.452745 | X147: =LOG((AVERAGE(M147:O147)+0.1)/(AVERAGE($S147:$U147)+0.1),2) -> 0.2855461122 | Y147: =LOG((AVERAGE(P147:R147)+0.1)/(AVERAGE($S147:$U147)+0.1),2) -> -0.2377632411
A148: B1 | B148: 1694 | C148: 2358 | D148: 1590 | E148: 1855 | F148: 1474 | G148: 4677 | H148: 2004 | I148: 902 | J148: 1382 | K148: 17936 | M148: =B148/(SUM(B$3:B$611)/1000000) -> 3606.703273 | N148: =C148/(SUM(C$3:C$611)/1000000) -> 3305.331003 | O148: =D148/(SUM(D$3:D$611)/1000000) -> 3614.030622 | P148: =E148/(SUM(E$3:E$611)/1000000) -> 2786.046637 | Q148: =F148/(SUM(F$3:F$611)/1000000) -> 2554.004016 | R148: =G148/(SUM(G$3:G$611)/1000000) -> 2797.462964 | S148: =H148/(SUM(H$3:H$611)/1000000) -> 3099.729624 | T148: =I148/(SUM(I$3:I$611)/1000000) -> 2484.485736 | U148: =J148/(SUM(J$3:J$611)/1000000) -> 2568.362678 | W148: =AVERAGE(M148:U148) -> 2979.57295 | X148: =LOG((AVERAGE(M148:O148)+0.1)/(AVERAGE($S148:$U148)+0.1),2) -> 0.3686259734 | Y148: =LOG((AVERAGE(P148:R148)+0.1)/(AVERAGE($S148:$U148)+0.1),2) -> -0.002668195127
A149: ORR1C2_LTR | B149: 29 | C149: 67 | D149: 0 | E149: 30 | F149: 19 | G149: 20 | H149: 30 | I149: 7 | J149: 36 | K149: 238 | M149: =B149/(SUM(B$3:B$611)/1000000) -> 61.74403478 | N149: =C149/(SUM(C$3:C$611)/1000000) -> 93.91737794 | O149: =D149/(SUM(D$3:D$611)/1000000) -> 0 | P149: =E149/(SUM(E$3:E$611)/1000000) -> 45.05735802 | Q149: =F149/(SUM(F$3:F$611)/1000000) -> 32.92135435 | R149: =G149/(SUM(G$3:G$611)/1000000) -> 11.96263829 | S149: =H149/(SUM(H$3:H$611)/1000000) -> 46.40313809 | T149: =I149/(SUM(I$3:I$611)/1000000) -> 19.28093143 | U149: =J149/(SUM(J$3:J$611)/1000000) -> 66.90380348 | W149: =AVERAGE(M149:U149) -> 42.02118182 | X149: =LOG((AVERAGE(M149:O149)+0.1)/(AVERAGE($S149:$U149)+0.1),2) -> 0.2309796739 | Y149: =LOG((AVERAGE(P149:R149)+0.1)/(AVERAGE($S149:$U149)+0.1),2) -> -0.5583488881
A150: IAPLTR2a2_Mm | B150: 251 | C150: 264 | D150: 154 | E150: 160 | F150: 148 | G150: 522 | H150: 249 | I150: 108 | J150: 159 | K150: 2015 | M150: =B150/(SUM(B$3:B$611)/1000000) -> 534.4052666 | N150: =C150/(SUM(C$3:C$611)/1000000) -> 370.0625041 | O150: =D150/(SUM(D$3:D$611)/1000000) -> 350.038186 | P150: =E150/(SUM(E$3:E$611)/1000000) -> 240.3059094 | Q150: =F150/(SUM(F$3:F$611)/1000000) -> 256.4400234 | R150: =G150/(SUM(G$3:G$611)/1000000) -> 312.2248593 | S150: =H150/(SUM(H$3:H$611)/1000000) -> 385.1460461 | T150: =I150/(SUM(I$3:I$611)/1000000) -> 297.4772278 | U150: =J150/(SUM(J$3:J$611)/1000000) -> 295.4917987 | W150: =AVERAGE(M150:U150) -> 337.9546468 | X150: =LOG((AVERAGE(M150:O150)+0.1)/(AVERAGE($S150:$U150)+0.1),2) -> 0.3589457487 | Y150: =LOG((AVERAGE(P150:R150)+0.1)/(AVERAGE($S150:$U150)+0.1),2) -> -0.2738241019
A151: SQR2_MM | B151: 11 | C151: 20 | D151: 5 | E151: 99 | F151: 22 | G151: 142 | H151: 17 | I151: 1 | J151: 10 | K151: 327 | M151: =B151/(SUM(B$3:B$611)/1000000) -> 23.42015112 | N151: =C151/(SUM(C$3:C$611)/1000000) -> 28.03503819 | O151: =D151/(SUM(D$3:D$611)/1000000) -> 11.36487617 | P151: =E151/(SUM(E$3:E$611)/1000000) -> 148.6892815 | Q151: =F151/(SUM(F$3:F$611)/1000000) -> 38.11946293 | R151: =G151/(SUM(G$3:G$611)/1000000) -> 84.93473185 | S151: =H151/(SUM(H$3:H$611)/1000000) -> 26.29511158 | T151: =I151/(SUM(I$3:I$611)/1000000) -> 2.754418776 | U151: =J151/(SUM(J$3:J$611)/1000000) -> 18.58438986 | W151: =AVERAGE(M151:U151) -> 42.46638466 | X151: =LOG((AVERAGE(M151:O151)+0.1)/(AVERAGE($S151:$U151)+0.1),2) -> 0.3970517682 | Y151: =LOG((AVERAGE(P151:R151)+0.1)/(AVERAGE($S151:$U151)+0.1),2) -> 2.504718393
A152: L1_Mur1_5end | B152: 21 | C152: 12 | D152: 32 | E152: 9 | F152: 20 | G152: 1 | H152: 12 | I152: 25 | J152: 14 | K152: 146 | M152: =B152/(SUM(B$3:B$611)/1000000) -> 44.7111976 | N152: =C152/(SUM(C$3:C$611)/1000000) -> 16.82102291 | O152: =D152/(SUM(D$3:D$611)/1000000) -> 72.73520748 | P152: =E152/(SUM(E$3:E$611)/1000000) -> 13.51720741 | Q152: =F152/(SUM(F$3:F$611)/1000000) -> 34.65405721 | R152: =G152/(SUM(G$3:G$611)/1000000) -> 0.5981319144 | S152: =H152/(SUM(H$3:H$611)/1000000) -> 18.56125524 | T152: =I152/(SUM(I$3:I$611)/1000000) -> 68.86046941 | U152: =J152/(SUM(J$3:J$611)/1000000) -> 26.0181458 | W152: =AVERAGE(M152:U152) -> 32.941855 | X152: =LOG((AVERAGE(M152:O152)+0.1)/(AVERAGE($S152:$U152)+0.1),2) -> 0.2425911822 | Y152: =LOG((AVERAGE(P152:R152)+0.1)/(AVERAGE($S152:$U152)+0.1),2) -> -1.212842632
A153: IAP5-Mm_I | B153: 177 | C153: 243 | D153: 259 | E153: 216 | F153: 134 | G153: 653 | H153: 174 | I153: 156 | J153: 210 | K153: 2222 | M153: =B153/(SUM(B$3:B$611)/1000000) -> 376.8515226 | N153: =C153/(SUM(C$3:C$611)/1000000) -> 340.625714 | O153: =D153/(SUM(D$3:D$611)/1000000) -> 588.7005855 | P153: =E153/(SUM(E$3:E$611)/1000000) -> 324.4129777 | Q153: =F153/(SUM(F$3:F$611)/1000000) -> 232.1821833 | R153: =G153/(SUM(G$3:G$611)/1000000) -> 390.5801401 | S153: =H153/(SUM(H$3:H$611)/1000000) -> 269.1382009 | T153: =I153/(SUM(I$3:I$611)/1000000) -> 429.6893291 | U153: =J153/(SUM(J$3:J$611)/1000000) -> 390.272187 | W153: =AVERAGE(M153:U153) -> 371.3836489 | X153: =LOG((AVERAGE(M153:O153)+0.1)/(AVERAGE($S153:$U153)+0.1),2) -> 0.2621492372 | Y153: =LOG((AVERAGE(P153:R153)+0.1)/(AVERAGE($S153:$U153)+0.1),2) -> -0.2013731569
A154: ORR1C1 | B154: 1 | C154: 13 | D154: 1 | E154: 8 | F154: 4 | G154: 0 | H154: 6 | I154: 4 | J154: 2 | K154: 39 | M154: =B154/(SUM(B$3:B$611)/1000000) -> 2.129104648 | N154: =C154/(SUM(C$3:C$611)/1000000) -> 18.22277482 | O154: =D154/(SUM(D$3:D$611)/1000000) -> 2.272975234 | P154: =E154/(SUM(E$3:E$611)/1000000) -> 12.01529547 | Q154: =F154/(SUM(F$3:F$611)/1000000) -> 6.930811442 | R154: =G154/(SUM(G$3:G$611)/1000000) -> 0 | S154: =H154/(SUM(H$3:H$611)/1000000) -> 9.280627618 | T154: =I154/(SUM(I$3:I$611)/1000000) -> 11.01767511 | U154: =J154/(SUM(J$3:J$611)/1000000) -> 3.716877971 | W154: =AVERAGE(M154:U154) -> 7.287349146 | X154: =LOG((AVERAGE(M154:O154)+0.1)/(AVERAGE($S154:$U154)+0.1),2) -> -0.08494472254 | Y154: =LOG((AVERAGE(P154:R154)+0.1)/(AVERAGE($S154:$U154)+0.1),2) -> -0.3372906646
A155: DIP0 | B155: 48 | C155: 102 | D155: 41 | E155: 49 | F155: 46 | G155: 163 | H155: 73 | I155: 45 | J155: 36 | K155: 603 | M155: =B155/(SUM(B$3:B$611)/1000000) -> 102.1970231 | N155: =C155/(SUM(C$3:C$611)/1000000) -> 142.9786948 | O155: =D155/(SUM(D$3:D$611)/1000000) -> 93.19198458 | P155: =E155/(SUM(E$3:E$611)/1000000) -> 73.59368476 | Q155: =F155/(SUM(F$3:F$611)/1000000) -> 79.70433158 | R155: =G155/(SUM(G$3:G$611)/1000000) -> 97.49550205 | S155: =H155/(SUM(H$3:H$611)/1000000) -> 112.9143027 | T155: =I155/(SUM(I$3:I$611)/1000000) -> 123.9488449 | U155: =J155/(SUM(J$3:J$611)/1000000) -> 66.90380348 | W155: =AVERAGE(M155:U155) -> 99.21424133 | X155: =LOG((AVERAGE(M155:O155)+0.1)/(AVERAGE($S155:$U155)+0.1),2) -> 0.1554813896 | Y155: =LOG((AVERAGE(P155:R155)+0.1)/(AVERAGE($S155:$U155)+0.1),2) -> -0.276164231
A156: L1-1D_Cpo | B156: 17 | C156: 30 | D156: 15 | E156: 14 | F156: 18 | G156: 93 | H156: 24 | I156: 8 | J156: 18 | K156: 237 | M156: =B156/(SUM(B$3:B$611)/1000000) -> 36.19477901 | N156: =C156/(SUM(C$3:C$611)/1000000) -> 42.05255729 | O156: =D156/(SUM(D$3:D$611)/1000000) -> 34.0946285 | P156: =E156/(SUM(E$3:E$611)/1000000) -> 21.02676707 | Q156: =F156/(SUM(F$3:F$611)/1000000) -> 31.18865149 | R156: =G156/(SUM(G$3:G$611)/1000000) -> 55.62626804 | S156: =H156/(SUM(H$3:H$611)/1000000) -> 37.12251047 | T156: =I156/(SUM(I$3:I$611)/1000000) -> 22.03535021 | U156: =J156/(SUM(J$3:J$611)/1000000) -> 33.45190174 | W156: =AVERAGE(M156:U156) -> 34.75482376 | X156: =LOG((AVERAGE(M156:O156)+0.1)/(AVERAGE($S156:$U156)+0.1),2) -> 0.2778423043 | Y156: =LOG((AVERAGE(P156:R156)+0.1)/(AVERAGE($S156:$U156)+0.1),2) -> 0.2190206626
A157: SINEB2_MU | B157: 126 | C157: 146 | D157: 91 | E157: 153 | F157: 95 | G157: 338 | H157: 132 | I157: 78 | J157: 84 | K157: 1243 | M157: =B157/(SUM(B$3:B$611)/1000000) -> 268.2671856 | N157: =C157/(SUM(C$3:C$611)/1000000) -> 204.6557788 | O157: =D157/(SUM(D$3:D$611)/1000000) -> 206.8407463 | P157: =E157/(SUM(E$3:E$611)/1000000) -> 229.7925259 | Q157: =F157/(SUM(F$3:F$611)/1000000) -> 164.6067717 | R157: =G157/(SUM(G$3:G$611)/1000000) -> 202.1685871 | S157: =H157/(SUM(H$3:H$611)/1000000) -> 204.1738076 | T157: =I157/(SUM(I$3:I$611)/1000000) -> 214.8446646 | U157: =J157/(SUM(J$3:J$611)/1000000) -> 156.1088748 | W157: =AVERAGE(M157:U157) -> 205.7176603 | X157: =LOG((AVERAGE(M157:O157)+0.1)/(AVERAGE($S157:$U157)+0.1),2) -> 0.2410361231 | Y157: =LOG((AVERAGE(P157:R157)+0.1)/(AVERAGE($S157:$U157)+0.1),2) -> 0.05277784352
A158: L1-2_Dor | B158: 2 | C158: 2 | D158: 1 | E158: 0 | F158: 0 | G158: 6 | H158: 1 | I158: 2 | J158: 1 | K158: 15 | M158: =B158/(SUM(B$3:B$611)/1000000) -> 4.258209295 | N158: =C158/(SUM(C$3:C$611)/1000000) -> 2.803503819 | O158: =D158/(SUM(D$3:D$611)/1000000) -> 2.272975234 | P158: =E158/(SUM(E$3:E$611)/1000000) -> 0 | Q158: =F158/(SUM(F$3:F$611)/1000000) -> 0 | R158: =G158/(SUM(G$3:G$611)/1000000) -> 3.588791486 | S158: =H158/(SUM(H$3:H$611)/1000000) -> 1.54677127 | T158: =I158/(SUM(I$3:I$611)/1000000) -> 5.508837553 | U158: =J158/(SUM(J$3:J$611)/1000000) -> 1.858438986 | W158: =AVERAGE(M158:U158) -> 2.42639196 | X158: =LOG((AVERAGE(M158:O158)+0.1)/(AVERAGE($S158:$U158)+0.1),2) -> 0.0644029171 | Y158: =LOG((AVERAGE(P158:R158)+0.1)/(AVERAGE($S158:$U158)+0.1),2) -> -1.244513203
A159: MLTR31D_MM | B159: 68 | C159: 119 | D159: 49 | E159: 55 | F159: 112 | G159: 129 | H159: 84 | I159: 28 | J159: 80 | K159: 724 | M159: =B159/(SUM(B$3:B$611)/1000000) -> 144.779116 | N159: =C159/(SUM(C$3:C$611)/1000000) -> 166.8084772 | O159: =D159/(SUM(D$3:D$611)/1000000) -> 111.3757864 | P159: =E159/(SUM(E$3:E$611)/1000000) -> 82.60515636 | Q159: =F159/(SUM(F$3:F$611)/1000000) -> 194.0627204 | R159: =G159/(SUM(G$3:G$611)/1000000) -> 77.15901696 | S159: =H159/(SUM(H$3:H$611)/1000000) -> 129.9287867 | T159: =I159/(SUM(I$3:I$611)/1000000) -> 77.12372574 | U159: =J159/(SUM(J$3:J$611)/1000000) -> 148.6751188 | W159: =AVERAGE(M159:U159) -> 125.8353227 | X159: =LOG((AVERAGE(M159:O159)+0.1)/(AVERAGE($S159:$U159)+0.1),2) -> 0.2495664609 | Y159: =LOG((AVERAGE(P159:R159)+0.1)/(AVERAGE($S159:$U159)+0.1),2) -> -0.007722801353
A160: MMERVK9E_I | B160: 59 | C160: 81 | D160: 130 | E160: 43 | F160: 32 | G160: 41 | H160: 68 | I160: 33 | J160: 120 | K160: 607 | M160: =B160/(SUM(B$3:B$611)/1000000) -> 125.6171742 | N160: =C160/(SUM(C$3:C$611)/1000000) -> 113.5419047 | O160: =D160/(SUM(D$3:D$611)/1000000) -> 295.4867804 | P160: =E160/(SUM(E$3:E$611)/1000000) -> 64.58221316 | Q160: =F160/(SUM(F$3:F$611)/1000000) -> 55.44649154 | R160: =G160/(SUM(G$3:G$611)/1000000) -> 24.52340849 | S160: =H160/(SUM(H$3:H$611)/1000000) -> 105.1804463 | T160: =I160/(SUM(I$3:I$611)/1000000) -> 90.89581962 | U160: =J160/(SUM(J$3:J$611)/1000000) -> 223.0126783 | W160: =AVERAGE(M160:U160) -> 122.0318796 | X160: =LOG((AVERAGE(M160:O160)+0.1)/(AVERAGE($S160:$U160)+0.1),2) -> 0.3511040566 | Y160: =LOG((AVERAGE(P160:R160)+0.1)/(AVERAGE($S160:$U160)+0.1),2) -> -1.533708099
A161: ERVB4_2-I_MM | B161: 92 | C161: 124 | D161: 120 | E161: 105 | F161: 62 | G161: 161 | H161: 118 | I161: 47 | J161: 112 | K161: 941 | M161: =B161/(SUM(B$3:B$611)/1000000) -> 195.8776276 | N161: =C161/(SUM(C$3:C$611)/1000000) -> 173.8172368 | O161: =D161/(SUM(D$3:D$611)/1000000) -> 272.757028 | P161: =E161/(SUM(E$3:E$611)/1000000) -> 157.7007531 | Q161: =F161/(SUM(F$3:F$611)/1000000) -> 107.4275774 | R161: =G161/(SUM(G$3:G$611)/1000000) -> 96.29923822 | S161: =H161/(SUM(H$3:H$611)/1000000) -> 182.5190098 | T161: =I161/(SUM(I$3:I$611)/1000000) -> 129.4576825 | U161: =J161/(SUM(J$3:J$611)/1000000) -> 208.1451664 | W161: =AVERAGE(M161:U161) -> 169.33348 | X161: =LOG((AVERAGE(M161:O161)+0.1)/(AVERAGE($S161:$U161)+0.1),2) -> 0.3045803935 | Y161: =LOG((AVERAGE(P161:R161)+0.1)/(AVERAGE($S161:$U161)+0.1),2) -> -0.5247780038
A162: MYSERV | B162: 8 | C162: 9 | D162: 0 | E162: 1 | F162: 2 | G162: 0 | H162: 13 | I162: 1 | J162: 0 | K162: 34 | M162: =B162/(SUM(B$3:B$611)/1000000) -> 17.03283718 | N162: =C162/(SUM(C$3:C$611)/1000000) -> 12.61576719 | O162: =D162/(SUM(D$3:D$611)/1000000) -> 0 | P162: =E162/(SUM(E$3:E$611)/1000000) -> 1.501911934 | Q162: =F162/(SUM(F$3:F$611)/1000000) -> 3.465405721 | R162: =G162/(SUM(G$3:G$611)/1000000) -> 0 | S162: =H162/(SUM(H$3:H$611)/1000000) -> 20.10802651 | T162: =I162/(SUM(I$3:I$611)/1000000) -> 2.754418776 | U162: =J162/(SUM(J$3:J$611)/1000000) -> 0 | W162: =AVERAGE(M162:U162) -> 6.386485256 | X162: =LOG((AVERAGE(M162:O162)+0.1)/(AVERAGE($S162:$U162)+0.1),2) -> 0.3707012056 | Y162: =LOG((AVERAGE(P162:R162)+0.1)/(AVERAGE($S162:$U162)+0.1),2) -> -2.136647197
A163: RLTR48A | B163: 84 | C163: 79 | D163: 75 | E163: 25 | F163: 44 | G163: 136 | H163: 75 | I163: 36 | J163: 86 | K163: 640 | M163: =B163/(SUM(B$3:B$611)/1000000) -> 178.8447904 | N163: =C163/(SUM(C$3:C$611)/1000000) -> 110.7384009 | O163: =D163/(SUM(D$3:D$611)/1000000) -> 170.4731425 | P163: =E163/(SUM(E$3:E$611)/1000000) -> 37.54779835 | Q163: =F163/(SUM(F$3:F$611)/1000000) -> 76.23892586 | R163: =G163/(SUM(G$3:G$611)/1000000) -> 81.34594036 | S163: =H163/(SUM(H$3:H$611)/1000000) -> 116.0078452 | T163: =I163/(SUM(I$3:I$611)/1000000) -> 99.15907595 | U163: =J163/(SUM(J$3:J$611)/1000000) -> 159.8257528 | W163: =AVERAGE(M163:U163) -> 114.4646303 | X163: =LOG((AVERAGE(M163:O163)+0.1)/(AVERAGE($S163:$U163)+0.1),2) -> 0.2947348681 | Y163: =LOG((AVERAGE(P163:R163)+0.1)/(AVERAGE($S163:$U163)+0.1),2) -> -0.9413445086
A164: MMERVK9C_I | B164: 60 | C164: 112 | D164: 17 | E164: 55 | F164: 53 | G164: 99 | H164: 43 | I164: 44 | J164: 70 | K164: 553 | M164: =B164/(SUM(B$3:B$611)/1000000) -> 127.7462789 | N164: =C164/(SUM(C$3:C$611)/1000000) -> 156.9962139 | O164: =D164/(SUM(D$3:D$611)/1000000) -> 38.64057897 | P164: =E164/(SUM(E$3:E$611)/1000000) -> 82.60515636 | Q164: =F164/(SUM(F$3:F$611)/1000000) -> 91.83325161 | R164: =G164/(SUM(G$3:G$611)/1000000) -> 59.21505953 | S164: =H164/(SUM(H$3:H$611)/1000000) -> 66.5111646 | T164: =I164/(SUM(I$3:I$611)/1000000) -> 121.1944262 | U164: =J164/(SUM(J$3:J$611)/1000000) -> 130.090729 | W164: =AVERAGE(M164:U164) -> 97.20365099 | X164: =LOG((AVERAGE(M164:O164)+0.1)/(AVERAGE($S164:$U164)+0.1),2) -> 0.02511823547 | Y164: =LOG((AVERAGE(P164:R164)+0.1)/(AVERAGE($S164:$U164)+0.1),2) -> -0.443242069
A165: HAL1-3D_Cpo | B165: 25 | C165: 44 | D165: 22 | E165: 23 | F165: 25 | G165: 115 | H165: 33 | I165: 15 | J165: 28 | K165: 330 | M165: =B165/(SUM(B$3:B$611)/1000000) -> 53.22761619 | N165: =C165/(SUM(C$3:C$611)/1000000) -> 61.67708402 | O165: =D165/(SUM(D$3:D$611)/1000000) -> 50.00545514 | P165: =E165/(SUM(E$3:E$611)/1000000) -> 34.54397448 | Q165: =F165/(SUM(F$3:F$611)/1000000) -> 43.31757151 | R165: =G165/(SUM(G$3:G$611)/1000000) -> 68.78517016 | S165: =H165/(SUM(H$3:H$611)/1000000) -> 51.0434519 | T165: =I165/(SUM(I$3:I$611)/1000000) -> 41.31628164 | U165: =J165/(SUM(J$3:J$611)/1000000) -> 52.0362916 | W165: =AVERAGE(M165:U165) -> 50.66143296 | X165: =LOG((AVERAGE(M165:O165)+0.1)/(AVERAGE($S165:$U165)+0.1),2) -> 0.1912770799 | Y165: =LOG((AVERAGE(P165:R165)+0.1)/(AVERAGE($S165:$U165)+0.1),2) -> 0.02226782814
A166: IAPLTR3_I | B166: 12 | C166: 44 | D166: 1 | E166: 25 | F166: 47 | G166: 15 | H166: 32 | I166: 0 | J166: 16 | K166: 192 | M166: =B166/(SUM(B$3:B$611)/1000000) -> 25.54925577 | N166: =C166/(SUM(C$3:C$611)/1000000) -> 61.67708402 | O166: =D166/(SUM(D$3:D$611)/1000000) -> 2.272975234 | P166: =E166/(SUM(E$3:E$611)/1000000) -> 37.54779835 | Q166: =F166/(SUM(F$3:F$611)/1000000) -> 81.43703444 | R166: =G166/(SUM(G$3:G$611)/1000000) -> 8.971978716 | S166: =H166/(SUM(H$3:H$611)/1000000) -> 49.49668063 | T166: =I166/(SUM(I$3:I$611)/1000000) -> 0 | U166: =J166/(SUM(J$3:J$611)/1000000) -> 29.73502377 | W166: =AVERAGE(M166:U166) -> 32.96531455 | X166: =LOG((AVERAGE(M166:O166)+0.1)/(AVERAGE($S166:$U166)+0.1),2) -> 0.1751743515 | Y166: =LOG((AVERAGE(P166:R166)+0.1)/(AVERAGE($S166:$U166)+0.1),2) -> 0.6894334531
A167: RLTR30D2_MM | B167: 16 | C167: 23 | D167: 0 | E167: 19 | F167: 25 | G167: 85 | H167: 27 | I167: 6 | J167: 0 | K167: 201 | M167: =B167/(SUM(B$3:B$611)/1000000) -> 34.06567436 | N167: =C167/(SUM(C$3:C$611)/1000000) -> 32.24029392 | O167: =D167/(SUM(D$3:D$611)/1000000) -> 0 | P167: =E167/(SUM(E$3:E$611)/1000000) -> 28.53632674 | Q167: =F167/(SUM(F$3:F$611)/1000000) -> 43.31757151 | R167: =G167/(SUM(G$3:G$611)/1000000) -> 50.84121272 | S167: =H167/(SUM(H$3:H$611)/1000000) -> 41.76282428 | T167: =I167/(SUM(I$3:I$611)/1000000) -> 16.52651266 | U167: =J167/(SUM(J$3:J$611)/1000000) -> 0 | W167: =AVERAGE(M167:U167) -> 27.47671291 | X167: =LOG((AVERAGE(M167:O167)+0.1)/(AVERAGE($S167:$U167)+0.1),2) -> 0.185013334 | Y167: =LOG((AVERAGE(P167:R167)+0.1)/(AVERAGE($S167:$U167)+0.1),2) -> 1.069890942
A168: BGLII_LTR | B168: 304 | C168: 693 | D168: 241 | E168: 389 | F168: 288 | G168: 984 | H168: 455 | I168: 164 | J168: 434 | K168: 3952 | M168: =B168/(SUM(B$3:B$611)/1000000) -> 647.2478129 | N168: =C168/(SUM(C$3:C$611)/1000000) -> 971.4140733 | O168: =D168/(SUM(D$3:D$611)/1000000) -> 547.7870313 | P168: =E168/(SUM(E$3:E$611)/1000000) -> 584.2437423 | Q168: =F168/(SUM(F$3:F$611)/1000000) -> 499.0184238 | R168: =G168/(SUM(G$3:G$611)/1000000) -> 588.5618038 | S168: =H168/(SUM(H$3:H$611)/1000000) -> 703.7809277 | T168: =I168/(SUM(I$3:I$611)/1000000) -> 451.7246793 | U168: =J168/(SUM(J$3:J$611)/1000000) -> 806.5625197 | W168: =AVERAGE(M168:U168) -> 644.4823349 | X168: =LOG((AVERAGE(M168:O168)+0.1)/(AVERAGE($S168:$U168)+0.1),2) -> 0.1429362773 | Y168: =LOG((AVERAGE(P168:R168)+0.1)/(AVERAGE($S168:$U168)+0.1),2) -> -0.230913895
A169: RLTR13D1 | B169: 56 | C169: 53 | D169: 12 | E169: 47 | F169: 25 | G169: 13 | H169: 32 | I169: 32 | J169: 39 | K169: 309 | M169: =B169/(SUM(B$3:B$611)/1000000) -> 119.2298603 | N169: =C169/(SUM(C$3:C$611)/1000000) -> 74.29285121 | O169: =D169/(SUM(D$3:D$611)/1000000) -> 27.2757028 | P169: =E169/(SUM(E$3:E$611)/1000000) -> 70.58986089 | Q169: =F169/(SUM(F$3:F$611)/1000000) -> 43.31757151 | R169: =G169/(SUM(G$3:G$611)/1000000) -> 7.775714887 | S169: =H169/(SUM(H$3:H$611)/1000000) -> 49.49668063 | T169: =I169/(SUM(I$3:I$611)/1000000) -> 88.14140084 | U169: =J169/(SUM(J$3:J$611)/1000000) -> 72.47912044 | W169: =AVERAGE(M169:U169) -> 61.39986261 | X169: =LOG((AVERAGE(M169:O169)+0.1)/(AVERAGE($S169:$U169)+0.1),2) -> 0.0714360263 | Y169: =LOG((AVERAGE(P169:R169)+0.1)/(AVERAGE($S169:$U169)+0.1),2) -> -0.7865708073
A170: SQR1_MM | B170: 1 | C170: 5 | D170: 14 | E170: 13 | F170: 1 | G170: 5 | H170: 7 | I170: 6 | J170: 4 | K170: 56 | M170: =B170/(SUM(B$3:B$611)/1000000) -> 2.129104648 | N170: =C170/(SUM(C$3:C$611)/1000000) -> 7.008759548 | O170: =D170/(SUM(D$3:D$611)/1000000) -> 31.82165327 | P170: =E170/(SUM(E$3:E$611)/1000000) -> 19.52485514 | Q170: =F170/(SUM(F$3:F$611)/1000000) -> 1.732702861 | R170: =G170/(SUM(G$3:G$611)/1000000) -> 2.990659572 | S170: =H170/(SUM(H$3:H$611)/1000000) -> 10.82739889 | T170: =I170/(SUM(I$3:I$611)/1000000) -> 16.52651266 | U170: =J170/(SUM(J$3:J$611)/1000000) -> 7.433755942 | W170: =AVERAGE(M170:U170) -> 11.11060028 | X170: =LOG((AVERAGE(M170:O170)+0.1)/(AVERAGE($S170:$U170)+0.1),2) -> 0.2337629036 | Y170: =LOG((AVERAGE(P170:R170)+0.1)/(AVERAGE($S170:$U170)+0.1),2) -> -0.5153457699
A171: L1Lx_II | B171: 1761 | C171: 2927 | D171: 1686 | E171: 2596 | F171: 2303 | G171: 6569 | H171: 2444 | I171: 1307 | J171: 1686 | K171: 23279 | M171: =B171/(SUM(B$3:B$611)/1000000) -> 3749.353284 | N171: =C171/(SUM(C$3:C$611)/1000000) -> 4102.927839 | O171: =D171/(SUM(D$3:D$611)/1000000) -> 3832.236244 | P171: =E171/(SUM(E$3:E$611)/1000000) -> 3898.96338 | Q171: =F171/(SUM(F$3:F$611)/1000000) -> 3990.414688 | R171: =G171/(SUM(G$3:G$611)/1000000) -> 3929.128546 | S171: =H171/(SUM(H$3:H$611)/1000000) -> 3780.308983 | T171: =I171/(SUM(I$3:I$611)/1000000) -> 3600.025341 | U171: =J171/(SUM(J$3:J$611)/1000000) -> 3133.32813 | W171: =AVERAGE(M171:U171) -> 3779.631826 | X171: =LOG((AVERAGE(M171:O171)+0.1)/(AVERAGE($S171:$U171)+0.1),2) -> 0.1523286971 | Y171: =LOG((AVERAGE(P171:R171)+0.1)/(AVERAGE($S171:$U171)+0.1),2) -> 0.1687778809
A172: L1MdGf_I | B172: 15899 | C172: 23484 | D172: 15063 | E172: 22036 | F172: 19539 | G172: 55172 | H172: 18877 | I172: 11510 | J172: 16244 | K172: 197824 | M172: =B172/(SUM(B$3:B$611)/1000000) -> 33850.63479 | N172: =C172/(SUM(C$3:C$611)/1000000) -> 32918.74184 | O172: =D172/(SUM(D$3:D$611)/1000000) -> 34237.82594 | P172: =E172/(SUM(E$3:E$611)/1000000) -> 33096.13138 | Q172: =F172/(SUM(F$3:F$611)/1000000) -> 33855.28119 | R172: =G172/(SUM(G$3:G$611)/1000000) -> 33000.13398 | S172: =H172/(SUM(H$3:H$611)/1000000) -> 29198.40126 | T172: =I172/(SUM(I$3:I$611)/1000000) -> 31703.36012 | U172: =J172/(SUM(J$3:J$611)/1000000) -> 30188.48288 | W172: =AVERAGE(M172:U172) -> 32449.88815 | X172: =LOG((AVERAGE(M172:O172)+0.1)/(AVERAGE($S172:$U172)+0.1),2) -> 0.1490892502 | Y172: =LOG((AVERAGE(P172:R172)+0.1)/(AVERAGE($S172:$U172)+0.1),2) -> 0.1339319187
A173: L1MdA_VI | B173: 12461 | C173: 18414 | D173: 12179 | E173: 16479 | F173: 13682 | G173: 41931 | H173: 15684 | I173: 8921 | J173: 12482 | K173: 152233 | M173: =B173/(SUM(B$3:B$611)/1000000) -> 26530.77301 | N173: =C173/(SUM(C$3:C$611)/1000000) -> 25811.85966 | O173: =D173/(SUM(D$3:D$611)/1000000) -> 27682.56537 | P173: =E173/(SUM(E$3:E$611)/1000000) -> 24750.00676 | Q173: =F173/(SUM(F$3:F$611)/1000000) -> 23706.84054 | R173: =G173/(SUM(G$3:G$611)/1000000) -> 25080.2693 | S173: =H173/(SUM(H$3:H$611)/1000000) -> 24259.56059 | T173: =I173/(SUM(I$3:I$611)/1000000) -> 24572.1699 | U173: =J173/(SUM(J$3:J$611)/1000000) -> 23197.03542 | W173: =AVERAGE(M173:U173) -> 25065.67562 | X173: =LOG((AVERAGE(M173:O173)+0.1)/(AVERAGE($S173:$U173)+0.1),2) -> 0.1518805553 | Y173: =LOG((AVERAGE(P173:R173)+0.1)/(AVERAGE($S173:$U173)+0.1),2) -> 0.02989929964
A174: ID_B1 | B174: 3 | C174: 1 | D174: 3 | E174: 0 | F174: 0 | G174: 3 | H174: 0 | I174: 1 | J174: 5 | K174: 16 | M174: =B174/(SUM(B$3:B$611)/1000000) -> 6.387313943 | N174: =C174/(SUM(C$3:C$611)/1000000) -> 1.40175191 | O174: =D174/(SUM(D$3:D$611)/1000000) -> 6.818925701 | P174: =E174/(SUM(E$3:E$611)/1000000) -> 0 | Q174: =F174/(SUM(F$3:F$611)/1000000) -> 0 | R174: =G174/(SUM(G$3:G$611)/1000000) -> 1.794395743 | S174: =H174/(SUM(H$3:H$611)/1000000) -> 0 | T174: =I174/(SUM(I$3:I$611)/1000000) -> 2.754418776 | U174: =J174/(SUM(J$3:J$611)/1000000) -> 9.292194928 | W174: =AVERAGE(M174:U174) -> 3.161000111 | X174: =LOG((AVERAGE(M174:O174)+0.1)/(AVERAGE($S174:$U174)+0.1),2) -> 0.2719704975 | Y174: =LOG((AVERAGE(P174:R174)+0.1)/(AVERAGE($S174:$U174)+0.1),2) -> -2.559509434
A175: L1MdF_III | B175: 13260 | C175: 20125 | D175: 12275 | E175: 17769 | F175: 14898 | G175: 41083 | H175: 17036 | I175: 9264 | J175: 13143 | K175: 158853 | M175: =B175/(SUM(B$3:B$611)/1000000) -> 28231.92763 | N175: =C175/(SUM(C$3:C$611)/1000000) -> 28210.25718 | O175: =D175/(SUM(D$3:D$611)/1000000) -> 27900.77099 | P175: =E175/(SUM(E$3:E$611)/1000000) -> 26687.47315 | Q175: =F175/(SUM(F$3:F$611)/1000000) -> 25813.80722 | R175: =G175/(SUM(G$3:G$611)/1000000) -> 24573.05344 | S175: =H175/(SUM(H$3:H$611)/1000000) -> 26350.79535 | T175: =I175/(SUM(I$3:I$611)/1000000) -> 25516.93554 | U175: =J175/(SUM(J$3:J$611)/1000000) -> 24425.46359 | W175: =AVERAGE(M175:U175) -> 26412.27601 | X175: =LOG((AVERAGE(M175:O175)+0.1)/(AVERAGE($S175:$U175)+0.1),2) -> 0.1447126691 | Y175: =LOG((AVERAGE(P175:R175)+0.1)/(AVERAGE($S175:$U175)+0.1),2) -> 0.01469608571
A176: L1_Mus1_3end | B176: 1730 | C176: 2874 | D176: 2035 | E176: 2549 | F176: 2085 | G176: 4881 | H176: 2221 | I176: 1242 | J176: 2286 | K176: 21903 | M176: =B176/(SUM(B$3:B$611)/1000000) -> 3683.35104 | N176: =C176/(SUM(C$3:C$611)/1000000) -> 4028.634988 | O176: =D176/(SUM(D$3:D$611)/1000000) -> 4625.504601 | P176: =E176/(SUM(E$3:E$611)/1000000) -> 3828.373519 | Q176: =F176/(SUM(F$3:F$611)/1000000) -> 3612.685464 | R176: =G176/(SUM(G$3:G$611)/1000000) -> 2919.481874 | S176: =H176/(SUM(H$3:H$611)/1000000) -> 3435.37899 | T176: =I176/(SUM(I$3:I$611)/1000000) -> 3420.98812 | U176: =J176/(SUM(J$3:J$611)/1000000) -> 4248.391521 | W176: =AVERAGE(M176:U176) -> 3755.865569 | X176: =LOG((AVERAGE(M176:O176)+0.1)/(AVERAGE($S176:$U176)+0.1),2) -> 0.1518670593 | Y176: =LOG((AVERAGE(P176:R176)+0.1)/(AVERAGE($S176:$U176)+0.1),2) -> -0.1000759169
A177: ORR1C2 | B177: 9 | C177: 28 | D177: 0 | E177: 18 | F177: 5 | G177: 20 | H177: 3 | I177: 0 | J177: 29 | K177: 112 | M177: =B177/(SUM(B$3:B$611)/1000000) -> 19.16194183 | N177: =C177/(SUM(C$3:C$611)/1000000) -> 39.24905347 | O177: =D177/(SUM(D$3:D$611)/1000000) -> 0 | P177: =E177/(SUM(E$3:E$611)/1000000) -> 27.03441481 | Q177: =F177/(SUM(F$3:F$611)/1000000) -> 8.663514303 | R177: =G177/(SUM(G$3:G$611)/1000000) -> 11.96263829 | S177: =H177/(SUM(H$3:H$611)/1000000) -> 4.640313809 | T177: =I177/(SUM(I$3:I$611)/1000000) -> 0 | U177: =J177/(SUM(J$3:J$611)/1000000) -> 53.89473058 | W177: =AVERAGE(M177:U177) -> 18.28962301 | X177: =LOG((AVERAGE(M177:O177)+0.1)/(AVERAGE($S177:$U177)+0.1),2) -> -0.003045021027 | Y177: =LOG((AVERAGE(P177:R177)+0.1)/(AVERAGE($S177:$U177)+0.1),2) -> -0.2948270084
A178: RatSatRep2 | B178: 20 | C178: 42 | D178: 20 | E178: 39 | F178: 43 | G178: 4 | H178: 41 | I178: 19 | J178: 11 | K178: 239 | M178: =B178/(SUM(B$3:B$611)/1000000) -> 42.58209295 | N178: =C178/(SUM(C$3:C$611)/1000000) -> 58.8735802 | O178: =D178/(SUM(D$3:D$611)/1000000) -> 45.45950467 | P178: =E178/(SUM(E$3:E$611)/1000000) -> 58.57456542 | Q178: =F178/(SUM(F$3:F$611)/1000000) -> 74.506223 | R178: =G178/(SUM(G$3:G$611)/1000000) -> 2.392527658 | S178: =H178/(SUM(H$3:H$611)/1000000) -> 63.41762206 | T178: =I178/(SUM(I$3:I$611)/1000000) -> 52.33395675 | U178: =J178/(SUM(J$3:J$611)/1000000) -> 20.44282884 | W178: =AVERAGE(M178:U178) -> 46.50921128 | X178: =LOG((AVERAGE(M178:O178)+0.1)/(AVERAGE($S178:$U178)+0.1),2) -> 0.1090845771 | Y178: =LOG((AVERAGE(P178:R178)+0.1)/(AVERAGE($S178:$U178)+0.1),2) -> -0.007641872814
A179: LX2B | B179: 237 | C179: 419 | D179: 116 | E179: 313 | F179: 249 | G179: 195 | H179: 317 | I179: 136 | J179: 218 | K179: 2200 | M179: =B179/(SUM(B$3:B$611)/1000000) -> 504.5978015 | N179: =C179/(SUM(C$3:C$611)/1000000) -> 587.3340501 | O179: =D179/(SUM(D$3:D$611)/1000000) -> 263.6651271 | P179: =E179/(SUM(E$3:E$611)/1000000) -> 470.0984353 | Q179: =F179/(SUM(F$3:F$611)/1000000) -> 431.4430123 | R179: =G179/(SUM(G$3:G$611)/1000000) -> 116.6357233 | S179: =H179/(SUM(H$3:H$611)/1000000) -> 490.3264925 | T179: =I179/(SUM(I$3:I$611)/1000000) -> 374.6009536 | U179: =J179/(SUM(J$3:J$611)/1000000) -> 405.1396989 | W179: =AVERAGE(M179:U179) -> 404.8712549 | X179: =LOG((AVERAGE(M179:O179)+0.1)/(AVERAGE($S179:$U179)+0.1),2) -> 0.09400206026 | Y179: =LOG((AVERAGE(P179:R179)+0.1)/(AVERAGE($S179:$U179)+0.1),2) -> -0.3188318634
A180: ORR1AI | B180: 1189 | C180: 1889 | D180: 854 | E180: 1462 | F180: 884 | G180: 1965 | H180: 1622 | I180: 766 | J180: 1051 | K180: 11682 | M180: =B180/(SUM(B$3:B$611)/1000000) -> 2531.505426 | N180: =C180/(SUM(C$3:C$611)/1000000) -> 2647.909357 | O180: =D180/(SUM(D$3:D$611)/1000000) -> 1941.12085 | P180: =E180/(SUM(E$3:E$611)/1000000) -> 2195.795247 | Q180: =F180/(SUM(F$3:F$611)/1000000) -> 1531.709329 | R180: =G180/(SUM(G$3:G$611)/1000000) -> 1175.329212 | S180: =H180/(SUM(H$3:H$611)/1000000) -> 2508.862999 | T180: =I180/(SUM(I$3:I$611)/1000000) -> 2109.884783 | U180: =J180/(SUM(J$3:J$611)/1000000) -> 1953.219374 | W180: =AVERAGE(M180:U180) -> 2066.148508 | X180: =LOG((AVERAGE(M180:O180)+0.1)/(AVERAGE($S180:$U180)+0.1),2) -> 0.1156554264 | Y180: =LOG((AVERAGE(P180:R180)+0.1)/(AVERAGE($S180:$U180)+0.1),2) -> -0.4226869977
A181: B2_Rn2 | B181: 607 | C181: 906 | D181: 605 | E181: 622 | F181: 599 | G181: 2632 | H181: 683 | I181: 387 | J181: 788 | K181: 7829 | M181: =B181/(SUM(B$3:B$611)/1000000) -> 1292.366521 | N181: =C181/(SUM(C$3:C$611)/1000000) -> 1269.98723 | O181: =D181/(SUM(D$3:D$611)/1000000) -> 1375.150016 | P181: =E181/(SUM(E$3:E$611)/1000000) -> 934.1892229 | Q181: =F181/(SUM(F$3:F$611)/1000000) -> 1037.889013 | R181: =G181/(SUM(G$3:G$611)/1000000) -> 1574.283199 | S181: =H181/(SUM(H$3:H$611)/1000000) -> 1056.444777 | T181: =I181/(SUM(I$3:I$611)/1000000) -> 1065.960066 | U181: =J181/(SUM(J$3:J$611)/1000000) -> 1464.449921 | W181: =AVERAGE(M181:U181) -> 1230.079996 | X181: =LOG((AVERAGE(M181:O181)+0.1)/(AVERAGE($S181:$U181)+0.1),2) -> 0.1345512289 | Y181: =LOG((AVERAGE(P181:R181)+0.1)/(AVERAGE($S181:$U181)+0.1),2) -> -0.01637837338
A182: MLTR31F_MM | B182: 33 | C182: 45 | D182: 12 | E182: 73 | F182: 33 | G182: 85 | H182: 36 | I182: 32 | J182: 11 | K182: 360 | M182: =B182/(SUM(B$3:B$611)/1000000) -> 70.26045337 | N182: =C182/(SUM(C$3:C$611)/1000000) -> 63.07883593 | O182: =D182/(SUM(D$3:D$611)/1000000) -> 27.2757028 | P182: =E182/(SUM(E$3:E$611)/1000000) -> 109.6395712 | Q182: =F182/(SUM(F$3:F$611)/1000000) -> 57.1791944 | R182: =G182/(SUM(G$3:G$611)/1000000) -> 50.84121272 | S182: =H182/(SUM(H$3:H$611)/1000000) -> 55.68376571 | T182: =I182/(SUM(I$3:I$611)/1000000) -> 88.14140084 | U182: =J182/(SUM(J$3:J$611)/1000000) -> 20.44282884 | W182: =AVERAGE(M182:U182) -> 60.28255175 | X182: =LOG((AVERAGE(M182:O182)+0.1)/(AVERAGE($S182:$U182)+0.1),2) -> -0.03238504762 | Y182: =LOG((AVERAGE(P182:R182)+0.1)/(AVERAGE($S182:$U182)+0.1),2) -> 0.4053794596
A183: MLTR25A | B183: 1 | C183: 19 | D183: 21 | E183: 9 | F183: 0 | G183: 3 | H183: 4 | I183: 16 | J183: 16 | K183: 89 | M183: =B183/(SUM(B$3:B$611)/1000000) -> 2.129104648 | N183: =C183/(SUM(C$3:C$611)/1000000) -> 26.63328628 | O183: =D183/(SUM(D$3:D$611)/1000000) -> 47.73247991 | P183: =E183/(SUM(E$3:E$611)/1000000) -> 13.51720741 | Q183: =F183/(SUM(F$3:F$611)/1000000) -> 0 | R183: =G183/(SUM(G$3:G$611)/1000000) -> 1.794395743 | S183: =H183/(SUM(H$3:H$611)/1000000) -> 6.187085079 | T183: =I183/(SUM(I$3:I$611)/1000000) -> 44.07070042 | U183: =J183/(SUM(J$3:J$611)/1000000) -> 29.73502377 | W183: =AVERAGE(M183:U183) -> 19.08880925 | X183: =LOG((AVERAGE(M183:O183)+0.1)/(AVERAGE($S183:$U183)+0.1),2) -> -0.06426083512 | Y183: =LOG((AVERAGE(P183:R183)+0.1)/(AVERAGE($S183:$U183)+0.1),2) -> -2.362652096
A184: L1VL2_5end | B184: 233 | C184: 379 | D184: 162 | E184: 364 | F184: 355 | G184: 615 | H184: 347 | I184: 167 | J184: 167 | K184: 2789 | M184: =B184/(SUM(B$3:B$611)/1000000) -> 496.0813829 | N184: =C184/(SUM(C$3:C$611)/1000000) -> 531.2639737 | O184: =D184/(SUM(D$3:D$611)/1000000) -> 368.2219879 | P184: =E184/(SUM(E$3:E$611)/1000000) -> 546.6959439 | Q184: =F184/(SUM(F$3:F$611)/1000000) -> 615.1095155 | R184: =G184/(SUM(G$3:G$611)/1000000) -> 367.8511274 | S184: =H184/(SUM(H$3:H$611)/1000000) -> 536.7296306 | T184: =I184/(SUM(I$3:I$611)/1000000) -> 459.9879356 | U184: =J184/(SUM(J$3:J$611)/1000000) -> 310.3593106 | W184: =AVERAGE(M184:U184) -> 470.2556453 | X184: =LOG((AVERAGE(M184:O184)+0.1)/(AVERAGE($S184:$U184)+0.1),2) -> 0.09448675629 | Y184: =LOG((AVERAGE(P184:R184)+0.1)/(AVERAGE($S184:$U184)+0.1),2) -> 0.2268156304
A185: L1-1C_Cpo | B185: 42 | C185: 65 | D185: 21 | E185: 22 | F185: 32 | G185: 114 | H185: 47 | I185: 27 | J185: 39 | K185: 409 | M185: =B185/(SUM(B$3:B$611)/1000000) -> 89.4223952 | N185: =C185/(SUM(C$3:C$611)/1000000) -> 91.11387412 | O185: =D185/(SUM(D$3:D$611)/1000000) -> 47.73247991 | P185: =E185/(SUM(E$3:E$611)/1000000) -> 33.04206255 | Q185: =F185/(SUM(F$3:F$611)/1000000) -> 55.44649154 | R185: =G185/(SUM(G$3:G$611)/1000000) -> 68.18703824 | S185: =H185/(SUM(H$3:H$611)/1000000) -> 72.69824967 | T185: =I185/(SUM(I$3:I$611)/1000000) -> 74.36930696 | U185: =J185/(SUM(J$3:J$611)/1000000) -> 72.47912044 | W185: =AVERAGE(M185:U185) -> 67.16566874 | X185: =LOG((AVERAGE(M185:O185)+0.1)/(AVERAGE($S185:$U185)+0.1),2) -> 0.05613043964 | Y185: =LOG((AVERAGE(P185:R185)+0.1)/(AVERAGE($S185:$U185)+0.1),2) -> -0.4859574706
A186: B2_Rn1 | B186: 218 | C186: 350 | D186: 178 | E186: 272 | F186: 224 | G186: 1023 | H186: 232 | I186: 96 | J186: 333 | K186: 2926 | M186: =B186/(SUM(B$3:B$611)/1000000) -> 464.1448132 | N186: =C186/(SUM(C$3:C$611)/1000000) -> 490.6131683 | O186: =D186/(SUM(D$3:D$611)/1000000) -> 404.5895916 | P186: =E186/(SUM(E$3:E$611)/1000000) -> 408.520046 | Q186: =F186/(SUM(F$3:F$611)/1000000) -> 388.1254408 | R186: =G186/(SUM(G$3:G$611)/1000000) -> 611.8889484 | S186: =H186/(SUM(H$3:H$611)/1000000) -> 358.8509346 | T186: =I186/(SUM(I$3:I$611)/1000000) -> 264.4242025 | U186: =J186/(SUM(J$3:J$611)/1000000) -> 618.8601822 | W186: =AVERAGE(M186:U186) -> 445.5574808 | X186: =LOG((AVERAGE(M186:O186)+0.1)/(AVERAGE($S186:$U186)+0.1),2) -> 0.1300619992 | Y186: =LOG((AVERAGE(P186:R186)+0.1)/(AVERAGE($S186:$U186)+0.1),2) -> 0.18133133
A187: ORR1A0 | B187: 693 | C187: 1555 | D187: 571 | E187: 1090 | F187: 863 | G187: 1465 | H187: 1165 | I187: 467 | J187: 867 | K187: 8736 | M187: =B187/(SUM(B$3:B$611)/1000000) -> 1475.469521 | N187: =C187/(SUM(C$3:C$611)/1000000) -> 2179.724219 | O187: =D187/(SUM(D$3:D$611)/1000000) -> 1297.868858 | P187: =E187/(SUM(E$3:E$611)/1000000) -> 1637.084008 | Q187: =F187/(SUM(F$3:F$611)/1000000) -> 1495.322569 | R187: =G187/(SUM(G$3:G$611)/1000000) -> 876.2632546 | S187: =H187/(SUM(H$3:H$611)/1000000) -> 1801.988529 | T187: =I187/(SUM(I$3:I$611)/1000000) -> 1286.313569 | U187: =J187/(SUM(J$3:J$611)/1000000) -> 1611.266601 | W187: =AVERAGE(M187:U187) -> 1517.922348 | X187: =LOG((AVERAGE(M187:O187)+0.1)/(AVERAGE($S187:$U187)+0.1),2) -> 0.07578778143 | Y187: =LOG((AVERAGE(P187:R187)+0.1)/(AVERAGE($S187:$U187)+0.1),2) -> -0.2293888915
A188: Lx2_3end | B188: 497 | C188: 733 | D188: 451 | E188: 777 | F188: 481 | G188: 1509 | H188: 665 | I188: 312 | J188: 514 | K188: 5939 | M188: =B188/(SUM(B$3:B$611)/1000000) -> 1058.16501 | N188: =C188/(SUM(C$3:C$611)/1000000) -> 1027.48415 | O188: =D188/(SUM(D$3:D$611)/1000000) -> 1025.11183 | P188: =E188/(SUM(E$3:E$611)/1000000) -> 1166.985573 | Q188: =F188/(SUM(F$3:F$611)/1000000) -> 833.4300759 | R188: =G188/(SUM(G$3:G$611)/1000000) -> 902.5810588 | S188: =H188/(SUM(H$3:H$611)/1000000) -> 1028.602894 | T188: =I188/(SUM(I$3:I$611)/1000000) -> 859.3786582 | U188: =J188/(SUM(J$3:J$611)/1000000) -> 955.2376386 | W188: =AVERAGE(M188:U188) -> 984.1085432 | X188: =LOG((AVERAGE(M188:O188)+0.1)/(AVERAGE($S188:$U188)+0.1),2) -> 0.1297291369 | Y188: =LOG((AVERAGE(P188:R188)+0.1)/(AVERAGE($S188:$U188)+0.1),2) -> 0.03001447701
A189: L1MdF_I | B189: 10767 | C189: 16616 | D189: 10011 | E189: 13967 | F189: 12590 | G189: 38681 | H189: 14070 | I189: 8094 | J189: 11067 | K189: 135863 | M189: =B189/(SUM(B$3:B$611)/1000000) -> 22924.06974 | N189: =C189/(SUM(C$3:C$611)/1000000) -> 23291.50973 | O189: =D189/(SUM(D$3:D$611)/1000000) -> 22754.75506 | P189: =E189/(SUM(E$3:E$611)/1000000) -> 20977.20398 | Q189: =F189/(SUM(F$3:F$611)/1000000) -> 21814.72901 | R189: =G189/(SUM(G$3:G$611)/1000000) -> 23136.34058 | S189: =H189/(SUM(H$3:H$611)/1000000) -> 21763.07176 | T189: =I189/(SUM(I$3:I$611)/1000000) -> 22294.26558 | U189: =J189/(SUM(J$3:J$611)/1000000) -> 20567.34425 | W189: =AVERAGE(M189:U189) -> 22169.25441 | X189: =LOG((AVERAGE(M189:O189)+0.1)/(AVERAGE($S189:$U189)+0.1),2) -> 0.09389027521 | Y189: =LOG((AVERAGE(P189:R189)+0.1)/(AVERAGE($S189:$U189)+0.1),2) -> 0.02881190318
A190: RLTR1IAP_MM | B190: 813 | C190: 1073 | D190: 517 | E190: 783 | F190: 745 | G190: 1118 | H190: 882 | I190: 512 | J190: 745 | K190: 7188 | M190: =B190/(SUM(B$3:B$611)/1000000) -> 1730.962079 | N190: =C190/(SUM(C$3:C$611)/1000000) -> 1504.079799 | O190: =D190/(SUM(D$3:D$611)/1000000) -> 1175.128196 | P190: =E190/(SUM(E$3:E$611)/1000000) -> 1175.997044 | Q190: =F190/(SUM(F$3:F$611)/1000000) -> 1290.863631 | R190: =G190/(SUM(G$3:G$611)/1000000) -> 668.7114803 | S190: =H190/(SUM(H$3:H$611)/1000000) -> 1364.25226 | T190: =I190/(SUM(I$3:I$611)/1000000) -> 1410.262413 | U190: =J190/(SUM(J$3:J$611)/1000000) -> 1384.537044 | W190: =AVERAGE(M190:U190) -> 1300.532661 | X190: =LOG((AVERAGE(M190:O190)+0.1)/(AVERAGE($S190:$U190)+0.1),2) -> 0.08457374276 | Y190: =LOG((AVERAGE(P190:R190)+0.1)/(AVERAGE($S190:$U190)+0.1),2) -> -0.4074919411
A191: B1_Mur3 | B191: 104 | C191: 190 | D191: 45 | E191: 178 | F191: 104 | G191: 477 | H191: 144 | I191: 77 | J191: 81 | K191: 1400 | M191: =B191/(SUM(B$3:B$611)/1000000) -> 221.4268834 | N191: =C191/(SUM(C$3:C$611)/1000000) -> 266.3328628 | O191: =D191/(SUM(D$3:D$611)/1000000) -> 102.2838855 | P191: =E191/(SUM(E$3:E$611)/1000000) -> 267.3403242 | Q191: =F191/(SUM(F$3:F$611)/1000000) -> 180.2010975 | R191: =G191/(SUM(G$3:G$611)/1000000) -> 285.3089232 | S191: =H191/(SUM(H$3:H$611)/1000000) -> 222.7350628 | T191: =I191/(SUM(I$3:I$611)/1000000) -> 212.0902458 | U191: =J191/(SUM(J$3:J$611)/1000000) -> 150.5335578 | W191: =AVERAGE(M191:U191) -> 212.0280937 | X191: =LOG((AVERAGE(M191:O191)+0.1)/(AVERAGE($S191:$U191)+0.1),2) -> 0.01149440302 | Y191: =LOG((AVERAGE(P191:R191)+0.1)/(AVERAGE($S191:$U191)+0.1),2) -> 0.324048507
A192: RLTR13E | B192: 48 | C192: 44 | D192: 110 | E192: 102 | F192: 58 | G192: 166 | H192: 107 | I192: 13 | J192: 60 | K192: 708 | M192: =B192/(SUM(B$3:B$611)/1000000) -> 102.1970231 | N192: =C192/(SUM(C$3:C$611)/1000000) -> 61.67708402 | O192: =D192/(SUM(D$3:D$611)/1000000) -> 250.0272757 | P192: =E192/(SUM(E$3:E$611)/1000000) -> 153.1950173 | Q192: =F192/(SUM(F$3:F$611)/1000000) -> 100.4967659 | R192: =G192/(SUM(G$3:G$611)/1000000) -> 99.28989779 | S192: =H192/(SUM(H$3:H$611)/1000000) -> 165.5045259 | T192: =I192/(SUM(I$3:I$611)/1000000) -> 35.80744409 | U192: =J192/(SUM(J$3:J$611)/1000000) -> 111.5063391 | W192: =AVERAGE(M192:U192) -> 119.9668192 | X192: =LOG((AVERAGE(M192:O192)+0.1)/(AVERAGE($S192:$U192)+0.1),2) -> 0.4036244998 | Y192: =LOG((AVERAGE(P192:R192)+0.1)/(AVERAGE($S192:$U192)+0.1),2) -> 0.1741110716
A193: L1MdGf_II | B193: 17061 | C193: 25049 | D193: 17010 | E193: 23403 | F193: 20357 | G193: 58115 | H193: 21729 | I193: 12655 | J193: 18307 | K193: 213686 | M193: =B193/(SUM(B$3:B$611)/1000000) -> 36324.65439 | N193: =C193/(SUM(C$3:C$611)/1000000) -> 35112.48358 | O193: =D193/(SUM(D$3:D$611)/1000000) -> 38663.30872 | P193: =E193/(SUM(E$3:E$611)/1000000) -> 35149.24499 | Q193: =F193/(SUM(F$3:F$611)/1000000) -> 35272.63213 | R193: =G193/(SUM(G$3:G$611)/1000000) -> 34760.43621 | S193: =H193/(SUM(H$3:H$611)/1000000) -> 33609.79292 | T193: =I193/(SUM(I$3:I$611)/1000000) -> 34857.16961 | U193: =J193/(SUM(J$3:J$611)/1000000) -> 34022.44251 | W193: =AVERAGE(M193:U193) -> 35308.01834 | X193: =LOG((AVERAGE(M193:O193)+0.1)/(AVERAGE($S193:$U193)+0.1),2) -> 0.1033452531 | Y193: =LOG((AVERAGE(P193:R193)+0.1)/(AVERAGE($S193:$U193)+0.1),2) -> 0.03741724685
A194: B2_Rat4 | B194: 715 | C194: 995 | D194: 673 | E194: 767 | F194: 669 | G194: 2821 | H194: 776 | I194: 438 | J194: 921 | K194: 8775 | M194: =B194/(SUM(B$3:B$611)/1000000) -> 1522.309823 | N194: =C194/(SUM(C$3:C$611)/1000000) -> 1394.74315 | O194: =D194/(SUM(D$3:D$611)/1000000) -> 1529.712332 | P194: =E194/(SUM(E$3:E$611)/1000000) -> 1151.966453 | Q194: =F194/(SUM(F$3:F$611)/1000000) -> 1159.178214 | R194: =G194/(SUM(G$3:G$611)/1000000) -> 1687.330131 | S194: =H194/(SUM(H$3:H$611)/1000000) -> 1200.294505 | T194: =I194/(SUM(I$3:I$611)/1000000) -> 1206.435424 | U194: =J194/(SUM(J$3:J$611)/1000000) -> 1711.622306 | W194: =AVERAGE(M194:U194) -> 1395.954704 | X194: =LOG((AVERAGE(M194:O194)+0.1)/(AVERAGE($S194:$U194)+0.1),2) -> 0.1106812758 | Y194: =LOG((AVERAGE(P194:R194)+0.1)/(AVERAGE($S194:$U194)+0.1),2) -> -0.04261428116
A195: L1MdA_IV | B195: 16681 | C195: 24772 | D195: 17045 | E195: 23567 | F195: 19962 | G195: 56191 | H195: 21931 | I195: 12613 | J195: 18169 | K195: 210931 | M195: =B195/(SUM(B$3:B$611)/1000000) -> 35515.59463 | N195: =C195/(SUM(C$3:C$611)/1000000) -> 34724.1983 | O195: =D195/(SUM(D$3:D$611)/1000000) -> 38742.86286 | P195: =E195/(SUM(E$3:E$611)/1000000) -> 35395.55855 | Q195: =F195/(SUM(F$3:F$611)/1000000) -> 34588.2145 | R195: =G195/(SUM(G$3:G$611)/1000000) -> 33609.6304 | S195: =H195/(SUM(H$3:H$611)/1000000) -> 33922.24071 | T195: =I195/(SUM(I$3:I$611)/1000000) -> 34741.48403 | U195: =J195/(SUM(J$3:J$611)/1000000) -> 33765.97793 | W195: =AVERAGE(M195:U195) -> 35000.64021 | X195: =LOG((AVERAGE(M195:O195)+0.1)/(AVERAGE($S195:$U195)+0.1),2) -> 0.0894641691 | Y195: =LOG((AVERAGE(P195:R195)+0.1)/(AVERAGE($S195:$U195)+0.1),2) -> 0.01629796135
A196: B2_Rat3 | B196: 696 | C196: 962 | D196: 652 | E196: 777 | F196: 645 | G196: 2667 | H196: 759 | I196: 427 | J196: 896 | K196: 8481 | M196: =B196/(SUM(B$3:B$611)/1000000) -> 1481.856835 | N196: =C196/(SUM(C$3:C$611)/1000000) -> 1348.485337 | O196: =D196/(SUM(D$3:D$611)/1000000) -> 1481.979852 | P196: =E196/(SUM(E$3:E$611)/1000000) -> 1166.985573 | Q196: =F196/(SUM(F$3:F$611)/1000000) -> 1117.593345 | R196: =G196/(SUM(G$3:G$611)/1000000) -> 1595.217816 | S196: =H196/(SUM(H$3:H$611)/1000000) -> 1173.999394 | T196: =I196/(SUM(I$3:I$611)/1000000) -> 1176.136817 | U196: =J196/(SUM(J$3:J$611)/1000000) -> 1665.161331 | W196: =AVERAGE(M196:U196) -> 1356.379589 | X196: =LOG((AVERAGE(M196:O196)+0.1)/(AVERAGE($S196:$U196)+0.1),2) -> 0.1029505935 | Y196: =LOG((AVERAGE(P196:R196)+0.1)/(AVERAGE($S196:$U196)+0.1),2) -> -0.0495220642
A197: B2_Mm2 | B197: 759 | C197: 1093 | D197: 769 | E197: 888 | F197: 799 | G197: 3091 | H197: 921 | I197: 448 | J197: 1000 | K197: 9768 | M197: =B197/(SUM(B$3:B$611)/1000000) -> 1615.990428 | N197: =C197/(SUM(C$3:C$611)/1000000) -> 1532.114837 | O197: =D197/(SUM(D$3:D$611)/1000000) -> 1747.917955 | P197: =E197/(SUM(E$3:E$611)/1000000) -> 1333.697797 | Q197: =F197/(SUM(F$3:F$611)/1000000) -> 1384.429586 | R197: =G197/(SUM(G$3:G$611)/1000000) -> 1848.825747 | S197: =H197/(SUM(H$3:H$611)/1000000) -> 1424.576339 | T197: =I197/(SUM(I$3:I$611)/1000000) -> 1233.979612 | U197: =J197/(SUM(J$3:J$611)/1000000) -> 1858.438986 | W197: =AVERAGE(M197:U197) -> 1553.330143 | X197: =LOG((AVERAGE(M197:O197)+0.1)/(AVERAGE($S197:$U197)+0.1),2) -> 0.1162396861 | Y197: =LOG((AVERAGE(P197:R197)+0.1)/(AVERAGE($S197:$U197)+0.1),2) -> 0.01586763901
A198: L1MdFanc_I | B198: 5909 | C198: 9284 | D198: 5733 | E198: 8824 | F198: 7587 | G198: 21563 | H198: 7746 | I198: 4222 | J198: 7033 | K198: 77901 | M198: =B198/(SUM(B$3:B$611)/1000000) -> 12580.87936 | N198: =C198/(SUM(C$3:C$611)/1000000) -> 13013.86473 | O198: =D198/(SUM(D$3:D$611)/1000000) -> 13030.96701 | P198: =E198/(SUM(E$3:E$611)/1000000) -> 13252.8709 | Q198: =F198/(SUM(F$3:F$611)/1000000) -> 13146.0166 | R198: =G198/(SUM(G$3:G$611)/1000000) -> 12897.51847 | S198: =H198/(SUM(H$3:H$611)/1000000) -> 11981.29025 | T198: =I198/(SUM(I$3:I$611)/1000000) -> 11629.15607 | U198: =J198/(SUM(J$3:J$611)/1000000) -> 13070.40139 | W198: =AVERAGE(M198:U198) -> 12733.66276 | X198: =LOG((AVERAGE(M198:O198)+0.1)/(AVERAGE($S198:$U198)+0.1),2) -> 0.07453391863 | Y198: =LOG((AVERAGE(P198:R198)+0.1)/(AVERAGE($S198:$U198)+0.1),2) -> 0.0993696045
A199: L1MdF_V | B199: 11937 | C199: 17636 | D199: 11477 | E199: 16067 | F199: 13765 | G199: 43371 | H199: 15437 | I199: 8880 | J199: 13079 | K199: 151649 | M199: =B199/(SUM(B$3:B$611)/1000000) -> 25415.12218 | N199: =C199/(SUM(C$3:C$611)/1000000) -> 24721.29668 | O199: =D199/(SUM(D$3:D$611)/1000000) -> 26086.93676 | P199: =E199/(SUM(E$3:E$611)/1000000) -> 24131.21904 | Q199: =F199/(SUM(F$3:F$611)/1000000) -> 23850.65488 | R199: =G199/(SUM(G$3:G$611)/1000000) -> 25941.57926 | S199: =H199/(SUM(H$3:H$611)/1000000) -> 23877.50809 | T199: =I199/(SUM(I$3:I$611)/1000000) -> 24459.23873 | U199: =J199/(SUM(J$3:J$611)/1000000) -> 24306.52349 | W199: =AVERAGE(M199:U199) -> 24754.45323 | X199: =LOG((AVERAGE(M199:O199)+0.1)/(AVERAGE($S199:$U199)+0.1),2) -> 0.06940368952 | Y199: =LOG((AVERAGE(P199:R199)+0.1)/(AVERAGE($S199:$U199)+0.1),2) -> 0.02520289502
A200: L1MdF_IV | B200: 12481 | C200: 18683 | D200: 11837 | E200: 17119 | F200: 14591 | G200: 44259 | H200: 16311 | I200: 9248 | J200: 13647 | K200: 158176 | M200: =B200/(SUM(B$3:B$611)/1000000) -> 26573.35511 | N200: =C200/(SUM(C$3:C$611)/1000000) -> 26188.93093 | O200: =D200/(SUM(D$3:D$611)/1000000) -> 26905.20784 | P200: =E200/(SUM(E$3:E$611)/1000000) -> 25711.2304 | Q200: =F200/(SUM(F$3:F$611)/1000000) -> 25281.86744 | R200: =G200/(SUM(G$3:G$611)/1000000) -> 26472.7204 | S200: =H200/(SUM(H$3:H$611)/1000000) -> 25229.38618 | T200: =I200/(SUM(I$3:I$611)/1000000) -> 25472.86484 | U200: =J200/(SUM(J$3:J$611)/1000000) -> 25362.11684 | W200: =AVERAGE(M200:U200) -> 25910.85333 | X200: =LOG((AVERAGE(M200:O200)+0.1)/(AVERAGE($S200:$U200)+0.1),2) -> 0.06677014946 | Y200: =LOG((AVERAGE(P200:R200)+0.1)/(AVERAGE($S200:$U200)+0.1),2) -> 0.02633897365
... 411 more rows
